{"text_format":"1","workbook":"xlsx","n_sheets":4,"sheets":["UserForm","Instrucciones de Instalación","Catalogos","Control de Cambios"],"not_rendered":{"charts":0,"images":6,"macros":1,"external_links":0,"defined_names":57,"comments":2,"pivot_tables":0},"unopened":[],"bounds":{"document_bytes":16777216,"sheet_cells":100000,"rows_first":2000,"rows_last":500,"rows_between":2000,"halvings":0,"cell_chars":16384,"cell_head_chars":4096},"cells_cut":0,"cells_raw":0,"read":"whole","date_system":"1900"}

{"sheet":"UserForm","index":0,"n_rows":105,"n_cols":5,"rows_kept":105,"cut":false,"hidden":false,"merged":[[56,1,56,4],[9,1,9,4],[29,1,29,4],[37,1,37,4],[45,1,45,4],[49,1,49,4]]}
[]
[]
[]
[null,"                     Formato de Excepción v2"]
[]
[null,"Estado de la Republica donde radica el cliente",null,null,"AGUASCALIENTES"]
[null,"Nobre del Cliente",null,null,"NELSON SILVA GALLEGOS"]
[null,"Folio LEAP (Solo si fue generado en sistema)"]
[]
[null,"1.\tMotivo de elevación y antecedentes del caso"]
[]
[null,"Excepciones Requeridas:",null,null,1]
[null,{"$f":"IF(OR(E12=\"\",E12=0),\"\",IF(OR(E12=2,E12=3),\"¿Motivo de  1ra Excepción?\",\"¿Motivo de Excepción?\"))","v":"¿Motivo de Excepción?"},null,null,"2A HIPOTECA EN UN PLAZO MENOR A 12 MESES"]
[null,{"$f":"IF(OR(E12=\"\",E12=0,E12=1),\"\",IF(OR(E12=2,E12=3),\"¿Motivo de 2da Excepción?\"))","v":""}]
[]
[null,"Condiciones de Crédito Solicitado"]
[null,"                       Producto",null,null,"ADQUISICIÓN_DE_VIVIENDA"]
[null,"                       Monto de Crédito Solicitado",null,null,1000000]
[null,"                       LTV",null,null,0.9]
[null,"                       Plazo",null,null,25]
[null,"Estado de la Garantía (en caso de existir o que el producto lo requiera)"]
[null,"                      Valor aproximado de la vivienda",null,null,900000]
[null,"                       Estado",null,null,"AGUASCALIENTES"]
[null,"                       Municipio o Ciudad"]
[null,"                       Calle y Número"]
[null,"                       Colonia"]
[null,"                       C.P."]
[null,{"$f":"IF(OR(E17=\"LIQUIDEZ\",E17=\"LIQUIDEZ_TOPUP\",E17=\"PAGO_HIPOTECA_MAS_LÍQUIDEZ\"),\"Destino   de    la    Liquidez\",\"\")","v":""}]
[]
[null,"2. Perfil del Cliente"]
[]
[null,"                       Tipo de Persona",null,null,"PF"]
[null,"                       Ocupación",null,null,"EMPLEADO"]
[null,"                       Actividad/Giro",null,null,"COMERCIO"]
[null,"                       Actividad Especifica",null,null,"COMERCIO"]
[null,"        Portal  o  Pagina Web o Dirección de\n        la URL de Redes Sociales la empresa"]
[]
[null,"3. Ingresos y Capacidad de pago"]
[]
[null,"                       Ingreso ",null,null,45000]
[null,"                       Sustento Ingreso 1",null,null,"CONSTANCIA DE SITUACION FISCAL"]
[null,"                       Sustento Ingreso 2"]
[null,"                       Sustento Ingreso 3"]
[null,"                       Sustento Ingreso 4"]
[]
[null,"4. Experiencia de crédito: "]
[]
[null,"Justificación ampliada de la excepción (¿Qué negocios adicionales podemos sumar a la institución?, ¿Cuál es su experiencia crediticia?, ¿situaciones particulares del cliente?, etc)",null,null,"HOLA"]
[]
[null,"5. Relación de Negocio con HSBC"]
[]
[null,"                      Tipo de Cliente",null,null,"ETB"]
[null,"                      Clasificación de Cliente",null,null,"CLIENTE ESPECIAL AXA"]
[null,"                      Relación de Negocio",null,null,"OTRA"]
[null,"                      Nivel de Riesgo",null,null,1]
[]
[null,"6. Apendix              (OPCIONAL)"]
[]
[null,"Geolocalización Domicilio Particular"]
[null,"Geolocalización Domicilio Laboral"]
[null,"Geolocalización Domicilio Garantía"]
[null,"Información en Internet "]
[null,"Evidencias o Anexos Otros"]
[]
[]
[]
[]
[]
[]
[]
[]
[]
[]
[]
[null,"Concatenar Nombre de Archivo",null,null,{"$f":"TRIM(CONCATENATE(E7,\" \",E8))","v":"NELSON SILVA GALLEGOS"}]
[]
[null,"PARA PODER CONTINUAR LA SUMA DE VALIDACIÓN DEBE SER IGUAL A 27:"]
[null,"SUMA VALIDACION DE DATOS",{"$f":"SUM(B79:B105)","v":27}]
[null,{"$f":"IF(E6<>\"\",1,0)","v":1}]
[null,{"$f":"IF(E7<>\"\",1,0)","v":1}]
[null,{"$f":"IF(E12<>\"\",1,0)","v":1}]
[null,{"$f":"IF(E13<>\"\",1,0)","v":1}]
[null,{"$f":"IF(AND(E12=1,E14=\"\"),1,IF(AND(E12=2,E14<>\"\"),1,0))","v":1}]
[null,{"$f":"IF(E17<>\"\",1,0)","v":1}]
[null,{"$f":"IF(E18<>\"\",1,0)","v":1}]
[null,{"$f":"IF(E19<>\"\",1,0)","v":1}]
[null,{"$f":"IF(E20<>\"\",1,0)","v":1}]
[null,{"$f":"IF(E22<>\"\",1,0)","v":1}]
[null,{"$f":"IF(E23<>\"\",1,0)","v":1}]
[null,{"$f":"IF(AND(OR(E17=\"CONSTRUCCIÓN + TERRENO\",E17=\"LIQUIDEZ\",E17=\"LIQUIDEZ TOPUP\",E17=\"PAGO DE HIPOTECAS\",E17=\"PAGO HIPOTECA MAS LÍQUIDEZ\",E17=\"REMODELACION\"),E24=\"\"),0,1)","v":1}]
[null,{"$f":"IF(AND(OR(E17=\"CONSTRUCCIÓN + TERRENO\",E17=\"LIQUIDEZ\",E17=\"LIQUIDEZ TOPUP\",E17=\"PAGO DE HIPOTECAS\",E17=\"PAGO HIPOTECA MAS LÍQUIDEZ\",E17=\"REMODELACION\"),E25=\"\"),0,1)","v":1}]
[null,{"$f":"IF(AND(OR(E17=\"CONSTRUCCIÓN + TERRENO\",E17=\"LIQUIDEZ\",E17=\"LIQUIDEZ TOPUP\",E17=\"PAGO DE HIPOTECAS\",E17=\"PAGO HIPOTECA MAS LÍQUIDEZ\",E17=\"REMODELACION\"),E26=\"\"),0,1)","v":1}]
[null,{"$f":"IF(AND(OR(E17=\"CONSTRUCCIÓN + TERRENO\",E17=\"LIQUIDEZ\",E17=\"LIQUIDEZ TOPUP\",E17=\"PAGO DE HIPOTECAS\",E17=\"PAGO HIPOTECA MAS LÍQUIDEZ\",E17=\"REMODELACION\"),E27=\"\"),0,1)","v":1}]
[null,{"$f":"IF(AND(OR(E17=\"LIQUIDEZ\",E17=\"LIQUIDEZ TOPUP\",E17=\"PAGO DE HIPOTECAS\",E17=\"PAGO HIPOTECA MAS LÍQUIDEZ\"),E28<>\"\"),1,IF(AND(OR(E17=\"LIQUIDEZ\",E17=\"LIQUIDEZ TOPUP\",E17=\"PAGO DE HIPOTECAS\",E17=\"PAGO HIPOTECA MAS LÍQUIDEZ\"),E28=\"\"),0,1))","v":1}]
[null,{"$f":"IF(E32<>\"\",1,0)","v":1}]
[null,{"$f":"IF(E33<>\"\",1,0)","v":1}]
[null,{"$f":"IF(E34<>\"\",1,0)","v":1}]
[null,{"$f":"IF(E35<>\"\",1,0)","v":1}]
[null,{"$f":"IF(E40<>\"\",1,0)","v":1}]
[null,{"$f":"IF(E41<>\"\",1,0)","v":1}]
[null,{"$f":"IF(E48<>\"\",1,0)","v":1}]
[null,{"$f":"IF(E52<>\"\",1,0)","v":1}]
[null,{"$f":"IF(E53<>\"\",1,0)","v":1}]
[null,{"$f":"IF(E54<>\"\",1,0)","v":1}]
[null,{"$f":"IF(E55<>\"\",1,0)","v":1}]

{"sheet":"Instrucciones de Instalación","index":1,"n_rows":21,"n_cols":2,"rows_kept":21,"cut":false,"hidden":false,"merged":[]}
[]
[]
[null,"Para que se generen correctamente los Formato de Excepción en PDF debes habilitar las macros:"]
[]
[null,"1.- Habilitar la Macros"]
[]
[null,"Windows"]
[null,"a) Abrir el programa de excel"]
[null,"b) Seleccionar \"Archivo\" en la cinta de opciones"]
[null,"c) Seleccionar \"Opciones\""]
[null,"d) Seleccionar \"Centro de Confianza\""]
[null,"e) Seleccionar \"Configuración del Centro de Confianza\""]
[null,"f) Seleccionar \"Configuración de macros"]
[null,"   Habilitar todas las macros de VBA (no recomendado; se puede ejecutar un código potencialmente peligroso."]
[null,"   Seleccionar el check \"Confiar en el acceso al modelo de objetos de proyectos de VBA\"."]
[]
[null,"2.- Para Soporte Técnico relacionada con el funcionamiento o errores del Formato contactar a:"]
[null,"nelson.silva@hsbc.com.mx y/o aida.lozano@hsbc.com.mx"]
[]
[null,"3.- Para Soporte relacionado con el llenado del Formato de Excepción contactar a Underwriting Services:"]
[null,"liliana.escobedo@noexternalmail.hsbc.com y/o eric.buenrostro@hsbc.com.mx"]

{"sheet":"Catalogos","index":2,"n_rows":571,"n_cols":63,"rows_kept":571,"cut":false,"hidden":true,"merged":[]}
["Excepciones Requeridas",null,"COMPROBANTE DE INGRESOS",null,"CATALOGO DE EXCEPCIONES",null,"PRODUCTO","ADQUISICIÓN_DE_VIVIENDA","APOYO_INFONAVIT","CI_MAS_CB","COFINANCIAMIENTO","CONSTRUCCIÓN","CONSTRUCCIÓN_MAS_TERRENO","LIQUIDEZ","LIQUIDEZ_TOPUP","PAGO_DE_HIPOTECAS","PAGO_HIPOTECA_MAS_LÍQUIDEZ","REMODELACION",null,"TIPO DE PERSONA","PF","PFAE","PROF","PF_Y_PFAE_O_PROF",null,"PLAZO",null,"TIPO DE CLIENTE",null,"ESTADOS",null,"AGUASCALIENTES","BAJA_CALIFORNIA","BAJA_CALIFORNIA_SUR","CAMPECHE","COAHUILA","COLIMA","CHIAPAS","CHIHUAHUA","CIUDAD_DE_MÉXICO","DURANGO","GUANAJUATO","GERRERO","HIDALGO","JALISCO","ESTADO_DE_MEXICO","MICHOACÁN","MORELOS","NAYARIT","NUEVO_LEÓN","OAXACA","PUEBLA","QUERÉTARO","QUINTANA_ROO","SAN_LUIS_POTOSI","SINALOA","SONORA","TABASCO","TAMAULIPAS","TLAXCALA","VERACRUZ","YUCATÁN","ZACATECAS"]
[1,null,"CONSTANCIA DE SITUACION FISCAL",null,"2A HIPOTECA EN UN PLAZO MENOR A 12 MESES",null,"ADQUISICIÓN_DE_VIVIENDA","CLIENTE ESPECIAL AXA","CLIENTE ESPECIAL AXA","ECONOMIA AMERICANA","CLIENTE ESPECIAL AXA","NORMAL","ECONOMIA AMERICANA","CLIENTE ESPECIAL AXA","NORMAL","CLIENTE ESPECIAL AXA","CLIENTE ESPECIAL AXA","CLIENTE ESPECIAL AXA",null,"PF","EMPLEADO","SOCIO/DUEÑO/PROPIETARIO","PROFESIONISTA INDEPENDIENTE","EMPLEADO",null,25,null,"CLIENTE ESPECIAL AXA",null,"AGUASCALIENTES",null,"AGUASCALIENTES","ENSENADA","COMONDÚ","TENABO","ABASOLO","ARMERÍA","ACACOYAGUA","AHUMADA","ÁLVARO OBREGÓN","CANATLÁN","ABASOLO","ACAPULCO DE JUÁREZ","ACATLÁN","ACATIC","ACAMBAY DE RUÍZ CASTAÑEDA","ACUITZIO","AMACUZAC","ACAPONETA","ABASOLO","ABEJONES","ZOQUITLÁN","AMEALCO DE BONFIL","BACALAR","AHUALULCO DEL SONIDO 13","AHOME","ACONCHI","BALANCÁN","ABASOLO","ACUAMANALA DE MIGUEL HIDALGO","ACAJETE","ABALÁ","APOZOL"]
[2,null,"DECLARACIÓN DE IMPUESTOS",null,"AMPLIACION DE LA VIGENCIA DE LA CONSTANCIA",null,"APOYO_INFONAVIT","ECONOMIA AMERICANA","ECONOMIA AMERICANA","NÓMINA ESPECIAL","ECONOMIA AMERICANA","PREMIER","NORMAL","NORMAL","PREMIER","ECONOMIA AMERICANA","HIPOTECA CON HSBC","ECONOMIA AMERICANA",null,"PFAE","FUNCIONARIO",null,null,"FUNCIONARIO",null,24,null,"ECONOMIA AMERICANA",null,"BAJA_CALIFORNIA",null,"ASIENTOS","MEXICALI","LA PAZ","SEYBAPLAYA","ACUÑA","COLIMA","ACALA","ALDAMA","AZCAPOTZALCO","CANELAS","ACÁMBARO","ACATEPEC","ACAXOCHITLÁN","ACATLÁN DE JUÁREZ","ACOLMAN","AGUILILLA","ATLATLAHUCAN","AHUACATLÁN","AGUALEGUAS","ACATLÁN DE PÉREZ FIGUEROA","ZOQUIAPAN","ARROYO SECO","BENITO JUÁREZ","ALAQUINES","ANGOSTURA","AGUA PRIETA","CÁRDENAS","ALDAMA","AMAXAC DE GUERRERO","ACATLÁN","ACANCEH","APULCO"]
[null,null,"E VISOR",null,"DB431 SCORE RECHAZADO",null,"CI_MAS_CB","HIPOTECA VERDE","HIPOTECA VERDE","NORMAL","EMPLEADO GSC","ECONOMIA AMERICANA","PREMIER","PREMIER","WEALTH & PREMIER EXECUTIVE","NÓMINA HSBC","HIPOTECA CON OTRO BANCO","NORMAL",null,"PROF","DIRECTIVO",null,null,"DIRECTIVO",null,23,null,"EMPLEADO GSC",null,"BAJA_CALIFORNIA_SUR",null,"CALVILLO","PLAYAS DE ROSARITO","LORETO","PALIZADA","ALLENDE","COMALA","ACAPETAHUA","ALLENDE","BENITO JUÁREZ","CONETO DE COMONFORT","APASEO EL ALTO","AHUACUOTZINGO","ACTOPAN","AHUALULCO DE MERCADO","ACULCO","ÁLVARO OBREGÓN","AXOCHIAPAN","AMATLÁN DE CAÑAS","ALLENDE","ÁNIMAS TRUJANO","ZONGOZOTLA","CADEREYTA DE MONTES","COZUMEL","AQUISMÓN","BADIRAGUATO","ÁLAMOS","CENTLA","ALTAMIRA","APETATITLÁN DE ANTONIO CARVAJAL","ACAYUCAN","AKIL","ATOLINGA"]
[null,null,"ESTADO DE CUENTA",null,"DS001 SCORE RECHAZADO",null,"COFINANCIAMIENTO","NÓMINA ESPECIAL","NÓMINA ESPECIAL","PREMIER","EMPLEADO HSBC",null,null,"WEALTH & PREMIER EXECUTIVE",null,"NORMAL","NORMAL","PREMIER",null,"PF_Y_PFAE_O_PROF","PENSIONADO/JUBILADO",null,null,"PENSIONADO/JUBILADO",null,22,null,"EMPLEADO HSBC",null,"CAMPECHE",null,"COSÍO","SAN FELIPE","LOS CABOS","HOPELCHÉN","ARTEAGA","COQUIMATLÁN","ALDAMA","AQUILES SERDÁN","COYOACÁN","CUENCAMÉ","APASEO EL GRANDE","AJUCHITLÁN DEL PROGRESO","AGUA BLANCA DE ITURBIDE","AMACUECA","ALMOLOYA DE ALQUISIRAS","ANGAMACUTIRO","AYALA","BAHÍA DE BANDERAS","ANÁHUAC","ASUNCIÓN CACALOTEPEC","ZINACATEPEC","COLÓN","FELIPE CARRILLO PUERTO","ARMADILLO DE LOS INFANTE","CHOIX","ALTAR","CENTRO","ANTIGUO MORELOS","APIZACO","ACTOPAN","BACA","BENITO JUÁREZ"]
[null,null,"PERSONA MORAL",null,"DISMINUCION DE OBLIGACIONES",null,"CONSTRUCCIÓN","NÓMINA HSBC","NÓMINA HSBC","WEALTH & PREMIER EXECUTIVE","FOVISSSTE PARA TODOS",null,null,null,null,"PREMIER","WEALTH & PREMIER EXECUTIVE",null,null,null,null,null,null,"SOCIO/DUEÑO/PROPIETARIO",null,21,null,"FOVISSSTE PARA TODOS",null,"COAHUILA",null,"EL LLANO","SAN QUINTÍN","MULEGÉ","HECELCHAKÁN","CANDELA","CUAUHTÉMOC","ALTAMIRANO","ASCENSIÓN","CUAJIMALPA DE MORELOS","DURANGO","ATARJEA","ALCOZAUCA DE GUERRERO","AJACUBA","AMATITÁN","ALMOLOYA DE JUÁREZ","ANGANGUEO","COATETELCO","COMPOSTELA","APODACA","ASUNCIÓN CUYOTEPEJI","ZIHUATEUTLA","CORREGIDORA","ISLA MUJERES","AXTLA DE TERRAZAS","CONCORDIA","ARIVECHI","COMALCALCO","BURGOS","ATLANGATEPEC","ACULA","BOKOBÁ","CALERA"]
[null,null,"RECIBO DE NÓMINA",null,"EDAD MAS PLAZO MAYOR AL LIMITE MAXIMO",null,"CONSTRUCCIÓN_MAS_TERRENO","NORMAL","NORMAL",null,"HIPOTECA VERDE",null,null,null,null,"WEALTH & PREMIER EXECUTIVE",null,null,null,null,null,null,null,"PROFESIONISTA INDEPENDIENTE",null,20,null,"HIPOTECA CON HSBC",null,"COLIMA",null,"JESÚS MARÍA","TECATE",null,"ESCÁRCEGA","CASTAÑOS","IXTLAHUACÁN","AMATÁN","BACHÍNIVA","CUAUHTÉMOC","EL ORO","CELAYA","ALPOYECA","ALFAJAYUCAN","AMECA","ALMOLOYA DEL RÍO","APATZINGÁN","COATLÁN DEL RÍO","DEL NAYAR","ARAMBERRI","ASUNCIÓN IXTALTEPEC","ZAUTLA","EL MARQUÉS","JOSÉ MARÍA MORELOS","CÁRDENAS","COSALÁ","ARIZPE","CUNDUACÁN","BUSTAMANTE","ATLTZAYANCA","ACULTZINGO","BUCTZOTZ","CAÑITAS DE FELIPE PESCADOR"]
[null,null,"REPORTE DE BURO EN USA",null,"EDAD MAYOR AL LIMITE MAXIMO PERMITIDO POR POLITICA",null,"LIQUIDEZ","PREMIER","PREMIER",null,"NÓMINA ESPECIAL",null,null,null,null,"EMPLEADO GSC",null,null,null,null,null,null,null,null,null,19,null,"HIPOTECA CON OTRO BANCO",null,"CHIAPAS",null,"PABELLÓN DE ARTEAGA","TIJUANA",null,"DZITBALCHÉ","CUATRO CIÉNEGAS","MANZANILLO","AMATENANGO DE LA FRONTERA","BALLEZA","GUSTAVO A. MADERO","GENERAL SIMÓN BOLÍVAR","COMONFORT","APAXTLA","ALMOLOYA","ARANDAS","AMANALCO","APORO","CUAUTLA","HUAJICORI","BUSTAMANTE","ASUNCIÓN NOCHIXTLÁN","ZARAGOZA","EZEQUIEL MONTES","LÁZARO CÁRDENAS","CATORCE","CULIACÁN","ATIL","EMILIANO ZAPATA","CAMARGO","BENITO JUÁREZ","AGUA DULCE","CACALCHÉN","CHALCHIHUITES"]
[null,null,null,null,"EXCEDE EL NUMERO DE CREDITOS VIGENTES",null,"LIQUIDEZ_TOPUP","WEALTH & PREMIER EXECUTIVE","WEALTH & PREMIER EXECUTIVE",null,"NÓMINA HSBC",null,null,null,null,"EMPLEADO HSBC",null,null,null,null,null,null,null,null,null,18,null,"HIPOTECA VERDE",null,"CHIHUAHUA",null,"RINCÓN DE ROMOS",null,null,"CHAMPOTÓN","ESCOBEDO","MINATITLÁN","AMATENANGO DEL VALLE","BATOPILAS DE MANUEL GÓMEZ MORÍN","IZTACALCO","GÓMEZ PALACIO","CORONEO","ARCELIA","APAN","ATEMAJAC DE BRIZUELA","AMATEPEC","AQUILA","CUERNAVACA","IXTLÁN DEL RÍO","CADEREYTA JIMÉNEZ","ASUNCIÓN OCOTLÁN","ZAPOTITLÁN DE MÉNDEZ","HUIMILPAN","OTHÓN P. BLANCO","CEDRAL","EL FUERTE","BACADÉHUACHI","HUIMANGUILLO","CASAS","CALPULALPAN","ÁLAMO TEMAPACHE","CALOTMUL","CONCEPCIÓN DEL ORO"]
[null,null,null,null,"FINANCIAMIENTO A LOS SUJETOS DE CREDITO QUE REQUIEREN AUTORIZACION ESPECIAL",null,"PAGO_DE_HIPOTECAS","FOVISSSTE PARA TODOS",null,null,"NORMAL",null,null,null,null,null,null,null,null,null,null,null,null,null,null,17,null,"NÓMINA ESPECIAL",null,"CIUDAD_DE_MÉXICO",null,"SAN FRANCISCO DE LOS ROMO",null,null,"CARMEN","FRANCISCO I. MADERO","TECOMÁN","ÁNGEL ALBINO CORZO","BOCOYNA","IZTAPALAPA","GUADALUPE VICTORIA","CORTAZAR","ATENANGO DEL RÍO","ATITALAQUIA","ATENGO","AMECAMECA","ARIO","EMILIANO ZAPATA","JALA","CERRALVO","ASUNCIÓN TLACOLULITA","ZAPOTITLÁN","JALPAN DE SERRA","PUERTO MORELOS","CERRITOS","ELOTA","BACANORA","JALAPA","CIUDAD MADERO","CHIAUTEMPAN","ALPATLÁHUAC","CANSAHCAB","CUAUHTÉMOC"]
[null,null,null,null,"FORMATO MIGRATORIO NO VALIDO",null,"PAGO_HIPOTECA_MAS_LÍQUIDEZ","EMPLEADO GSC",null,null,"PODER JUDICIAL",null,null,null,null,null,null,null,null,null,null,null,null,null,null,16,null,"NÓMINA HSBC",null,"DURANGO",null,"SAN JOSÉ DE GRACIA",null,null,"CANDELARIA","FRONTERA","VILLA DE ÁLVAREZ","ARRIAGA","BUENAVENTURA","LA MAGDALENA CONTRERAS","GUANACEVÍ","CUERÁMARO","ATLAMAJALCINGO DEL MONTE","ATLAPEXCO","ATENGUILLO","APAXCO","ARTEAGA","HUEYAPAN","LA YESCA","CHINA","AYOQUEZCO DE ALDAMA","ZACATLÁN","LANDA DE MATAMOROS","SOLIDARIDAD","CERRO DE SAN PEDRO","ESCUINAPA","BACERAC","JALPA DE MÉNDEZ","CRUILLAS","CONTLA DE JUAN CUAMATZI","ALTO LUCERO DE GUTIÉRREZ BARRIOS","CANTAMAYEC","EL PLATEADO DE JOAQUÍN AMARO"]
[null,null,null,null,"INCREMENTO AL LTV DE FINANCIAMIENTO",null,"REMODELACION","EMPLEADO HSBC",null,null,"PREMIER",null,null,null,null,null,null,null,null,null,null,null,null,null,null,15,null,"NORMAL",null,"GUANAJUATO",null,"TEPEZALÁ",null,null,"CAMPECHE","GENERAL CEPEDA",null,"BEJUCAL DE OCAMPO","CAMARGO","MIGUEL HIDALGO","HIDALGO","DOCTOR MORA","ATLIXTAC","ATOTONILCO DE TULA","ATOTONILCO EL ALTO","ATENCO","BRISEÑAS","HUITZILAC","ROSAMORADA","CIÉNEGA DE FLORES","AYOTZINTEPEC","ZACAPOAXTLA","PEDRO ESCOBEDO","TULUM","CHARCAS","GUASAVE","BACOACHI","JONUTA","EL MANTE","CUAPIAXTLA","ALTOTONGA","CELESTÚN","EL SALVADOR"]
[null,null,null,null,"INCREMENTO DE CAPACIDAD DE PAGO",null,null,null,null,null,"PREMIER INFONAVIT",null,null,null,null,null,null,null,null,null,null,null,null,null,null,14,null,"PEMEX",null,"GERRERO",null,null,null,null,"CALKINÍ","GUERRERO",null,"BELLA VISTA","CARICHÍ","MILPA ALTA","INDÉ","DOLORES HIDALGO CUNA DE LA INDEPENDENCIA NACIONAL","ATOYAC DE ÁLVAREZ","ATOTONILCO EL GRANDE","ATOYAC","ATIZAPÁN","BUENAVISTA","JANTETELCO","RUÍZ","DOCTOR ARROYO","CALIHUALÁ","ZACAPALA","PEÑAMILLER",null,"CIUDAD DEL MAÍZ","MAZATLÁN","BÁCUM","MACUSPANA","GÓMEZ FARÍAS","CUAXOMULCO","ALVARADO","CENOTILLO","FRESNILLO"]
[null,null,null,null,"INGRESOS FUERA DE NORMATIVIDAD",null,null,null,null,null,"WEALTH & PREMIER EXECUTIVE",null,null,null,null,null,null,null,null,null,null,null,null,null,null,13,null,"PODER JUDICIAL",null,"HIDALGO",null,null,null,null,"CALAKMUL","HIDALGO",null,"BENEMÉRITO DE LAS AMÉRICAS","CASAS GRANDES","TLÁHUAC","LERDO","GUANAJUATO","AYUTLA DE LOS LIBRES","CALNALI","AUTLÁN DE NAVARRO","ATIZAPÁN DE ZARAGOZA","CARÁCUARO","JIUTEPEC","SAN BLAS","DOCTOR COSS","CANDELARIA LOXICHA","YEHUALTEPEC","PINAL DE AMOLES",null,"CIUDAD FERNÁNDEZ","MOCORITO","BANÁMICHI","NACAJUCA","GONZÁLEZ","EL CARMEN TEQUEXQUITLA","AMATITLÁN","CHACSINKÍN","GENARO CODINA"]
[null,null,null,null,"MALAS REFERENCIAS INTERNAS (WHIRL, KRONER, OH-CARDS, CUENTAS DE CAPTACION SOBREGIRADAS).",null,null,null,null,null,null,null,null,null,null,null,null,null,null,null,null,null,null,null,null,12,null,"PREMIER",null,"JALISCO",null,null,null,null,null,"JIMÉNEZ",null,"BERRIOZÁBAL","CHIHUAHUA","TLALPAN","MAPIMÍ","HUANÍMARO","AZOYÚ","CARDONAL","AYOTLÁN","ATLACOMULCO","CHARAPAN","JOJUTLA","SAN PEDRO LAGUNILLAS","DOCTOR GONZÁLEZ","CAPULÁLPAM DE MÉNDEZ","YAONÁHUAC","QUERÉTARO",null,"CIUDAD VALLES","NAVOLATO","BAVIÁCORA","PARAÍSO","GÜÉMEZ","EMILIANO ZAPATA","AMATLÁN DE LOS REYES","CHANKOM","GENERAL ENRIQUE ESTRADA"]
[null,null,null,null,"MONTO A FINANCIAR MAYOR AL ESTABLECIDO",null,null,null,null,null,null,null,null,null,null,null,null,null,null,null,null,null,null,null,null,11,null,"PREMIER INFONAVIT",null,"ESTADO_DE_MEXICO",null,null,null,null,null,"JUÁREZ",null,"BOCHIL","CHÍNIPAS","VENUSTIANO CARRANZA","MEZQUITAL","IRAPUATO","BENITO JUÁREZ","CHAPANTONGO","AYUTLA","ATLAUTLA","CHARO","JONACATEPEC DE LEANDRO VALLE","SANTA MARÍA DEL ORO","EL CARMEN","CHAHUITES","XOCHITLÁN TODOS SANTOS","SAN JOAQUÍN",null,"COXCATLÁN","ROSARIO","BAVISPE","TACOTALPA","GUERRERO","ESPAÑITA","ANGEL R. CABADA","CHAPAB","GENERAL FRANCISCO R. MURGUÍA"]
[null,null,null,null,"MONTO A FINANCIAR MENOR AL MINIMO DEL PRODUCTO",null,null,null,null,null,null,null,null,null,null,null,null,null,null,null,null,null,null,null,null,10,null,"WEALTH & PREMIER EXECUTIVE",null,"MICHOACÁN",null,null,null,null,null,"LAMADRID",null,"CACAHOATÁN","CORONADO","XOCHIMILCO","NAZAS","JARAL DEL PROGRESO","BUENAVISTA DE CUÉLLAR","CHAPULHUACÁN","BOLAÑOS","AXAPUSCO","CHAVINDA","MAZATEPEC","SANTIAGO IXCUINTLA","GALEANA","CHALCATONGO DE HIDALGO","XOCHITLÁN DE VICENTE SUÁREZ","SAN JUAN DEL RÍO",null,"EBANO","SALVADOR ALVARADO","BENITO JUÁREZ","TEAPA","GUSTAVO DÍAZ ORDAZ","HUAMANTLA","APAZAPAN","CHEMAX","GENERAL PÁNFILO NATERA"]
[null,null,null,null,"NO CUMPLE CON EL INGRESO MINIMO DEL PRODUCTO",null,null,null,null,null,null,null,null,null,null,null,null,null,null,null,null,null,null,null,null,9,null,null,null,"MORELOS",null,null,null,null,null,"MATAMOROS",null,"CAPITÁN LUIS ÁNGEL VIDAL","COYAME DEL SOTOL",null,"NOMBRE DE DIOS","JERÉCUARO","CHILAPA DE ÁLVAREZ","CHILCUAUTLA","CABO CORRIENTES","AYAPANGO","CHERÁN","MIACATLÁN","TECUALA","GARCÍA","CHIQUIHUITLÁN DE BENITO JUÁREZ","XOCHILTEPEC","TEQUISQUIAPAN",null,"EL NARANJO","SAN IGNACIO","BENJAMÍN HILL","TENOSIQUE","HIDALGO","HUEYOTLIPAN","AQUILA","CHICHIMILÁ","GUADALUPE"]
[null,null,null,null,"NO CUMPLE CON LA EDAD MINIMA DEL PRODUCTO",null,null,null,null,null,null,null,null,null,null,null,null,null,null,null,null,null,null,null,null,8,null,null,null,"NAYARIT",null,null,null,null,null,"MONCLOVA",null,"CATAZAJÁ","CUAUHTÉMOC",null,"NUEVO IDEAL","LEÓN","CHILPANCINGO DE LOS BRAVO","CUAUTEPEC DE HINOJOSA","CAÑADAS DE OBREGÓN","CALIMAYA","CHILCHOTA","OCUITUCO","TEPIC","GENERAL BRAVO","CIÉNEGA DE ZIMATLÁN","XOCHIAPULCO","TOLIMÁN",null,"GUADALCÁZAR","SINALOA","CABORCA",null,"JAUMAVE","IXTACUIXTLA DE MARIANO MATAMOROS","ASTACINGA","CHICXULUB PUEBLO","HUANUSCO"]
[null,null,null,null,"POLITICAS INTERNAS (HAWK)",null,null,null,null,null,null,null,null,null,null,null,null,null,null,null,null,null,null,null,null,7,null,null,null,"NUEVO_LEÓN",null,null,null,null,null,"MORELOS",null,"CHALCHIHUITÁN","CUSIHUIRIACHI",null,"OCAMPO","MANUEL DOBLADO","COAHUAYUTLA DE JOSÉ MARÍA IZAZAGA","EL ARENAL","CASIMIRO CASTILLO","CAPULHUAC","CHINICUILA","PUENTE DE IXTLA","TUXPAN","GENERAL ESCOBEDO","CIUDAD IXTEPEC","XIUTETELCO",null,null,"HUEHUETLÁN",null,"CAJEME",null,"JIMÉNEZ","IXTENCO","ATLAHUILCO","CHIKINDZONOT","JALPA"]
[null,null,null,null,"REFERENCIAS NEGATIVAS LAR",null,null,null,null,null,null,null,null,null,null,null,null,null,null,null,null,null,null,null,null,6,null,null,null,"OAXACA",null,null,null,null,null,"MÚZQUIZ",null,"CHAMULA","DELICIAS",null,"OTÁEZ","MOROLEÓN","COCHOAPA EL GRANDE","ELOXOCHITLÁN","CHAPALA","CHALCO","CHUCÁNDIRO","TEMIXCO","XALISCO","GENERAL TERÁN","COATECAS ALTAS","XICOTLÁN",null,null,"LAGUNILLAS",null,"CANANEA",null,"LLERA","LA MAGDALENA TLALTELULCO","ATOYAC","CHOCHOLÁ","JEREZ"]
[null,null,null,null,"REGLAS DE BURO DE CREDITO D&B RECHAZADO",null,null,null,null,null,null,null,null,null,null,null,null,null,null,null,null,null,null,null,null,5,null,null,null,"PUEBLA",null,null,null,null,null,"NADADORES",null,"CHANAL","DR. BELISARIO DOMÍNGUEZ",null,"PÁNUCO DE CORONADO","OCAMPO","COCULA","EMILIANO ZAPATA","CHIMALTITÁN","CHAPA DE MOTA","CHURINTZIO","TEMOAC",null,"GENERAL TREVIÑO","COICOYÁN DE LAS FLORES","XICOTEPEC",null,null,"MATEHUALA",null,"CARBÓ",null,"MAINERO","LÁZARO CÁRDENAS","ATZACAN","CHUMAYEL","JIMÉNEZ DEL TEUL"]
[null,null,null,null,"REGLAS DE BURO DE CREDITO RECHAZADO",null,null,null,null,null,null,null,null,null,null,null,null,null,null,null,null,null,null,null,null,null,null,null,null,"QUERÉTARO",null,null,null,null,null,"NAVA",null,"CHAPULTENANGO","EL TULE",null,"PEÑÓN BLANCO","PÉNJAMO","COPALA","EPAZOYUCAN","CHIQUILISTLÁN","CHAPULTEPEC","CHURUMUCO","TEPALCINGO",null,"GENERAL ZARAGOZA","CONCEPCIÓN BUENAVISTA","XAYACATLÁN DE BRAVO",null,null,"MATLAPA",null,"CUCURPE",null,"MATAMOROS","MAZATECOCHCO DE JOSÉ MARÍA MORELOS","ATZALAN","CONKAL","JUAN ALDAMA"]
[null,null,null,null,"SIN ANTIGUEDAD MINIMA EN EL EMPLEO U OCUPACION",null,null,null,null,null,null,null,null,null,null,null,null,null,null,null,null,null,null,null,null,null,null,null,null,"QUINTANA_ROO",null,null,null,null,null,"OCAMPO",null,"CHENALHÓ","GALEANA",null,"POANAS","PUEBLO NUEVO","COPALILLO","FRANCISCO I. MADERO","CIHUATLÁN","CHIAUTLA","COAHUAYANA","TEPOZTLÁN",null,"GENERAL ZUAZUA","CONCEPCIÓN PÁPALO","VICENTE GUERRERO",null,null,"MEXQUITIC DE CARMONA",null,"CUMPAS",null,"MÉNDEZ","MUÑOZ DE DOMINGO ARENAS","AYAHUALULCO","CUNCUNUL","JUCHIPILA"]
[null,null,null,null,"SIN REFERENCIAS DE CREDITO O MENORES A 7 MESES",null,null,null,null,null,null,null,null,null,null,null,null,null,null,null,null,null,null,null,null,null,null,null,null,"SAN_LUIS_POTOSI",null,null,null,null,null,"PARRAS",null,"CHIAPA DE CORZO","GÓMEZ FARÍAS",null,"PUEBLO NUEVO","PURÍSIMA DEL RINCÓN","COPANATOYAC","HUASCA DE OCAMPO","COCULA","CHICOLOAPAN","COALCOMÁN DE VÁZQUEZ PALLARES","TETECALA",null,"GUADALUPE","CONSTANCIA DEL ROSARIO","VENUSTIANO CARRANZA",null,null,"MOCTEZUMA",null,"DIVISADEROS",null,"MIER","NANACAMILPA DE MARIANO ARISTA","BANDERILLA","CUZAMÁ","LORETO"]
[null,null,null,null,"TRAMITE DE 3ER HIPOTECA",null,null,null,null,null,null,null,null,null,null,null,null,null,null,null,null,null,null,null,null,null,null,null,null,"SINALOA",null,null,null,null,null,"PIEDRAS NEGRAS",null,"CHIAPILLA","GRAN MORELOS",null,"RODEO","ROMITA","COYUCA DE BENÍTEZ","HUAUTLA","COLOTLÁN","CHICONCUAC","COENEO","TETELA DEL VOLCÁN",null,"HIDALGO","COSOLAPA","TZICATLACOYAN",null,null,"RAYÓN",null,"EMPALME",null,"MIGUEL ALEMÁN","NATÍVITAS","BENITO JUÁREZ","DZAN","LUIS MOYA"]
[null,null,null,null,"WORLD CHECK RECHAZADO",null,null,null,null,null,null,null,null,null,null,null,null,null,null,null,null,null,null,null,null,null,null,null,null,"SONORA",null,null,null,null,null,"PROGRESO",null,"CHICOASÉN","GUACHOCHI",null,"SAN BERNARDO","SALAMANCA","COYUCA DE CATALÁN","HUAZALINGO","CONCEPCIÓN DE BUENOS AIRES","CHIMALHUACÁN","COJUMATLÁN DE RÉGULES","TLALNEPANTLA",null,"HIGUERAS","COSOLTEPEC","TUZAMAPAN DE GALEANA",null,null,"RIOVERDE",null,"ETCHOJOA",null,"MIQUIHUANA","PANOTLA","BOCA DEL RÍO","DZEMUL","MAZAPIL"]
[null,null,null,null,"OTRAS",null,null,null,null,null,null,null,null,null,null,null,null,null,null,null,null,null,null,null,null,null,null,null,null,"TABASCO",null,null,null,null,null,"RAMOS ARIZPE",null,"CHICOMUSELO","GUADALUPE",null,"SAN DIMAS","SALVATIERRA","CUAJINICUILAPA","HUEHUETLA","CUAUTITLÁN DE GARCÍA BARRAGÁN","COACALCO DE BERRIOZÁBAL","CONTEPEC","TLALTIZAPÁN DE ZAPATA",null,"HUALAHUISES","CUILÁPAM DE GUERRERO","TULCINGO",null,null,"SALINAS",null,"FRONTERAS",null,"NUEVO LAREDO","PAPALOTLA DE XICOHTÉNCATL","CALCAHUALCO","DZIDZANTÚN","MELCHOR OCAMPO"]
[null,null,null,null,null,null,null,null,null,null,null,null,null,null,null,null,null,null,null,null,null,null,null,null,null,null,null,null,null,"TAMAULIPAS",null,null,null,null,null,"SABINAS",null,"CHILÓN","GUADALUPE Y CALVO",null,"SAN JUAN DE GUADALUPE","SAN DIEGO DE LA UNIÓN","CUALÁC","HUEJUTLA DE REYES","CUAUTLA","COATEPEC HARINAS","COPÁNDARO","TLAQUILTENANGO",null,"ITURBIDE","CUYAMECALCO VILLA DE ZARAGOZA","TOTOLTEPEC DE GUERRERO",null,null,"SAN ANTONIO",null,"GENERAL PLUTARCO ELÍAS CALLES",null,"NUEVO MORELOS","SAN DAMIÁN TEXÓLOC","CAMARÓN DE TEJEDA","DZILAM DE BRAVO","MEZQUITAL DEL ORO"]
[null,null,null,null,null,null,null,null,null,null,null,null,null,null,null,null,null,null,null,null,null,null,null,null,null,null,null,null,null,"TLAXCALA",null,null,null,null,null,"SACRAMENTO",null,"CINTALAPA DE FIGUEROA","GUAZAPARES",null,"SAN JUAN DEL RÍO","SAN FELIPE","CUAUTEPEC","HUICHAPAN","CUQUÍO","COCOTITLÁN","COTIJA","TLAYACAPAN",null,"JUÁREZ","EL BARRIO DE LA SOLEDAD","TOCHTEPEC",null,null,"SAN CIRO DE ACOSTA",null,"GRANADOS",null,"OCAMPO","SAN FRANCISCO TETLANOHCAN","CAMERINO Z. MENDOZA","DZILAM GONZÁLEZ","MIGUEL AUZA"]
[null,null,null,null,null,null,null,null,null,null,null,null,null,null,null,null,null,null,null,null,null,null,null,null,null,null,null,null,null,"VERACRUZ",null,null,null,null,null,"SALTILLO",null,"COAPILLA","GUERRERO",null,"SAN LUIS DEL CORDERO","SAN FRANCISCO DEL RINCÓN","CUETZALA DEL PROGRESO","IXMIQUILPAN","DEGOLLADO","COYOTEPEC","CUITZEO","TOTOLAPAN",null,"LAMPAZOS DE NARANJO","EL ESPINAL","TOCHIMILCO",null,null,"SAN LUIS POTOSÍ",null,"GUAYMAS",null,"PADILLA","SAN JERÓNIMO ZACUALPAN","CARLOS A. CARRILLO","DZITÁS","MOMAX"]
[null,null,null,null,null,null,null,null,null,null,null,null,null,null,null,null,null,null,null,null,null,null,null,null,null,null,null,null,null,"YUCATÁN",null,null,null,null,null,"SAN BUENAVENTURA",null,"COMITÁN DE DOMÍNGUEZ","HIDALGO DEL PARRAL",null,"SAN PEDRO DEL GALLO","SAN JOSÉ ITURBIDE","CUTZAMALA DE PINZÓN","JACALA DE LEDEZMA","EJUTLA","CUAUTITLÁN","ECUANDUREO","XOCHITEPEC",null,"LINARES","ELOXOCHITLÁN DE FLORES MAGÓN","TLAXCO",null,null,"SAN MARTÍN CHALCHICUAUTLA",null,"HERMOSILLO",null,"PALMILLAS","SAN JOSÉ TEACALCO","CARRILLO PUERTO","DZONCAUICH","MONTE ESCOBEDO"]
[null,null,null,null,null,null,null,null,null,null,null,null,null,null,null,null,null,null,null,null,null,null,null,null,null,null,null,null,null,"ZACATECAS",null,null,null,null,null,"SAN JUAN DE SABINAS",null,"COPAINALÁ","HUEJOTITÁN",null,"SANTA CLARA","SAN LUIS DE LA PAZ","EDUARDO NERI","JALTOCÁN","EL ARENAL","CUAUTITLÁN IZCALLI","EPITACIO HUERTA","XOXOCOTLA",null,"LOS ALDAMAS","FRESNILLO DE TRUJANO","TLATLAUQUITEPEC",null,null,"SAN NICOLÁS TOLENTINO",null,"HUACHINERA",null,"REYNOSA","SAN JUAN HUACTZINCO","CASTILLO DE TEAYO","ESPITA","MORELOS"]
[null,null,null,null,null,null,null,null,null,null,null,null,null,null,null,null,null,null,null,null,null,null,null,null,null,null,null,null,null,null,null,null,null,null,null,"SAN PEDRO",null,"EL BOSQUE","IGNACIO ZARAGOZA",null,"SANTIAGO PAPASQUIARO","SAN MIGUEL DE ALLENDE","FLORENCIO VILLARREAL","JUÁREZ HIDALGO","EL GRULLO","DONATO GUERRA","ERONGARÍCUARO","YAUTEPEC",null,"LOS HERRERAS","GUADALUPE DE RAMÍREZ","TLAPANALÁ",null,null,"SAN VICENTE TANCUAYALAB",null,"HUÁSABAS",null,"RÍO BRAVO","SAN LORENZO AXOCOMANITLA","CATEMACO","HALACHÓ","MOYAHUA DE ESTRADA"]
[null,null,null,null,null,null,null,null,null,null,null,null,null,null,null,null,null,null,null,null,null,null,null,null,null,null,null,null,null,null,null,null,null,null,null,"SIERRA MOJADA",null,"EL PARRAL","JANOS",null,"SÚCHIL","SANTA CATARINA","GENERAL CANUTO A. NERI","LA MISIÓN","EL LIMÓN","ECATEPEC DE MORELOS","GABRIEL ZAMORA","YECAPIXTLA",null,"LOS RAMONES","GUADALUPE ETLA","TLAPACOYA",null,null,"SANTA CATARINA",null,"HUATABAMPO",null,"SAN CARLOS","SAN LUCAS TECOPILCO","CAZONES DE HERRERA","HOCABÁ","NOCHISTLÁN DE MEJÍA"]
[null,null,null,null,null,null,null,null,null,null,null,null,null,null,null,null,null,null,null,null,null,null,null,null,null,null,null,null,null,null,null,null,null,null,null,"TORREÓN",null,"EL PORVENIR","JIMÉNEZ",null,"TAMAZULA","SANTA CRUZ DE JUVENTINO ROSAS","GENERAL HELIODORO CASTILLO","LOLOTLA","EL SALTO","ECATZINGO","HIDALGO","ZACATEPEC",null,"MARÍN","GUELATAO DE JUÁREZ","TLAOLA",null,null,"SANTA MARÍA DEL RÍO",null,"HUÉPAC",null,"SAN FERNANDO","SAN PABLO DEL MONTE","CERRO AZUL","HOCTÚN","NORIA DE ÁNGELES"]
[null,null,null,null,null,null,null,null,null,null,null,null,null,null,null,null,null,null,null,null,null,null,null,null,null,null,null,null,null,null,null,null,null,null,null,"VIESCA",null,"EMILIANO ZAPATA","JUÁREZ",null,"TEPEHUANES","SANTIAGO MARAVATÍO","HUAMUXTITLÁN","METEPEC","ENCARNACIÓN DE DÍAZ","EL ORO","HUANDACAREO","ZACUALPAN DE AMILPAS",null,"MELCHOR OCAMPO","GUEVEA DE HUMBOLDT","TLANEPANTLA",null,null,"SANTO DOMINGO",null,"IMURIS",null,"SAN NICOLÁS","SANCTÓRUM DE LÁZARO CÁRDENAS","CHACALTIANGUIS","HOMÚN","OJOCALIENTE"]
[null,null,null,null,null,null,null,null,null,null,null,null,null,null,null,null,null,null,null,null,null,null,null,null,null,null,null,null,null,null,null,null,null,null,null,"VILLA UNIÓN",null,"ESCUINTLA","JULIMES",null,"TLAHUALILO","SILAO DE LA VICTORIA","HUITZUCO DE LOS FIGUEROA","METZTITLÁN","ETZATLÁN","HUEHUETOCA","HUANIQUEO",null,null,"MIER Y NORIEGA","HEROICA CIUDAD DE EJUTLA DE CRESPO","TLALTENANGO",null,null,"SOLEDAD DE GRACIANO SÁNCHEZ",null,"LA COLORADA",null,"SOTO LA MARINA","SANTA ANA NOPALUCAN","CHALMA","HUHÍ","PÁNUCO"]
[null,null,null,null,null,null,null,null,null,null,null,null,null,null,null,null,null,null,null,null,null,null,null,null,null,null,null,null,null,null,null,null,null,null,null,"ZARAGOZA",null,"FRANCISCO LEÓN","LA CRUZ",null,"TOPIA","TARANDACUAO","IGUALA DE LA INDEPENDENCIA","MINERAL DE LA REFORMA","GÓMEZ FARÍAS","HUEYPOXTLA","HUETAMO",null,null,"MINA","HEROICA CIUDAD DE HUAJUAPAN DE LEÓN","TLAHUAPAN",null,null,"TAMASOPO",null,"MAGDALENA",null,"TAMPICO","SANTA APOLONIA TEACALCO","CHICONAMEL","HUNUCMÁ","PINOS"]
[null,null,null,null,null,null,null,null,null,null,null,null,null,null,null,null,null,null,null,null,null,null,null,null,null,null,null,null,null,null,null,null,null,null,null,null,null,"FRONTERA COMALAPA","LÓPEZ",null,"VICENTE GUERRERO","TARIMORO","IGUALAPA","MINERAL DEL CHICO","GUACHINANGO","HUIXQUILUCAN","HUIRAMBA",null,null,"MONTEMORELOS","HEROICA CIUDAD DE TLAXIACO","TLACUILOTEPEC",null,null,"TAMAZUNCHALE",null,"MAZATÁN",null,"TULA","SANTA CATARINA AYOMETLA","CHICONQUIACO","IXIL","RÍO GRANDE"]
[null,null,null,null,null,null,null,null,null,null,null,null,null,null,null,null,null,null,null,null,null,null,null,null,null,null,null,null,null,null,null,null,null,null,null,null,null,"FRONTERA HIDALGO","MADERA",null,null,"TIERRA BLANCA","ILIATENCO","MINERAL DEL MONTE","GUADALAJARA","ISIDRO FABELA","INDAPARAPEO",null,null,"MONTERREY","HEROICA VILLA DE SAN BLAS ATEMPA","TLACOTEPEC DE BENITO JUÁREZ",null,null,"TAMPACÁN",null,"MOCTEZUMA",null,"VALLE HERMOSO","SANTA CRUZ QUILEHTLA","CHICONTEPEC","IZAMAL","SAIN ALTO"]
[null,null,null,null,null,null,null,null,null,null,null,null,null,null,null,null,null,null,null,null,null,null,null,null,null,null,null,null,null,null,null,null,null,null,null,null,null,"HONDURAS DE LA SIERRA","MAGUARICHI",null,null,"URIANGATO","IXCATEOPAN DE CUAUHTÉMOC","MIXQUIAHUALA DE JUÁREZ","HOSTOTIPAQUILLO","IXTAPALUCA","IRIMBO",null,null,"PARÁS","HUAUTEPEC","TLACHICHUCA",null,null,"TAMPAMOLÓN CORONA",null,"NACO",null,"VICTORIA","SANTA CRUZ TLAXCALA","CHINAMECA","KANASÍN","SANTA MARÍA DE LA PAZ"]
[null,null,null,null,null,null,null,null,null,null,null,null,null,null,null,null,null,null,null,null,null,null,null,null,null,null,null,null,null,null,null,null,null,null,null,null,null,"HUEHUETÁN","MANUEL BENAVIDES",null,null,"VALLE DE SANTIAGO","JOSÉ JOAQUÍN DE HERRERA","MOLANGO DE ESCAMILLA","HUEJÚCAR","IXTAPAN DE LA SAL","IXTLÁN",null,null,"PESQUERÍA","HUAUTLA DE JIMÉNEZ","TILAPA",null,null,"TAMUÍN",null,"NÁCORI CHICO",null,"VILLAGRÁN","SANTA ISABEL XILOXOXTLA","CHINAMPA DE GOROSTIZA","KANTUNIL","SOMBRERETE"]
[null,null,null,null,null,null,null,null,null,null,null,null,null,null,null,null,null,null,null,null,null,null,null,null,null,null,null,null,null,null,null,null,null,null,null,null,null,"HUITIUPÁN","MATACHÍ",null,null,"VICTORIA","JUAN R. ESCUDERO","NICOLÁS FLORES","HUEJUQUILLA EL ALTO","IXTAPAN DEL ORO","JACONA",null,null,"RAYONES","IXPANTEPEC NIEVES","TIANGUISMANALCO",null,null,"TANCANHUITZ",null,"NACOZARI DE GARCÍA",null,"XICOTÉNCATL","TENANCINGO","CHOCAMÁN","KAUA","SUSTICACÁN"]
[null,null,null,null,null,null,null,null,null,null,null,null,null,null,null,null,null,null,null,null,null,null,null,null,null,null,null,null,null,null,null,null,null,null,null,null,null,"HUIXTÁN","MATAMOROS",null,null,"VILLAGRÁN","JUCHITÁN","NOPALA DE VILLAGRÁN","IXTLAHUACÁN DE LOS MEMBRILLOS","IXTLAHUACA","JIMÉNEZ",null,null,"SABINAS HIDALGO","IXTLÁN DE JUÁREZ","TEZIUTLÁN",null,null,"TANLAJÁS",null,"NAVOJOA",null,null,"TEOLOCHOLCO","CHONTLA","KINCHIL","TABASCO"]
[null,null,null,null,null,null,null,null,null,null,null,null,null,null,null,null,null,null,null,null,null,null,null,null,null,null,null,null,null,null,null,null,null,null,null,null,null,"HUIXTLA","MEOQUI",null,null,"XICHÚ","LA UNIÓN DE ISIDORO MONTES DE OCA","OMITLÁN DE JUÁREZ","IXTLAHUACÁN DEL RÍO","JALTENCO","JIQUILPAN",null,null,"SALINAS VICTORIA","JUCHITÁN DE ZARAGOZA","TETELES DE ÁVILA CASTILLO",null,null,"TANQUIÁN DE ESCOBEDO",null,"NOGALES",null,null,"TEPETITLA DE LARDIZÁBAL","CHUMATLÁN","KOPOMÁ","TEPECHITLÁN"]
[null,null,null,null,null,null,null,null,null,null,null,null,null,null,null,null,null,null,null,null,null,null,null,null,null,null,null,null,null,null,null,null,null,null,null,null,null,"IXHUATÁN","MORELOS",null,null,"YURIRIA","LAS VIGAS","PACHUCA DE SOTO","JALOSTOTITLÁN","JILOTEPEC","JOSÉ SIXTO VERDUZCO",null,null,"SAN NICOLÁS DE LOS GARZA","LA COMPAÑÍA","TETELA DE OCAMPO",null,null,"TIERRA NUEVA",null,"ÓNAVAS",null,null,"TEPEYANCO","CITLALTÉPETL","MAMA","TEPETONGO"]
[null,null,null,null,null,null,null,null,null,null,null,null,null,null,null,null,null,null,null,null,null,null,null,null,null,null,null,null,null,null,null,null,null,null,null,null,null,"IXTACOMITÁN","MORIS",null,null,null,"LEONARDO BRAVO","PACULA","JAMAY","JILOTZINGO","JUÁREZ",null,null,"SAN PEDRO GARZA GARCÍA","LA PE","TEPEYAHUALCO DE CUAUHTÉMOC",null,null,"VANEGAS",null,"OPODEPE",null,null,"TERRENATE","COACOATZINTLA","MANÍ","TEÚL DE GONZÁLEZ ORTEGA"]
[null,null,null,null,null,null,null,null,null,null,null,null,null,null,null,null,null,null,null,null,null,null,null,null,null,null,null,null,null,null,null,null,null,null,null,null,null,"IXTAPA","NAMIQUIPA",null,null,null,"MALINALTEPEC","PISAFLORES","JESÚS MARÍA","JIQUIPILCO","JUNGAPEO",null,null,"SANTA CATARINA","LA REFORMA","TEPEYAHUALCO",null,null,"VENADO",null,"OQUITOA",null,null,"TETLA DE LA SOLIDARIDAD","COAHUITLÁN","MAXCANÚ","TLALTENANGO DE SÁNCHEZ ROMÁN"]
[null,null,null,null,null,null,null,null,null,null,null,null,null,null,null,null,null,null,null,null,null,null,null,null,null,null,null,null,null,null,null,null,null,null,null,null,null,"IXTAPANGAJOYA","NONOAVA",null,null,null,"MARQUELIA","PROGRESO DE OBREGÓN","JILOTLÁN DE LOS DOLORES","JOCOTITLÁN","LA HUACANA",null,null,"SANTIAGO","LA TRINIDAD VISTA HERMOSA","TEPEXI DE RODRÍGUEZ",null,null,"VILLA DE ARISTA",null,"PITIQUITO",null,null,"TETLATLAHUCA","COATEPEC","MAYAPÁN","TRANCOSO"]
[null,null,null,null,null,null,null,null,null,null,null,null,null,null,null,null,null,null,null,null,null,null,null,null,null,null,null,null,null,null,null,null,null,null,null,null,null,"JIQUIPILAS","NUEVO CASAS GRANDES",null,null,null,"MÁRTIR DE CUILAPAN","SAN AGUSTÍN METZQUITITLÁN","JOCOTEPEC","JOQUICINGO","LA PIEDAD",null,null,"VALLECILLO","LOMA BONITA","TEPEXCO",null,null,"VILLA DE ARRIAGA",null,"PUERTO PEÑASCO",null,null,"TLAXCALA","COATZACOALCOS","MÉRIDA","TRINIDAD GARCÍA DE LA CADENA"]
[null,null,null,null,null,null,null,null,null,null,null,null,null,null,null,null,null,null,null,null,null,null,null,null,null,null,null,null,null,null,null,null,null,null,null,null,null,"JITOTOL","OCAMPO",null,null,null,"METLATÓNOC","SAN AGUSTÍN TLAXIACA","JUANACATLÁN","JUCHITEPEC","LAGUNILLAS",null,null,"VILLALDAMA","MAGDALENA APASCO","TEPETZINTLA",null,null,"VILLA DE GUADALUPE",null,"QUIRIEGO",null,null,"TLAXCO","COATZINTLA","MOCOCHÁ","VALPARAÍSO"]
[null,null,null,null,null,null,null,null,null,null,null,null,null,null,null,null,null,null,null,null,null,null,null,null,null,null,null,null,null,null,null,null,null,null,null,null,null,"JUÁREZ","OJINAGA",null,null,null,"MOCHITLÁN","SAN BARTOLO TUTOTEPEC","JUCHITLÁN","LA PAZ","LÁZARO CÁRDENAS",null,null,null,"MAGDALENA JALTEPEC","TEPEOJUMA",null,null,"VILLA DE LA PAZ",null,"RAYÓN",null,null,"TOCATLÁN","COETZALA","MOTUL","VETAGRANDE"]
[null,null,null,null,null,null,null,null,null,null,null,null,null,null,null,null,null,null,null,null,null,null,null,null,null,null,null,null,null,null,null,null,null,null,null,null,null,"LA CONCORDIA","PRAXEDIS G. GUERRERO",null,null,null,"ÑUU SAVI","SAN FELIPE ORIZATLÁN","LA BARCA","LERMA","LOS REYES",null,null,null,"MAGDALENA MIXTEPEC","TEPEMAXALCO",null,null,"VILLA DE RAMOS",null,"ROSARIO",null,null,"TOTOLAC","COLIPA","MUNA","VILLA DE COS"]
[null,null,null,null,null,null,null,null,null,null,null,null,null,null,null,null,null,null,null,null,null,null,null,null,null,null,null,null,null,null,null,null,null,null,null,null,null,"LA GRANDEZA","RIVA PALACIO",null,null,null,"OLINALÁ","SAN SALVADOR","LA HUERTA","LUVIANOS","MADERO",null,null,null,"MAGDALENA OCOTLÁN","TEPEACA",null,null,"VILLA DE REYES",null,"SAHUARIPA",null,null,"TZOMPANTEPEC","COMAPA","MUXUPIP","VILLA GARCÍA"]
[null,null,null,null,null,null,null,null,null,null,null,null,null,null,null,null,null,null,null,null,null,null,null,null,null,null,null,null,null,null,null,null,null,null,null,null,null,"LA INDEPENDENCIA","ROSALES",null,null,null,"OMETEPEC","SANTIAGO DE ANAYA","LA MANZANILLA DE LA PAZ","MALINALCO","MARAVATÍO",null,null,null,"MAGDALENA PEÑASCO","TEPATLAXCO DE HIDALGO",null,null,"VILLA HIDALGO",null,"SAN FELIPE DE JESÚS",null,null,"XALOZTOC","CÓRDOBA","OPICHÉN","VILLA GONZÁLEZ ORTEGA"]
[null,null,null,null,null,null,null,null,null,null,null,null,null,null,null,null,null,null,null,null,null,null,null,null,null,null,null,null,null,null,null,null,null,null,null,null,null,"LA LIBERTAD","ROSARIO",null,null,null,"PEDRO ASCENCIO ALQUISIRAS","SANTIAGO TULANTEPEC DE LUGO GUERRERO","LAGOS DE MORENO","MELCHOR OCAMPO","MARCOS CASTELLANOS",null,null,null,"MAGDALENA TEITIPAC","TEPANGO DE RODRÍGUEZ",null,null,"VILLA JUÁREZ",null,"SAN IGNACIO RÍO MUERTO",null,null,"XALTOCAN","COSAMALOAPAN DE CARPIO","OXKUTZCAB","VILLA HIDALGO"]
[null,null,null,null,null,null,null,null,null,null,null,null,null,null,null,null,null,null,null,null,null,null,null,null,null,null,null,null,null,null,null,null,null,null,null,null,null,"LA TRINITARIA","SAN FRANCISCO DE BORJA",null,null,null,"PETATLÁN","SINGUILUCAN","MAGDALENA","METEPEC","MORELIA",null,null,null,"MAGDALENA TEQUISISTLÁN","TEPANCO DE LÓPEZ",null,null,"XILITLA",null,"SAN JAVIER",null,null,"XICOHTZINCO","COSAUTLÁN DE CARVAJAL","PANABÁ","VILLANUEVA"]
[null,null,null,null,null,null,null,null,null,null,null,null,null,null,null,null,null,null,null,null,null,null,null,null,null,null,null,null,null,null,null,null,null,null,null,null,null,"LARRÁINZAR","SAN FRANCISCO DE CONCHOS",null,null,null,"PILCAYA","TASQUILLO","MASCOTA","MEXICALTZINGO","MORELOS",null,null,null,"MAGDALENA TLACOTEPEC","TEOTLALCO",null,null,"ZARAGOZA",null,"SAN LUIS RÍO COLORADO",null,null,"YAUHQUEMEHCAN","COSCOMATEPEC","PETO","ZACATECAS"]
[null,null,null,null,null,null,null,null,null,null,null,null,null,null,null,null,null,null,null,null,null,null,null,null,null,null,null,null,null,null,null,null,null,null,null,null,null,"LAS MARGARITAS","SAN FRANCISCO DEL ORO",null,null,null,"PUNGARABATO","TECOZAUTLA","MAZAMITLA","MORELOS","MÚGICA",null,null,null,"MAGDALENA YODOCONO DE PORFIRIO DÍAZ","TEOPANTLÁN",null,null,null,null,"SAN MIGUEL DE HORCASITAS",null,null,"ZACATELCO","COSOLEACAQUE","PROGRESO"]
[null,null,null,null,null,null,null,null,null,null,null,null,null,null,null,null,null,null,null,null,null,null,null,null,null,null,null,null,null,null,null,null,null,null,null,null,null,"LAS ROSAS","SANTA BÁRBARA",null,null,null,"QUECHULTENANGO","TENANGO DE DORIA","MEXTICACÁN","NAUCALPAN DE JUÁREZ","NAHUATZEN",null,null,null,"MAGDALENA ZAHUATLÁN","TENAMPULCO",null,null,null,null,"SAN PEDRO DE LA CUEVA",null,null,"ZILTLALTÉPEC DE TRINIDAD SÁNCHEZ SANTOS","COTAXTLA","QUINTANA ROO"]
[null,null,null,null,null,null,null,null,null,null,null,null,null,null,null,null,null,null,null,null,null,null,null,null,null,null,null,null,null,null,null,null,null,null,null,null,null,"MAPASTEPEC","SANTA ISABEL",null,null,null,"SAN LUIS ACATLÁN","TEPEAPULCO","MEZQUITIC","NEXTLALPAN","NOCUPÉTARO",null,null,null,"MARISCALA DE JUÁREZ","TEHUITZINGO",null,null,null,null,"SANTA ANA",null,null,null,"COXQUIHUI","RÍO LAGARTOS"]
[null,null,null,null,null,null,null,null,null,null,null,null,null,null,null,null,null,null,null,null,null,null,null,null,null,null,null,null,null,null,null,null,null,null,null,null,null,"MARAVILLA TENEJAPA","SATEVÓ",null,null,null,"SAN MARCOS","TEPEHUACÁN DE GUERRERO","MIXTLÁN","NEZAHUALCÓYOTL","NUEVO PARANGARICUTIRO",null,null,null,"MÁRTIRES DE TACUBAYA","TEHUACÁN",null,null,null,null,"SANTA CRUZ",null,null,null,"COYUTLA","SACALUM"]
[null,null,null,null,null,null,null,null,null,null,null,null,null,null,null,null,null,null,null,null,null,null,null,null,null,null,null,null,null,null,null,null,null,null,null,null,null,"MARQUÉS DE COMILLAS","SAUCILLO",null,null,null,"SAN MIGUEL TOTOLAPAN","TEPEJI DEL RÍO DE OCAMPO","OCOTLÁN","NICOLÁS ROMERO","NUEVO URECHO",null,null,null,"MATÍAS ROMERO AVENDAÑO","TECOMATLÁN",null,null,null,null,"SÁRIC",null,null,null,"CUICHAPA","SAMAHIL"]
[null,null,null,null,null,null,null,null,null,null,null,null,null,null,null,null,null,null,null,null,null,null,null,null,null,null,null,null,null,null,null,null,null,null,null,null,null,"MAZAPA DE MADERO","TEMÓSACHIC",null,null,null,"SAN NICOLÁS","TEPETITLÁN","OJUELOS DE JALISCO","NOPALTEPEC","NUMARÁN",null,null,null,"MAZATLÁN VILLA DE FLORES","TECAMACHALCO",null,null,null,null,"SOYOPA",null,null,null,"CUITLÁHUAC","SAN FELIPE"]
[null,null,null,null,null,null,null,null,null,null,null,null,null,null,null,null,null,null,null,null,null,null,null,null,null,null,null,null,null,null,null,null,null,null,null,null,null,"MAZATÁN","URIQUE",null,null,null,"SANTA CRUZ DEL RINCÓN","TETEPANGO","PIHUAMO","OCOYOACAC","OCAMPO",null,null,null,"MESONES HIDALGO","TECALI DE HERRERA",null,null,null,null,"SUAQUI GRANDE",null,null,null,"EL HIGO","SANAHCAT"]
[null,null,null,null,null,null,null,null,null,null,null,null,null,null,null,null,null,null,null,null,null,null,null,null,null,null,null,null,null,null,null,null,null,null,null,null,null,"METAPA","URUACHI",null,null,null,"TAXCO DE ALARCÓN","TEZONTEPEC DE ALDAMA","PONCITLÁN","OCUILAN","PAJACUARÁN",null,null,null,"MIAHUATLÁN DE PORFIRIO DÍAZ","SOLTEPEC",null,null,null,null,"TEPACHE",null,null,null,"EMILIANO ZAPATA","SANTA ELENA"]
[null,null,null,null,null,null,null,null,null,null,null,null,null,null,null,null,null,null,null,null,null,null,null,null,null,null,null,null,null,null,null,null,null,null,null,null,null,"MEZCALAPA","VALLE DE ZARAGOZA",null,null,null,"TECOANAPA","TIANGUISTENGO","PUERTO VALLARTA","OTUMBA","PANINDÍCUARO",null,null,null,"MIXISTLÁN DE LA REFORMA","SANTO TOMÁS HUEYOTLIPAN",null,null,null,null,"TRINCHERAS",null,null,null,"ESPINAL","SEYÉ"]
[null,null,null,null,null,null,null,null,null,null,null,null,null,null,null,null,null,null,null,null,null,null,null,null,null,null,null,null,null,null,null,null,null,null,null,null,null,"MITONTIC",null,null,null,null,"TÉCPAN DE GALEANA","TIZAYUCA","QUITUPAN","OTZOLOAPAN","PARACHO",null,null,null,"MONJAS","SANTIAGO MIAHUATLÁN",null,null,null,null,"TUBUTAMA",null,null,null,"FILOMENO MATA","SINANCHÉ"]
[null,null,null,null,null,null,null,null,null,null,null,null,null,null,null,null,null,null,null,null,null,null,null,null,null,null,null,null,null,null,null,null,null,null,null,null,null,"MONTECRISTO DE GUERRERO",null,null,null,null,"TELOLOAPAN","TLAHUELILPAN","SAN CRISTÓBAL DE LA BARRANCA","OTZOLOTEPEC","PARÁCUARO",null,null,null,"NATIVIDAD","SANTA ISABEL CHOLULA",null,null,null,null,"URES",null,null,null,"FORTÍN","SOTUTA"]
[null,null,null,null,null,null,null,null,null,null,null,null,null,null,null,null,null,null,null,null,null,null,null,null,null,null,null,null,null,null,null,null,null,null,null,null,null,"MOTOZINTLA",null,null,null,null,"TEPECOACUILCO DE TRUJANO","TLAHUILTEPA","SAN DIEGO DE ALEJANDRÍA","OZUMBA","PÁTZCUARO",null,null,null,"NAZARENO ETLA","SANTA INÉS AHUATEMPAN",null,null,null,null,"VILLA HIDALGO",null,null,null,"GUTIÉRREZ ZAMORA","SUCILÁ"]
[null,null,null,null,null,null,null,null,null,null,null,null,null,null,null,null,null,null,null,null,null,null,null,null,null,null,null,null,null,null,null,null,null,null,null,null,null,"NICOLÁS RUÍZ",null,null,null,null,"TETIPAC","TLANALAPA","SAN GABRIEL","PAPALOTLA","PENJAMILLO",null,null,null,"NEJAPA DE MADERO","SANTA CATARINA TLALTEMPAN",null,null,null,null,"VILLA PESQUEIRA",null,null,null,"HIDALGOTITLÁN","SUDZAL"]
[null,null,null,null,null,null,null,null,null,null,null,null,null,null,null,null,null,null,null,null,null,null,null,null,null,null,null,null,null,null,null,null,null,null,null,null,null,"OCOSINGO",null,null,null,null,"TIXTLA DE GUERRERO","TLANCHINOL","SAN IGNACIO CERRO GORDO","POLOTITLÁN","PERIBÁN",null,null,null,"NUEVO ZOQUIÁPAM","SAN SEBASTIÁN TLACOTEPEC",null,null,null,null,"YÉCORA",null,null,null,"HUATUSCO","SUMA"]
[null,null,null,null,null,null,null,null,null,null,null,null,null,null,null,null,null,null,null,null,null,null,null,null,null,null,null,null,null,null,null,null,null,null,null,null,null,"OCOTEPEC",null,null,null,null,"TLACOACHISTLAHUACA","TLAXCOAPAN","SAN JUAN DE LOS LAGOS","RAYÓN","PURÉPERO",null,null,null,"OAXACA DE JUÁREZ","SAN SALVADOR HUIXCOLOTLA",null,null,null,null,null,null,null,null,"HUAYACOCOTLA","TAHDZIÚ"]
[null,null,null,null,null,null,null,null,null,null,null,null,null,null,null,null,null,null,null,null,null,null,null,null,null,null,null,null,null,null,null,null,null,null,null,null,null,"OCOZOCOAUTLA DE ESPINOSA",null,null,null,null,"TLACOAPA","TOLCAYUCA","SAN JUANITO DE ESCOBEDO","SAN ANTONIO LA ISLA","PURUÁNDIRO",null,null,null,"OCOTLÁN DE MORELOS","SAN SALVADOR EL VERDE",null,null,null,null,null,null,null,null,"HUEYAPAN DE OCAMPO","TAHMEK"]
[null,null,null,null,null,null,null,null,null,null,null,null,null,null,null,null,null,null,null,null,null,null,null,null,null,null,null,null,null,null,null,null,null,null,null,null,null,"OSTUACÁN",null,null,null,null,"TLALCHAPA","TULA DE ALLENDE","SAN JULIÁN","SAN FELIPE DEL PROGRESO","QUERÉNDARO",null,null,null,"PINOTEPA DE DON LUIS","SAN SALVADOR EL SECO",null,null,null,null,null,null,null,null,"HUILOAPAN DE CUAUHTÉMOC","TEABO"]
[null,null,null,null,null,null,null,null,null,null,null,null,null,null,null,null,null,null,null,null,null,null,null,null,null,null,null,null,null,null,null,null,null,null,null,null,null,"OSUMACINTA",null,null,null,null,"TLALIXTAQUILLA DE MALDONADO","TULANCINGO DE BRAVO","SAN MARCOS","SAN JOSÉ DEL RINCÓN","QUIROGA",null,null,null,"PLUMA HIDALGO","SAN PEDRO YELOIXTLAHUACA",null,null,null,null,null,null,null,null,"IGNACIO DE LA LLAVE","TECOH"]
[null,null,null,null,null,null,null,null,null,null,null,null,null,null,null,null,null,null,null,null,null,null,null,null,null,null,null,null,null,null,null,null,null,null,null,null,null,"OXCHUC",null,null,null,null,"TLAPA DE COMONFORT","VILLA DE TEZONTEPEC","SAN MARTÍN DE BOLAÑOS","SAN MARTÍN DE LAS PIRÁMIDES","SAHUAYO",null,null,null,"PUTLA VILLA DE GUERRERO","SAN PEDRO CHOLULA",null,null,null,null,null,null,null,null,"ILAMATLÁN","TEKAL DE VENEGAS"]
[null,null,null,null,null,null,null,null,null,null,null,null,null,null,null,null,null,null,null,null,null,null,null,null,null,null,null,null,null,null,null,null,null,null,null,null,null,"PALENQUE",null,null,null,null,"TLAPEHUALA","XOCHIATIPAN","SAN MARTÍN HIDALGO","SAN MATEO ATENCO","SALVADOR ESCALANTE",null,null,null,"REFORMA DE PINEDA","SAN PABLO ANICANO",null,null,null,null,null,null,null,null,"ISLA","TEKANTÓ"]
[null,null,null,null,null,null,null,null,null,null,null,null,null,null,null,null,null,null,null,null,null,null,null,null,null,null,null,null,null,null,null,null,null,null,null,null,null,"PANTELHÓ",null,null,null,null,"XALPATLÁHUAC","XOCHICOATLÁN","SAN MIGUEL EL ALTO","SAN SIMÓN DE GUERRERO","SAN LUCAS",null,null,null,"REYES ETLA","SAN NICOLÁS DE LOS RANCHOS",null,null,null,null,null,null,null,null,"IXCATEPEC","TEKAX"]
[null,null,null,null,null,null,null,null,null,null,null,null,null,null,null,null,null,null,null,null,null,null,null,null,null,null,null,null,null,null,null,null,null,null,null,null,null,"PANTEPEC",null,null,null,null,"XOCHIHUEHUETLÁN","YAHUALICA","SAN PEDRO TLAQUEPAQUE","SANTO TOMÁS","SANTA ANA MAYA",null,null,null,"ROJAS DE CUAUHTÉMOC","SAN NICOLÁS BUENOS AIRES",null,null,null,null,null,null,null,null,"IXHUACÁN DE LOS REYES","TEKIT"]
[null,null,null,null,null,null,null,null,null,null,null,null,null,null,null,null,null,null,null,null,null,null,null,null,null,null,null,null,null,null,null,null,null,null,null,null,null,"PICHUCALCO",null,null,null,null,"XOCHISTLAHUACA","ZACUALTIPÁN DE ÁNGELES","SAN SEBASTIÁN DEL OESTE","SOYANIQUILPAN DE JUÁREZ","SENGUIO",null,null,null,"SALINA CRUZ","SAN MIGUEL XOXTLA",null,null,null,null,null,null,null,null,"IXHUATLÁN DE MADERO","TEKOM"]
[null,null,null,null,null,null,null,null,null,null,null,null,null,null,null,null,null,null,null,null,null,null,null,null,null,null,null,null,null,null,null,null,null,null,null,null,null,"PIJIJIAPAN",null,null,null,null,"ZAPOTITLÁN TABLAS","ZAPOTLÁN DE JUÁREZ","SANTA MARÍA DE LOS ÁNGELES","SULTEPEC","SUSUPUATO",null,null,null,"SAN AGUSTÍN AMATENGO","SAN MIGUEL IXITLÁN",null,null,null,null,null,null,null,null,"IXHUATLÁN DEL CAFÉ","TELCHAC PUEBLO"]
[null,null,null,null,null,null,null,null,null,null,null,null,null,null,null,null,null,null,null,null,null,null,null,null,null,null,null,null,null,null,null,null,null,null,null,null,null,"PUEBLO NUEVO SOLISTAHUACÁN",null,null,null,null,"ZIHUATANEJO DE AZUETA","ZEMPOALA","SANTA MARÍA DEL ORO","TECÁMAC","TACÁMBARO",null,null,null,"SAN AGUSTÍN ATENANGO","SAN MATÍAS TLALANCALECA",null,null,null,null,null,null,null,null,"IXHUATLÁN DEL SURESTE","TELCHAC PUERTO"]
[null,null,null,null,null,null,null,null,null,null,null,null,null,null,null,null,null,null,null,null,null,null,null,null,null,null,null,null,null,null,null,null,null,null,null,null,null,"RAYÓN",null,null,null,null,"ZIRÁNDARO","ZIMAPÁN","SAYULA","TEJUPILCO","TANCÍTARO",null,null,null,"SAN AGUSTÍN CHAYUCO","SAN MARTÍN TOTOLTEPEC",null,null,null,null,null,null,null,null,"IXHUATLANCILLO","TEMAX"]
[null,null,null,null,null,null,null,null,null,null,null,null,null,null,null,null,null,null,null,null,null,null,null,null,null,null,null,null,null,null,null,null,null,null,null,null,null,"REFORMA",null,null,null,null,"ZITLALA",null,"TALA","TEMAMATLA","TANGAMANDAPIO",null,null,null,"SAN AGUSTÍN DE LAS JUNTAS","SAN MARTÍN TEXMELUCAN",null,null,null,null,null,null,null,null,"IXMATLAHUACAN","TEMOZÓN"]
[null,null,null,null,null,null,null,null,null,null,null,null,null,null,null,null,null,null,null,null,null,null,null,null,null,null,null,null,null,null,null,null,null,null,null,null,null,"RINCÓN CHAMULA SAN PEDRO",null,null,null,null,null,null,"TALPA DE ALLENDE","TEMASCALAPA","TANGANCÍCUARO",null,null,null,"SAN AGUSTÍN ETLA","SAN JUAN ATZOMPA",null,null,null,null,null,null,null,null,"IXTACZOQUITLÁN","TEPAKÁN"]
[null,null,null,null,null,null,null,null,null,null,null,null,null,null,null,null,null,null,null,null,null,null,null,null,null,null,null,null,null,null,null,null,null,null,null,null,null,"SABANILLA",null,null,null,null,null,null,"TAMAZULA DE GORDIANO","TEMASCALCINGO","TANHUATO",null,null,null,"SAN AGUSTÍN LOXICHA","SAN JUAN ATENCO",null,null,null,null,null,null,null,null,"JALACINGO","TETIZ"]
[null,null,null,null,null,null,null,null,null,null,null,null,null,null,null,null,null,null,null,null,null,null,null,null,null,null,null,null,null,null,null,null,null,null,null,null,null,"SALTO DE AGUA",null,null,null,null,null,null,"TAPALPA","TEMASCALTEPEC","TARETAN",null,null,null,"SAN AGUSTÍN TLACOTEPEC","SAN JOSÉ MIAHUATLÁN",null,null,null,null,null,null,null,null,"JALCOMULCO","TEYA"]
[null,null,null,null,null,null,null,null,null,null,null,null,null,null,null,null,null,null,null,null,null,null,null,null,null,null,null,null,null,null,null,null,null,null,null,null,null,"SAN ANDRÉS DURAZNAL",null,null,null,null,null,null,"TECALITLÁN","TEMOAYA","TARÍMBARO",null,null,null,"SAN AGUSTÍN YATARENI","SAN JOSÉ CHIAPA",null,null,null,null,null,null,null,null,"JÁLTIPAN","TICUL"]
[null,null,null,null,null,null,null,null,null,null,null,null,null,null,null,null,null,null,null,null,null,null,null,null,null,null,null,null,null,null,null,null,null,null,null,null,null,"SAN CRISTÓBAL DE LAS CASAS",null,null,null,null,null,null,"TECHALUTA DE MONTENEGRO","TENANCINGO","TEPALCATEPEC",null,null,null,"SAN ANDRÉS CABECERA NUEVA","SAN JERÓNIMO XAYACATLÁN",null,null,null,null,null,null,null,null,"JAMAPA","TIMUCUY"]
[null,null,null,null,null,null,null,null,null,null,null,null,null,null,null,null,null,null,null,null,null,null,null,null,null,null,null,null,null,null,null,null,null,null,null,null,null,"SAN FERNANDO",null,null,null,null,null,null,"TECOLOTLÁN","TENANGO DEL AIRE","TINGAMBATO",null,null,null,"SAN ANDRÉS DINICUITI","SAN JERÓNIMO TECUANIPAN",null,null,null,null,null,null,null,null,"JESÚS CARRANZA","TINUM"]
[null,null,null,null,null,null,null,null,null,null,null,null,null,null,null,null,null,null,null,null,null,null,null,null,null,null,null,null,null,null,null,null,null,null,null,null,null,"SAN JUAN CANCUC",null,null,null,null,null,null,"TENAMAXTLÁN","TENANGO DEL VALLE","TINGÜINDÍN",null,null,null,"SAN ANDRÉS HUAXPALTEPEC","SAN GREGORIO ATZOMPA",null,null,null,null,null,null,null,null,"JILOTEPEC","TIXCACALCUPUL"]
[null,null,null,null,null,null,null,null,null,null,null,null,null,null,null,null,null,null,null,null,null,null,null,null,null,null,null,null,null,null,null,null,null,null,null,null,null,"SAN LUCAS",null,null,null,null,null,null,"TEOCALTICHE","TEOLOYUCAN","TIQUICHEO DE NICOLÁS ROMERO",null,null,null,"SAN ANDRÉS HUAYÁPAM","SAN GABRIEL CHILAC",null,null,null,null,null,null,null,null,"JOSÉ AZUETA","TIXKOKOB"]
[null,null,null,null,null,null,null,null,null,null,null,null,null,null,null,null,null,null,null,null,null,null,null,null,null,null,null,null,null,null,null,null,null,null,null,null,null,"SANTIAGO EL PINAR",null,null,null,null,null,null,"TEOCUITATLÁN DE CORONA","TEOTIHUACÁN","TLALPUJAHUA",null,null,null,"SAN ANDRÉS IXTLAHUACA","SAN FELIPE TEPATLÁN",null,null,null,null,null,null,null,null,"JUAN RODRÍGUEZ CLARA","TIXMÉHUAC"]
[null,null,null,null,null,null,null,null,null,null,null,null,null,null,null,null,null,null,null,null,null,null,null,null,null,null,null,null,null,null,null,null,null,null,null,null,null,"SILTEPEC",null,null,null,null,null,null,"TEPATITLÁN DE MORELOS","TEPETLAOXTOC","TLAZAZALCA",null,null,null,"SAN ANDRÉS LAGUNAS","SAN FELIPE TEOTLALCINGO",null,null,null,null,null,null,null,null,"JUCHIQUE DE FERRER","TIXPÉHUAL"]
[null,null,null,null,null,null,null,null,null,null,null,null,null,null,null,null,null,null,null,null,null,null,null,null,null,null,null,null,null,null,null,null,null,null,null,null,null,"SIMOJOVEL",null,null,null,null,null,null,"TEQUILA","TEPETLIXPA","TOCUMBO",null,null,null,"SAN ANDRÉS NUXIÑO","SAN DIEGO LA MESA TOCHIMILTZINGO",null,null,null,null,null,null,null,null,"LA ANTIGUA","TIZIMÍN"]
[null,null,null,null,null,null,null,null,null,null,null,null,null,null,null,null,null,null,null,null,null,null,null,null,null,null,null,null,null,null,null,null,null,null,null,null,null,"SITALÁ",null,null,null,null,null,null,"TEUCHITLÁN","TEPOTZOTLÁN","TUMBISCATÍO",null,null,null,"SAN ANDRÉS PAXTLÁN","SAN ANTONIO CAÑADA",null,null,null,null,null,null,null,null,"LA PERLA","TUNKÁS"]
[null,null,null,null,null,null,null,null,null,null,null,null,null,null,null,null,null,null,null,null,null,null,null,null,null,null,null,null,null,null,null,null,null,null,null,null,null,"SOCOLTENANGO",null,null,null,null,null,null,"TIZAPÁN EL ALTO","TEQUIXQUIAC","TURICATO",null,null,null,"SAN ANDRÉS SINAXTLA","SAN ANDRÉS CHOLULA",null,null,null,null,null,null,null,null,"LANDERO Y COSS","TZUCACAB"]
[null,null,null,null,null,null,null,null,null,null,null,null,null,null,null,null,null,null,null,null,null,null,null,null,null,null,null,null,null,null,null,null,null,null,null,null,null,"SOLOSUCHIAPA",null,null,null,null,null,null,"TLAJOMULCO DE ZÚÑIGA","TEXCALTITLÁN","TUXPAN",null,null,null,"SAN ANDRÉS SOLAGA","RAFAEL LARA GRAJALES",null,null,null,null,null,null,null,null,"LAS CHOAPAS","UAYMA"]
[null,null,null,null,null,null,null,null,null,null,null,null,null,null,null,null,null,null,null,null,null,null,null,null,null,null,null,null,null,null,null,null,null,null,null,null,null,"SOYALÓ",null,null,null,null,null,null,"TOLIMÁN","TEXCALYACAC","TUZANTLA",null,null,null,"SAN ANDRÉS TEOTILÁLPAM","QUIMIXTLÁN",null,null,null,null,null,null,null,null,"LAS MINAS","UCÚ"]
[null,null,null,null,null,null,null,null,null,null,null,null,null,null,null,null,null,null,null,null,null,null,null,null,null,null,null,null,null,null,null,null,null,null,null,null,null,"SUCHIAPA",null,null,null,null,null,null,"TOMATLÁN","TEXCOCO","TZINTZUNTZAN",null,null,null,"SAN ANDRÉS TEPETLAPA","QUECHOLAC",null,null,null,null,null,null,null,null,"LAS VIGAS DE RAMÍREZ","UMÁN"]
[null,null,null,null,null,null,null,null,null,null,null,null,null,null,null,null,null,null,null,null,null,null,null,null,null,null,null,null,null,null,null,null,null,null,null,null,null,"SUCHIATE",null,null,null,null,null,null,"TONALÁ","TEZOYUCA","TZITZIO",null,null,null,"SAN ANDRÉS YAÁ","PUEBLA",null,null,null,null,null,null,null,null,"LERDO DE TEJADA","VALLADOLID"]
[null,null,null,null,null,null,null,null,null,null,null,null,null,null,null,null,null,null,null,null,null,null,null,null,null,null,null,null,null,null,null,null,null,null,null,null,null,"SUNUAPA",null,null,null,null,null,null,"TONAYA","TIANGUISTENCO","URUAPAN",null,null,null,"SAN ANDRÉS ZABACHE","PIAXTLA",null,null,null,null,null,null,null,null,"LOS REYES","XOCCHEL"]
[null,null,null,null,null,null,null,null,null,null,null,null,null,null,null,null,null,null,null,null,null,null,null,null,null,null,null,null,null,null,null,null,null,null,null,null,null,"TAPACHULA",null,null,null,null,null,null,"TONILA","TIMILPAN","VENUSTIANO CARRANZA",null,null,null,"SAN ANDRÉS ZAUTLA","PETLALCINGO",null,null,null,null,null,null,null,null,"MAGDALENA","YAXCABÁ"]
[null,null,null,null,null,null,null,null,null,null,null,null,null,null,null,null,null,null,null,null,null,null,null,null,null,null,null,null,null,null,null,null,null,null,null,null,null,"TAPALAPA",null,null,null,null,null,null,"TOTATICHE","TLALMANALCO","VILLAMAR",null,null,null,"SAN ANTONINO CASTILLO VELASCO","PANTEPEC",null,null,null,null,null,null,null,null,"MALTRATA","YAXKUKUL"]
[null,null,null,null,null,null,null,null,null,null,null,null,null,null,null,null,null,null,null,null,null,null,null,null,null,null,null,null,null,null,null,null,null,null,null,null,null,"TAPILULA",null,null,null,null,null,null,"TOTOTLÁN","TLALNEPANTLA DE BAZ","VISTA HERMOSA",null,null,null,"SAN ANTONINO EL ALTO","PALMAR DE BRAVO",null,null,null,null,null,null,null,null,"MANLIO FABIO ALTAMIRANO","YOBAÍN"]
[null,null,null,null,null,null,null,null,null,null,null,null,null,null,null,null,null,null,null,null,null,null,null,null,null,null,null,null,null,null,null,null,null,null,null,null,null,"TECPATÁN",null,null,null,null,null,null,"TUXCACUESCO","TLATLAYA","YURÉCUARO",null,null,null,"SAN ANTONINO MONTE VERDE","PAHUATLÁN",null,null,null,null,null,null,null,null,"MARIANO ESCOBEDO"]
[null,null,null,null,null,null,null,null,null,null,null,null,null,null,null,null,null,null,null,null,null,null,null,null,null,null,null,null,null,null,null,null,null,null,null,null,null,"TENEJAPA",null,null,null,null,null,null,"TUXCUECA","TOLUCA","ZACAPU",null,null,null,"SAN ANTONIO ACUTLA","ORIENTAL",null,null,null,null,null,null,null,null,"MARTÍNEZ DE LA TORRE"]
[null,null,null,null,null,null,null,null,null,null,null,null,null,null,null,null,null,null,null,null,null,null,null,null,null,null,null,null,null,null,null,null,null,null,null,null,null,"TEOPISCA",null,null,null,null,null,null,"TUXPAN","TONANITLA","ZAMORA",null,null,null,"SAN ANTONIO DE LA CAL","OLINTLA",null,null,null,null,null,null,null,null,"MECATLÁN"]
[null,null,null,null,null,null,null,null,null,null,null,null,null,null,null,null,null,null,null,null,null,null,null,null,null,null,null,null,null,null,null,null,null,null,null,null,null,"TILA",null,null,null,null,null,null,"UNIÓN DE SAN ANTONIO","TONATICO","ZINÁPARO",null,null,null,"SAN ANTONIO HUITEPEC","OCOYUCAN",null,null,null,null,null,null,null,null,"MECAYAPAN"]
[null,null,null,null,null,null,null,null,null,null,null,null,null,null,null,null,null,null,null,null,null,null,null,null,null,null,null,null,null,null,null,null,null,null,null,null,null,"TONALÁ",null,null,null,null,null,null,"UNIÓN DE TULA","TULTEPEC","ZINAPÉCUARO",null,null,null,"SAN ANTONIO NANAHUATÍPAM","OCOTEPEC",null,null,null,null,null,null,null,null,"MEDELLÍN DE BRAVO"]
[null,null,null,null,null,null,null,null,null,null,null,null,null,null,null,null,null,null,null,null,null,null,null,null,null,null,null,null,null,null,null,null,null,null,null,null,null,"TOTOLAPA",null,null,null,null,null,null,"VALLE DE GUADALUPE","TULTITLÁN","ZIRACUARETIRO",null,null,null,"SAN ANTONIO SINICAHUA","NOPALUCAN",null,null,null,null,null,null,null,null,"MIAHUATLÁN"]
[null,null,null,null,null,null,null,null,null,null,null,null,null,null,null,null,null,null,null,null,null,null,null,null,null,null,null,null,null,null,null,null,null,null,null,null,null,"TUMBALÁ",null,null,null,null,null,null,"VALLE DE JUÁREZ","VALLE DE BRAVO","ZITÁCUARO",null,null,null,"SAN ANTONIO TEPETLAPA","NICOLÁS BRAVO",null,null,null,null,null,null,null,null,"MINATITLÁN"]
[null,null,null,null,null,null,null,null,null,null,null,null,null,null,null,null,null,null,null,null,null,null,null,null,null,null,null,null,null,null,null,null,null,null,null,null,null,"TUXTLA CHICO",null,null,null,null,null,null,"VILLA CORONA","VALLE DE CHALCO SOLIDARIDAD",null,null,null,null,"SAN BALTAZAR CHICHICÁPAM","NEALTICAN",null,null,null,null,null,null,null,null,"MISANTLA"]
[null,null,null,null,null,null,null,null,null,null,null,null,null,null,null,null,null,null,null,null,null,null,null,null,null,null,null,null,null,null,null,null,null,null,null,null,null,"TUXTLA GUTIÉRREZ",null,null,null,null,null,null,"VILLA GUERRERO","VILLA DE ALLENDE",null,null,null,null,"SAN BALTAZAR LOXICHA","NAUZONTLA",null,null,null,null,null,null,null,null,"MIXTLA DE ALTAMIRANO"]
[null,null,null,null,null,null,null,null,null,null,null,null,null,null,null,null,null,null,null,null,null,null,null,null,null,null,null,null,null,null,null,null,null,null,null,null,null,"TUZANTÁN",null,null,null,null,null,null,"VILLA HIDALGO","VILLA DEL CARBÓN",null,null,null,null,"SAN BALTAZAR YATZACHI EL BAJO","NAUPAN",null,null,null,null,null,null,null,null,"MOLOACÁN"]
[null,null,null,null,null,null,null,null,null,null,null,null,null,null,null,null,null,null,null,null,null,null,null,null,null,null,null,null,null,null,null,null,null,null,null,null,null,"TZIMOL",null,null,null,null,null,null,"VILLA PURIFICACIÓN","VILLA GUERRERO",null,null,null,null,"SAN BARTOLO COYOTEPEC","MOLCAXAC",null,null,null,null,null,null,null,null,"NANCHITAL DE LÁZARO CÁRDENAS DEL RÍO"]
[null,null,null,null,null,null,null,null,null,null,null,null,null,null,null,null,null,null,null,null,null,null,null,null,null,null,null,null,null,null,null,null,null,null,null,null,null,"UNIÓN JUÁREZ",null,null,null,null,null,null,"YAHUALICA DE GONZÁLEZ GALLO","VILLA VICTORIA",null,null,null,null,"SAN BARTOLO SOYALTEPEC","MIXTLA",null,null,null,null,null,null,null,null,"NAOLINCO"]
[null,null,null,null,null,null,null,null,null,null,null,null,null,null,null,null,null,null,null,null,null,null,null,null,null,null,null,null,null,null,null,null,null,null,null,null,null,"VENUSTIANO CARRANZA",null,null,null,null,null,null,"ZACOALCO DE TORRES","XALATLACO",null,null,null,null,"SAN BARTOLO YAUTEPEC","MAZAPILTEPEC DE JUÁREZ",null,null,null,null,null,null,null,null,"NARANJAL"]
[null,null,null,null,null,null,null,null,null,null,null,null,null,null,null,null,null,null,null,null,null,null,null,null,null,null,null,null,null,null,null,null,null,null,null,null,null,"VILLA COMALTITLÁN",null,null,null,null,null,null,"ZAPOPAN","XONACATLÁN",null,null,null,null,"SAN BARTOLOMÉ AYAUTLA","LOS REYES DE JUÁREZ",null,null,null,null,null,null,null,null,"NARANJOS AMATLÁN"]
[null,null,null,null,null,null,null,null,null,null,null,null,null,null,null,null,null,null,null,null,null,null,null,null,null,null,null,null,null,null,null,null,null,null,null,null,null,"VILLA CORZO",null,null,null,null,null,null,"ZAPOTILTIC","ZACAZONAPAN",null,null,null,null,"SAN BARTOLOMÉ LOXICHA","LIBRES",null,null,null,null,null,null,null,null,"NAUTLA"]
[null,null,null,null,null,null,null,null,null,null,null,null,null,null,null,null,null,null,null,null,null,null,null,null,null,null,null,null,null,null,null,null,null,null,null,null,null,"VILLAFLORES",null,null,null,null,null,null,"ZAPOTITLÁN DE VADILLO","ZACUALPAN",null,null,null,null,"SAN BARTOLOMÉ QUIALANA","LAFRAGUA",null,null,null,null,null,null,null,null,"NOGALES"]
[null,null,null,null,null,null,null,null,null,null,null,null,null,null,null,null,null,null,null,null,null,null,null,null,null,null,null,null,null,null,null,null,null,null,null,null,null,"YAJALÓN",null,null,null,null,null,null,"ZAPOTLÁN DEL REY","ZINACANTEPEC",null,null,null,null,"SAN BARTOLOMÉ YUCUAÑE","LA MAGDALENA TLATLAUQUITEPEC",null,null,null,null,null,null,null,null,"OLUTA"]
[null,null,null,null,null,null,null,null,null,null,null,null,null,null,null,null,null,null,null,null,null,null,null,null,null,null,null,null,null,null,null,null,null,null,null,null,null,"ZINACANTÁN",null,null,null,null,null,null,"ZAPOTLÁN EL GRANDE","ZUMPAHUACÁN",null,null,null,null,"SAN BARTOLOMÉ ZOOGOCHO","JUAN N. MÉNDEZ",null,null,null,null,null,null,null,null,"OMEALCA"]
[null,null,null,null,null,null,null,null,null,null,null,null,null,null,null,null,null,null,null,null,null,null,null,null,null,null,null,null,null,null,null,null,null,null,null,null,null,null,null,null,null,null,null,null,"ZAPOTLANEJO","ZUMPANGO",null,null,null,null,"SAN BERNARDO MIXTEPEC","JUAN GALINDO",null,null,null,null,null,null,null,null,"ORIZABA"]
[null,null,null,null,null,null,null,null,null,null,null,null,null,null,null,null,null,null,null,null,null,null,null,null,null,null,null,null,null,null,null,null,null,null,null,null,null,null,null,null,null,null,null,null,null,null,null,null,null,null,"SAN CARLOS YAUTEPEC","JUAN C. BONILLA",null,null,null,null,null,null,null,null,"OTATITLÁN"]
[null,null,null,null,null,null,null,null,null,null,null,null,null,null,null,null,null,null,null,null,null,null,null,null,null,null,null,null,null,null,null,null,null,null,null,null,null,null,null,null,null,null,null,null,null,null,null,null,null,null,"SAN CRISTÓBAL AMATLÁN","JOPALA",null,null,null,null,null,null,null,null,"OTEAPAN"]
[null,null,null,null,null,null,null,null,null,null,null,null,null,null,null,null,null,null,null,null,null,null,null,null,null,null,null,null,null,null,null,null,null,null,null,null,null,null,null,null,null,null,null,null,null,null,null,null,null,null,"SAN CRISTÓBAL AMOLTEPEC","JONOTLA",null,null,null,null,null,null,null,null,"OZULUAMA DE MASCAREÑAS"]
[null,null,null,null,null,null,null,null,null,null,null,null,null,null,null,null,null,null,null,null,null,null,null,null,null,null,null,null,null,null,null,null,null,null,null,null,null,null,null,null,null,null,null,null,null,null,null,null,null,null,"SAN CRISTÓBAL LACHIRIOAG","JOLALPAN",null,null,null,null,null,null,null,null,"PAJAPAN"]
[null,null,null,null,null,null,null,null,null,null,null,null,null,null,null,null,null,null,null,null,null,null,null,null,null,null,null,null,null,null,null,null,null,null,null,null,null,null,null,null,null,null,null,null,null,null,null,null,null,null,"SAN CRISTÓBAL SUCHIXTLAHUACA","JALPAN",null,null,null,null,null,null,null,null,"PÁNUCO"]
[null,null,null,null,null,null,null,null,null,null,null,null,null,null,null,null,null,null,null,null,null,null,null,null,null,null,null,null,null,null,null,null,null,null,null,null,null,null,null,null,null,null,null,null,null,null,null,null,null,null,"SAN DIONISIO DEL MAR","IZÚCAR DE MATAMOROS",null,null,null,null,null,null,null,null,"PAPANTLA"]
[null,null,null,null,null,null,null,null,null,null,null,null,null,null,null,null,null,null,null,null,null,null,null,null,null,null,null,null,null,null,null,null,null,null,null,null,null,null,null,null,null,null,null,null,null,null,null,null,null,null,"SAN DIONISIO OCOTEPEC","IXTEPEC",null,null,null,null,null,null,null,null,"PASO DE OVEJAS"]
[null,null,null,null,null,null,null,null,null,null,null,null,null,null,null,null,null,null,null,null,null,null,null,null,null,null,null,null,null,null,null,null,null,null,null,null,null,null,null,null,null,null,null,null,null,null,null,null,null,null,"SAN DIONISIO OCOTLÁN","IXTACAMAXTITLÁN",null,null,null,null,null,null,null,null,"PASO DEL MACHO"]
[null,null,null,null,null,null,null,null,null,null,null,null,null,null,null,null,null,null,null,null,null,null,null,null,null,null,null,null,null,null,null,null,null,null,null,null,null,null,null,null,null,null,null,null,null,null,null,null,null,null,"SAN ESTEBAN ATATLAHUCA","IXCAQUIXTLA",null,null,null,null,null,null,null,null,"PEROTE"]
[null,null,null,null,null,null,null,null,null,null,null,null,null,null,null,null,null,null,null,null,null,null,null,null,null,null,null,null,null,null,null,null,null,null,null,null,null,null,null,null,null,null,null,null,null,null,null,null,null,null,"SAN FELIPE JALAPA DE DÍAZ","IXCAMILPA DE GUERRERO",null,null,null,null,null,null,null,null,"PLATÓN SÁNCHEZ"]
[null,null,null,null,null,null,null,null,null,null,null,null,null,null,null,null,null,null,null,null,null,null,null,null,null,null,null,null,null,null,null,null,null,null,null,null,null,null,null,null,null,null,null,null,null,null,null,null,null,null,"SAN FELIPE TEJALÁPAM","HUITZILTEPEC",null,null,null,null,null,null,null,null,"PLAYA VICENTE"]
[null,null,null,null,null,null,null,null,null,null,null,null,null,null,null,null,null,null,null,null,null,null,null,null,null,null,null,null,null,null,null,null,null,null,null,null,null,null,null,null,null,null,null,null,null,null,null,null,null,null,"SAN FELIPE USILA","HUITZILAN DE SERDÁN",null,null,null,null,null,null,null,null,"POZA RICA DE HIDALGO"]
[null,null,null,null,null,null,null,null,null,null,null,null,null,null,null,null,null,null,null,null,null,null,null,null,null,null,null,null,null,null,null,null,null,null,null,null,null,null,null,null,null,null,null,null,null,null,null,null,null,null,"SAN FRANCISCO CAHUACUÁ","HUEYTLALPAN",null,null,null,null,null,null,null,null,"PUEBLO VIEJO"]
[null,null,null,null,null,null,null,null,null,null,null,null,null,null,null,null,null,null,null,null,null,null,null,null,null,null,null,null,null,null,null,null,null,null,null,null,null,null,null,null,null,null,null,null,null,null,null,null,null,null,"SAN FRANCISCO CAJONOS","HUEYTAMALCO",null,null,null,null,null,null,null,null,"PUENTE NACIONAL"]
[null,null,null,null,null,null,null,null,null,null,null,null,null,null,null,null,null,null,null,null,null,null,null,null,null,null,null,null,null,null,null,null,null,null,null,null,null,null,null,null,null,null,null,null,null,null,null,null,null,null,"SAN FRANCISCO CHAPULAPA","HUEYAPAN",null,null,null,null,null,null,null,null,"RAFAEL DELGADO"]
[null,null,null,null,null,null,null,null,null,null,null,null,null,null,null,null,null,null,null,null,null,null,null,null,null,null,null,null,null,null,null,null,null,null,null,null,null,null,null,null,null,null,null,null,null,null,null,null,null,null,"SAN FRANCISCO CHINDÚA","HUEJOTZINGO",null,null,null,null,null,null,null,null,"RAFAEL LUCIO"]
[null,null,null,null,null,null,null,null,null,null,null,null,null,null,null,null,null,null,null,null,null,null,null,null,null,null,null,null,null,null,null,null,null,null,null,null,null,null,null,null,null,null,null,null,null,null,null,null,null,null,"SAN FRANCISCO DEL MAR","HUEHUETLÁN EL GRANDE",null,null,null,null,null,null,null,null,"RÍO BLANCO"]
[null,null,null,null,null,null,null,null,null,null,null,null,null,null,null,null,null,null,null,null,null,null,null,null,null,null,null,null,null,null,null,null,null,null,null,null,null,null,null,null,null,null,null,null,null,null,null,null,null,null,"SAN FRANCISCO HUEHUETLÁN","HUEHUETLÁN EL CHICO",null,null,null,null,null,null,null,null,"SALTABARRANCA"]
[null,null,null,null,null,null,null,null,null,null,null,null,null,null,null,null,null,null,null,null,null,null,null,null,null,null,null,null,null,null,null,null,null,null,null,null,null,null,null,null,null,null,null,null,null,null,null,null,null,null,"SAN FRANCISCO IXHUATÁN","HUEHUETLA",null,null,null,null,null,null,null,null,"SAN ANDRÉS TENEJAPAN"]
[null,null,null,null,null,null,null,null,null,null,null,null,null,null,null,null,null,null,null,null,null,null,null,null,null,null,null,null,null,null,null,null,null,null,null,null,null,null,null,null,null,null,null,null,null,null,null,null,null,null,"SAN FRANCISCO JALTEPETONGO","HUAUCHINANGO",null,null,null,null,null,null,null,null,"SAN ANDRÉS TUXTLA"]
[null,null,null,null,null,null,null,null,null,null,null,null,null,null,null,null,null,null,null,null,null,null,null,null,null,null,null,null,null,null,null,null,null,null,null,null,null,null,null,null,null,null,null,null,null,null,null,null,null,null,"SAN FRANCISCO LACHIGOLÓ","HUATLATLAUCA",null,null,null,null,null,null,null,null,"SAN JUAN EVANGELISTA"]
[null,null,null,null,null,null,null,null,null,null,null,null,null,null,null,null,null,null,null,null,null,null,null,null,null,null,null,null,null,null,null,null,null,null,null,null,null,null,null,null,null,null,null,null,null,null,null,null,null,null,"SAN FRANCISCO LOGUECHE","HUAQUECHULA",null,null,null,null,null,null,null,null,"SAN RAFAEL"]
[null,null,null,null,null,null,null,null,null,null,null,null,null,null,null,null,null,null,null,null,null,null,null,null,null,null,null,null,null,null,null,null,null,null,null,null,null,null,null,null,null,null,null,null,null,null,null,null,null,null,"SAN FRANCISCO NUXAÑO","HONEY",null,null,null,null,null,null,null,null,"SANTIAGO SOCHIAPAN"]
[null,null,null,null,null,null,null,null,null,null,null,null,null,null,null,null,null,null,null,null,null,null,null,null,null,null,null,null,null,null,null,null,null,null,null,null,null,null,null,null,null,null,null,null,null,null,null,null,null,null,"SAN FRANCISCO OZOLOTEPEC","HERMENEGILDO GALEANA",null,null,null,null,null,null,null,null,"SANTIAGO TUXTLA"]
[null,null,null,null,null,null,null,null,null,null,null,null,null,null,null,null,null,null,null,null,null,null,null,null,null,null,null,null,null,null,null,null,null,null,null,null,null,null,null,null,null,null,null,null,null,null,null,null,null,null,"SAN FRANCISCO SOLA","GUADALUPE VICTORIA",null,null,null,null,null,null,null,null,"SAYULA DE ALEMÁN"]
[null,null,null,null,null,null,null,null,null,null,null,null,null,null,null,null,null,null,null,null,null,null,null,null,null,null,null,null,null,null,null,null,null,null,null,null,null,null,null,null,null,null,null,null,null,null,null,null,null,null,"SAN FRANCISCO TELIXTLAHUACA","GUADALUPE",null,null,null,null,null,null,null,null,"SOCHIAPA"]
[null,null,null,null,null,null,null,null,null,null,null,null,null,null,null,null,null,null,null,null,null,null,null,null,null,null,null,null,null,null,null,null,null,null,null,null,null,null,null,null,null,null,null,null,null,null,null,null,null,null,"SAN FRANCISCO TEOPAN","GENERAL FELIPE ÁNGELES",null,null,null,null,null,null,null,null,"SOCONUSCO"]
[null,null,null,null,null,null,null,null,null,null,null,null,null,null,null,null,null,null,null,null,null,null,null,null,null,null,null,null,null,null,null,null,null,null,null,null,null,null,null,null,null,null,null,null,null,null,null,null,null,null,"SAN FRANCISCO TLAPANCINGO","FRANCISCO Z. MENA",null,null,null,null,null,null,null,null,"SOLEDAD ATZOMPA"]
[null,null,null,null,null,null,null,null,null,null,null,null,null,null,null,null,null,null,null,null,null,null,null,null,null,null,null,null,null,null,null,null,null,null,null,null,null,null,null,null,null,null,null,null,null,null,null,null,null,null,"SAN GABRIEL MIXTEPEC","ESPERANZA",null,null,null,null,null,null,null,null,"SOLEDAD DE DOBLADO"]
[null,null,null,null,null,null,null,null,null,null,null,null,null,null,null,null,null,null,null,null,null,null,null,null,null,null,null,null,null,null,null,null,null,null,null,null,null,null,null,null,null,null,null,null,null,null,null,null,null,null,"SAN ILDEFONSO AMATLÁN","EPATLÁN",null,null,null,null,null,null,null,null,"SOTEAPAN"]
[null,null,null,null,null,null,null,null,null,null,null,null,null,null,null,null,null,null,null,null,null,null,null,null,null,null,null,null,null,null,null,null,null,null,null,null,null,null,null,null,null,null,null,null,null,null,null,null,null,null,"SAN ILDEFONSO SOLA","ELOXOCHITLÁN",null,null,null,null,null,null,null,null,"TAMALÍN"]
[null,null,null,null,null,null,null,null,null,null,null,null,null,null,null,null,null,null,null,null,null,null,null,null,null,null,null,null,null,null,null,null,null,null,null,null,null,null,null,null,null,null,null,null,null,null,null,null,null,null,"SAN ILDEFONSO VILLA ALTA","DOMINGO ARENAS",null,null,null,null,null,null,null,null,"TAMIAHUA"]
[null,null,null,null,null,null,null,null,null,null,null,null,null,null,null,null,null,null,null,null,null,null,null,null,null,null,null,null,null,null,null,null,null,null,null,null,null,null,null,null,null,null,null,null,null,null,null,null,null,null,"SAN JACINTO AMILPAS","CUYOACO",null,null,null,null,null,null,null,null,"TAMPICO ALTO"]
[null,null,null,null,null,null,null,null,null,null,null,null,null,null,null,null,null,null,null,null,null,null,null,null,null,null,null,null,null,null,null,null,null,null,null,null,null,null,null,null,null,null,null,null,null,null,null,null,null,null,"SAN JACINTO TLACOTEPEC","CUETZALAN DEL PROGRESO",null,null,null,null,null,null,null,null,"TANCOCO"]
[null,null,null,null,null,null,null,null,null,null,null,null,null,null,null,null,null,null,null,null,null,null,null,null,null,null,null,null,null,null,null,null,null,null,null,null,null,null,null,null,null,null,null,null,null,null,null,null,null,null,"SAN JERÓNIMO COATLÁN","CUAYUCA DE ANDRADE",null,null,null,null,null,null,null,null,"TANTIMA"]
[null,null,null,null,null,null,null,null,null,null,null,null,null,null,null,null,null,null,null,null,null,null,null,null,null,null,null,null,null,null,null,null,null,null,null,null,null,null,null,null,null,null,null,null,null,null,null,null,null,null,"SAN JERÓNIMO SILACAYOAPILLA","CUAUTLANCINGO",null,null,null,null,null,null,null,null,"TANTOYUCA"]
[null,null,null,null,null,null,null,null,null,null,null,null,null,null,null,null,null,null,null,null,null,null,null,null,null,null,null,null,null,null,null,null,null,null,null,null,null,null,null,null,null,null,null,null,null,null,null,null,null,null,"SAN JERÓNIMO SOSOLA","CUAUTINCHÁN",null,null,null,null,null,null,null,null,"TATAHUICAPAN DE JUÁREZ"]
[null,null,null,null,null,null,null,null,null,null,null,null,null,null,null,null,null,null,null,null,null,null,null,null,null,null,null,null,null,null,null,null,null,null,null,null,null,null,null,null,null,null,null,null,null,null,null,null,null,null,"SAN JERÓNIMO TAVICHE","CUAUTEMPAN",null,null,null,null,null,null,null,null,"TATATILA"]
[null,null,null,null,null,null,null,null,null,null,null,null,null,null,null,null,null,null,null,null,null,null,null,null,null,null,null,null,null,null,null,null,null,null,null,null,null,null,null,null,null,null,null,null,null,null,null,null,null,null,"SAN JERÓNIMO TECÓATL","CUAPIAXTLA DE MADERO",null,null,null,null,null,null,null,null,"TECOLUTLA"]
[null,null,null,null,null,null,null,null,null,null,null,null,null,null,null,null,null,null,null,null,null,null,null,null,null,null,null,null,null,null,null,null,null,null,null,null,null,null,null,null,null,null,null,null,null,null,null,null,null,null,"SAN JERÓNIMO TLACOCHAHUAYA","COYOTEPEC",null,null,null,null,null,null,null,null,"TEHUIPANGO"]
[null,null,null,null,null,null,null,null,null,null,null,null,null,null,null,null,null,null,null,null,null,null,null,null,null,null,null,null,null,null,null,null,null,null,null,null,null,null,null,null,null,null,null,null,null,null,null,null,null,null,"SAN JORGE NUCHITA","COYOMEAPAN",null,null,null,null,null,null,null,null,"TEMPOAL"]
[null,null,null,null,null,null,null,null,null,null,null,null,null,null,null,null,null,null,null,null,null,null,null,null,null,null,null,null,null,null,null,null,null,null,null,null,null,null,null,null,null,null,null,null,null,null,null,null,null,null,"SAN JOSÉ AYUQUILA","COXCATLÁN",null,null,null,null,null,null,null,null,"TENAMPA"]
[null,null,null,null,null,null,null,null,null,null,null,null,null,null,null,null,null,null,null,null,null,null,null,null,null,null,null,null,null,null,null,null,null,null,null,null,null,null,null,null,null,null,null,null,null,null,null,null,null,null,"SAN JOSÉ CHILTEPEC","CORONANGO",null,null,null,null,null,null,null,null,"TENOCHTITLÁN"]
[null,null,null,null,null,null,null,null,null,null,null,null,null,null,null,null,null,null,null,null,null,null,null,null,null,null,null,null,null,null,null,null,null,null,null,null,null,null,null,null,null,null,null,null,null,null,null,null,null,null,"SAN JOSÉ DEL PEÑASCO","COHUECAN",null,null,null,null,null,null,null,null,"TEOCELO"]
[null,null,null,null,null,null,null,null,null,null,null,null,null,null,null,null,null,null,null,null,null,null,null,null,null,null,null,null,null,null,null,null,null,null,null,null,null,null,null,null,null,null,null,null,null,null,null,null,null,null,"SAN JOSÉ DEL PROGRESO","COHETZALA",null,null,null,null,null,null,null,null,"TEPATLAXCO"]
[null,null,null,null,null,null,null,null,null,null,null,null,null,null,null,null,null,null,null,null,null,null,null,null,null,null,null,null,null,null,null,null,null,null,null,null,null,null,null,null,null,null,null,null,null,null,null,null,null,null,"SAN JOSÉ ESTANCIA GRANDE","COATZINGO",null,null,null,null,null,null,null,null,"TEPETLÁN"]
[null,null,null,null,null,null,null,null,null,null,null,null,null,null,null,null,null,null,null,null,null,null,null,null,null,null,null,null,null,null,null,null,null,null,null,null,null,null,null,null,null,null,null,null,null,null,null,null,null,null,"SAN JOSÉ INDEPENDENCIA","COATEPEC",null,null,null,null,null,null,null,null,"TEPETZINTLA"]
[null,null,null,null,null,null,null,null,null,null,null,null,null,null,null,null,null,null,null,null,null,null,null,null,null,null,null,null,null,null,null,null,null,null,null,null,null,null,null,null,null,null,null,null,null,null,null,null,null,null,"SAN JOSÉ LACHIGUIRI","CHINANTLA",null,null,null,null,null,null,null,null,"TEQUILA"]
[null,null,null,null,null,null,null,null,null,null,null,null,null,null,null,null,null,null,null,null,null,null,null,null,null,null,null,null,null,null,null,null,null,null,null,null,null,null,null,null,null,null,null,null,null,null,null,null,null,null,"SAN JOSÉ TENANGO","CHILCHOTLA",null,null,null,null,null,null,null,null,"TEXCATEPEC"]
[null,null,null,null,null,null,null,null,null,null,null,null,null,null,null,null,null,null,null,null,null,null,null,null,null,null,null,null,null,null,null,null,null,null,null,null,null,null,null,null,null,null,null,null,null,null,null,null,null,null,"SAN JUAN ACHIUTLA","CHILA DE LA SAL",null,null,null,null,null,null,null,null,"TEXHUACÁN"]
[null,null,null,null,null,null,null,null,null,null,null,null,null,null,null,null,null,null,null,null,null,null,null,null,null,null,null,null,null,null,null,null,null,null,null,null,null,null,null,null,null,null,null,null,null,null,null,null,null,null,"SAN JUAN ATEPEC","CHILA",null,null,null,null,null,null,null,null,"TEXISTEPEC"]
[null,null,null,null,null,null,null,null,null,null,null,null,null,null,null,null,null,null,null,null,null,null,null,null,null,null,null,null,null,null,null,null,null,null,null,null,null,null,null,null,null,null,null,null,null,null,null,null,null,null,"SAN JUAN BAUTISTA ATATLAHUCA","CHIGNAUTLA",null,null,null,null,null,null,null,null,"TEZONAPA"]
[null,null,null,null,null,null,null,null,null,null,null,null,null,null,null,null,null,null,null,null,null,null,null,null,null,null,null,null,null,null,null,null,null,null,null,null,null,null,null,null,null,null,null,null,null,null,null,null,null,null,"SAN JUAN BAUTISTA COIXTLAHUACA","CHIGNAHUAPAN",null,null,null,null,null,null,null,null,"TIERRA BLANCA"]
[null,null,null,null,null,null,null,null,null,null,null,null,null,null,null,null,null,null,null,null,null,null,null,null,null,null,null,null,null,null,null,null,null,null,null,null,null,null,null,null,null,null,null,null,null,null,null,null,null,null,"SAN JUAN BAUTISTA CUICATLÁN","CHIGMECATITLÁN",null,null,null,null,null,null,null,null,"TIHUATLÁN"]
[null,null,null,null,null,null,null,null,null,null,null,null,null,null,null,null,null,null,null,null,null,null,null,null,null,null,null,null,null,null,null,null,null,null,null,null,null,null,null,null,null,null,null,null,null,null,null,null,null,null,"SAN JUAN BAUTISTA GUELACHE","CHIETLA",null,null,null,null,null,null,null,null,"TLACHICHILCO"]
[null,null,null,null,null,null,null,null,null,null,null,null,null,null,null,null,null,null,null,null,null,null,null,null,null,null,null,null,null,null,null,null,null,null,null,null,null,null,null,null,null,null,null,null,null,null,null,null,null,null,"SAN JUAN BAUTISTA JAYACATLÁN","CHICONCUAUTLA",null,null,null,null,null,null,null,null,"TLACOJALPAN"]
[null,null,null,null,null,null,null,null,null,null,null,null,null,null,null,null,null,null,null,null,null,null,null,null,null,null,null,null,null,null,null,null,null,null,null,null,null,null,null,null,null,null,null,null,null,null,null,null,null,null,"SAN JUAN BAUTISTA LO DE SOTO","CHICHIQUILA",null,null,null,null,null,null,null,null,"TLACOLULAN"]
[null,null,null,null,null,null,null,null,null,null,null,null,null,null,null,null,null,null,null,null,null,null,null,null,null,null,null,null,null,null,null,null,null,null,null,null,null,null,null,null,null,null,null,null,null,null,null,null,null,null,"SAN JUAN BAUTISTA SUCHITEPEC","CHIAUTZINGO",null,null,null,null,null,null,null,null,"TLACOTALPAN"]
[null,null,null,null,null,null,null,null,null,null,null,null,null,null,null,null,null,null,null,null,null,null,null,null,null,null,null,null,null,null,null,null,null,null,null,null,null,null,null,null,null,null,null,null,null,null,null,null,null,null,"SAN JUAN BAUTISTA TLACHICHILCO","CHIAUTLA",null,null,null,null,null,null,null,null,"TLACOTEPEC DE MEJÍA"]
[null,null,null,null,null,null,null,null,null,null,null,null,null,null,null,null,null,null,null,null,null,null,null,null,null,null,null,null,null,null,null,null,null,null,null,null,null,null,null,null,null,null,null,null,null,null,null,null,null,null,"SAN JUAN BAUTISTA TLACOATZINTEPEC","CHAPULCO",null,null,null,null,null,null,null,null,"TLALIXCOYAN"]
[null,null,null,null,null,null,null,null,null,null,null,null,null,null,null,null,null,null,null,null,null,null,null,null,null,null,null,null,null,null,null,null,null,null,null,null,null,null,null,null,null,null,null,null,null,null,null,null,null,null,"SAN JUAN BAUTISTA TUXTEPEC","CHALCHICOMULA DE SESMA",null,null,null,null,null,null,null,null,"TLALNELHUAYOCAN"]
[null,null,null,null,null,null,null,null,null,null,null,null,null,null,null,null,null,null,null,null,null,null,null,null,null,null,null,null,null,null,null,null,null,null,null,null,null,null,null,null,null,null,null,null,null,null,null,null,null,null,"SAN JUAN BAUTISTA VALLE NACIONAL","CAXHUACAN",null,null,null,null,null,null,null,null,"TLALTETELA"]
[null,null,null,null,null,null,null,null,null,null,null,null,null,null,null,null,null,null,null,null,null,null,null,null,null,null,null,null,null,null,null,null,null,null,null,null,null,null,null,null,null,null,null,null,null,null,null,null,null,null,"SAN JUAN CACAHUATEPEC","CAÑADA MORELOS",null,null,null,null,null,null,null,null,"TLAPACOYAN"]
[null,null,null,null,null,null,null,null,null,null,null,null,null,null,null,null,null,null,null,null,null,null,null,null,null,null,null,null,null,null,null,null,null,null,null,null,null,null,null,null,null,null,null,null,null,null,null,null,null,null,"SAN JUAN CHICOMEZÚCHIL","CAMOCUAUTLA",null,null,null,null,null,null,null,null,"TLAQUILPA"]
[null,null,null,null,null,null,null,null,null,null,null,null,null,null,null,null,null,null,null,null,null,null,null,null,null,null,null,null,null,null,null,null,null,null,null,null,null,null,null,null,null,null,null,null,null,null,null,null,null,null,"SAN JUAN CHILATECA","CALTEPEC",null,null,null,null,null,null,null,null,"TLILAPAN"]
[null,null,null,null,null,null,null,null,null,null,null,null,null,null,null,null,null,null,null,null,null,null,null,null,null,null,null,null,null,null,null,null,null,null,null,null,null,null,null,null,null,null,null,null,null,null,null,null,null,null,"SAN JUAN CIENEGUILLA","CALPAN",null,null,null,null,null,null,null,null,"TOMATLÁN"]
[null,null,null,null,null,null,null,null,null,null,null,null,null,null,null,null,null,null,null,null,null,null,null,null,null,null,null,null,null,null,null,null,null,null,null,null,null,null,null,null,null,null,null,null,null,null,null,null,null,null,"SAN JUAN COATZÓSPAM","AYOTOXCO DE GUERRERO",null,null,null,null,null,null,null,null,"TONAYÁN"]
[null,null,null,null,null,null,null,null,null,null,null,null,null,null,null,null,null,null,null,null,null,null,null,null,null,null,null,null,null,null,null,null,null,null,null,null,null,null,null,null,null,null,null,null,null,null,null,null,null,null,"SAN JUAN COLORADO","AXUTLA",null,null,null,null,null,null,null,null,"TOTUTLA"]
[null,null,null,null,null,null,null,null,null,null,null,null,null,null,null,null,null,null,null,null,null,null,null,null,null,null,null,null,null,null,null,null,null,null,null,null,null,null,null,null,null,null,null,null,null,null,null,null,null,null,"SAN JUAN COMALTEPEC","ATZITZINTLA",null,null,null,null,null,null,null,null,"TRES VALLES"]
[null,null,null,null,null,null,null,null,null,null,null,null,null,null,null,null,null,null,null,null,null,null,null,null,null,null,null,null,null,null,null,null,null,null,null,null,null,null,null,null,null,null,null,null,null,null,null,null,null,null,"SAN JUAN COTZOCÓN","ATZITZIHUACÁN",null,null,null,null,null,null,null,null,"TUXPAN"]
[null,null,null,null,null,null,null,null,null,null,null,null,null,null,null,null,null,null,null,null,null,null,null,null,null,null,null,null,null,null,null,null,null,null,null,null,null,null,null,null,null,null,null,null,null,null,null,null,null,null,"SAN JUAN DE LOS CUÉS","ATZALA",null,null,null,null,null,null,null,null,"TUXTILLA"]
[null,null,null,null,null,null,null,null,null,null,null,null,null,null,null,null,null,null,null,null,null,null,null,null,null,null,null,null,null,null,null,null,null,null,null,null,null,null,null,null,null,null,null,null,null,null,null,null,null,null,"SAN JUAN DEL ESTADO","ATOYATEMPAN",null,null,null,null,null,null,null,null,"URSULO GALVÁN"]
[null,null,null,null,null,null,null,null,null,null,null,null,null,null,null,null,null,null,null,null,null,null,null,null,null,null,null,null,null,null,null,null,null,null,null,null,null,null,null,null,null,null,null,null,null,null,null,null,null,null,"SAN JUAN DEL RÍO","ATLIXCO",null,null,null,null,null,null,null,null,"UXPANAPA"]
[null,null,null,null,null,null,null,null,null,null,null,null,null,null,null,null,null,null,null,null,null,null,null,null,null,null,null,null,null,null,null,null,null,null,null,null,null,null,null,null,null,null,null,null,null,null,null,null,null,null,"SAN JUAN DIUXI","ATLEQUIZAYAN",null,null,null,null,null,null,null,null,"VEGA DE ALATORRE"]
[null,null,null,null,null,null,null,null,null,null,null,null,null,null,null,null,null,null,null,null,null,null,null,null,null,null,null,null,null,null,null,null,null,null,null,null,null,null,null,null,null,null,null,null,null,null,null,null,null,null,"SAN JUAN EVANGELISTA ANALCO","ATEXCAL",null,null,null,null,null,null,null,null,"VERACRUZ"]
[null,null,null,null,null,null,null,null,null,null,null,null,null,null,null,null,null,null,null,null,null,null,null,null,null,null,null,null,null,null,null,null,null,null,null,null,null,null,null,null,null,null,null,null,null,null,null,null,null,null,"SAN JUAN GUELAVÍA","ATEMPAN",null,null,null,null,null,null,null,null,"VILLA ALDAMA"]
[null,null,null,null,null,null,null,null,null,null,null,null,null,null,null,null,null,null,null,null,null,null,null,null,null,null,null,null,null,null,null,null,null,null,null,null,null,null,null,null,null,null,null,null,null,null,null,null,null,null,"SAN JUAN GUICHICOVI","AQUIXTLA",null,null,null,null,null,null,null,null,"XALAPA"]
[null,null,null,null,null,null,null,null,null,null,null,null,null,null,null,null,null,null,null,null,null,null,null,null,null,null,null,null,null,null,null,null,null,null,null,null,null,null,null,null,null,null,null,null,null,null,null,null,null,null,"SAN JUAN IHUALTEPEC","AMOZOC",null,null,null,null,null,null,null,null,"XICO"]
[null,null,null,null,null,null,null,null,null,null,null,null,null,null,null,null,null,null,null,null,null,null,null,null,null,null,null,null,null,null,null,null,null,null,null,null,null,null,null,null,null,null,null,null,null,null,null,null,null,null,"SAN JUAN JUQUILA MIXES","AMIXTLÁN",null,null,null,null,null,null,null,null,"XOXOCOTLA"]
[null,null,null,null,null,null,null,null,null,null,null,null,null,null,null,null,null,null,null,null,null,null,null,null,null,null,null,null,null,null,null,null,null,null,null,null,null,null,null,null,null,null,null,null,null,null,null,null,null,null,"SAN JUAN JUQUILA VIJANOS","ALTEPEXI",null,null,null,null,null,null,null,null,"YANGA"]
[null,null,null,null,null,null,null,null,null,null,null,null,null,null,null,null,null,null,null,null,null,null,null,null,null,null,null,null,null,null,null,null,null,null,null,null,null,null,null,null,null,null,null,null,null,null,null,null,null,null,"SAN JUAN LACHAO","ALJOJUCA",null,null,null,null,null,null,null,null,"YECUATLA"]
[null,null,null,null,null,null,null,null,null,null,null,null,null,null,null,null,null,null,null,null,null,null,null,null,null,null,null,null,null,null,null,null,null,null,null,null,null,null,null,null,null,null,null,null,null,null,null,null,null,null,"SAN JUAN LACHIGALLA","ALBINO ZERTUCHE",null,null,null,null,null,null,null,null,"ZACUALPAN"]
[null,null,null,null,null,null,null,null,null,null,null,null,null,null,null,null,null,null,null,null,null,null,null,null,null,null,null,null,null,null,null,null,null,null,null,null,null,null,null,null,null,null,null,null,null,null,null,null,null,null,"SAN JUAN LAJARCIA","AJALPAN",null,null,null,null,null,null,null,null,"ZARAGOZA"]
[null,null,null,null,null,null,null,null,null,null,null,null,null,null,null,null,null,null,null,null,null,null,null,null,null,null,null,null,null,null,null,null,null,null,null,null,null,null,null,null,null,null,null,null,null,null,null,null,null,null,"SAN JUAN LALANA","AHUEHUETITLA",null,null,null,null,null,null,null,null,"ZENTLA"]
[null,null,null,null,null,null,null,null,null,null,null,null,null,null,null,null,null,null,null,null,null,null,null,null,null,null,null,null,null,null,null,null,null,null,null,null,null,null,null,null,null,null,null,null,null,null,null,null,null,null,"SAN JUAN MAZATLÁN","AHUAZOTEPEC",null,null,null,null,null,null,null,null,"ZONGOLICA"]
[null,null,null,null,null,null,null,null,null,null,null,null,null,null,null,null,null,null,null,null,null,null,null,null,null,null,null,null,null,null,null,null,null,null,null,null,null,null,null,null,null,null,null,null,null,null,null,null,null,null,"SAN JUAN MIXTEPEC -DTO. 08 -","AHUATLÁN",null,null,null,null,null,null,null,null,"ZONTECOMATLÁN DE LÓPEZ Y FUENTES"]
[null,null,null,null,null,null,null,null,null,null,null,null,null,null,null,null,null,null,null,null,null,null,null,null,null,null,null,null,null,null,null,null,null,null,null,null,null,null,null,null,null,null,null,null,null,null,null,null,null,null,"SAN JUAN MIXTEPEC -DTO. 26 -","AHUACATLÁN",null,null,null,null,null,null,null,null,"ZOZOCOLCO DE HIDALGO"]
[null,null,null,null,null,null,null,null,null,null,null,null,null,null,null,null,null,null,null,null,null,null,null,null,null,null,null,null,null,null,null,null,null,null,null,null,null,null,null,null,null,null,null,null,null,null,null,null,null,null,"SAN JUAN ÑUMÍ","ACTEOPAN"]
[null,null,null,null,null,null,null,null,null,null,null,null,null,null,null,null,null,null,null,null,null,null,null,null,null,null,null,null,null,null,null,null,null,null,null,null,null,null,null,null,null,null,null,null,null,null,null,null,null,null,"SAN JUAN OZOLOTEPEC","ACATZINGO"]
[null,null,null,null,null,null,null,null,null,null,null,null,null,null,null,null,null,null,null,null,null,null,null,null,null,null,null,null,null,null,null,null,null,null,null,null,null,null,null,null,null,null,null,null,null,null,null,null,null,null,"SAN JUAN PETLAPA","ACATLÁN"]
[null,null,null,null,null,null,null,null,null,null,null,null,null,null,null,null,null,null,null,null,null,null,null,null,null,null,null,null,null,null,null,null,null,null,null,null,null,null,null,null,null,null,null,null,null,null,null,null,null,null,"SAN JUAN QUIAHIJE","ACATENO"]
[null,null,null,null,null,null,null,null,null,null,null,null,null,null,null,null,null,null,null,null,null,null,null,null,null,null,null,null,null,null,null,null,null,null,null,null,null,null,null,null,null,null,null,null,null,null,null,null,null,null,"SAN JUAN QUIOTEPEC","ACAJETE"]
[null,null,null,null,null,null,null,null,null,null,null,null,null,null,null,null,null,null,null,null,null,null,null,null,null,null,null,null,null,null,null,null,null,null,null,null,null,null,null,null,null,null,null,null,null,null,null,null,null,null,"SAN JUAN SAYULTEPEC"]
[null,null,null,null,null,null,null,null,null,null,null,null,null,null,null,null,null,null,null,null,null,null,null,null,null,null,null,null,null,null,null,null,null,null,null,null,null,null,null,null,null,null,null,null,null,null,null,null,null,null,"SAN JUAN TABAÁ"]
[null,null,null,null,null,null,null,null,null,null,null,null,null,null,null,null,null,null,null,null,null,null,null,null,null,null,null,null,null,null,null,null,null,null,null,null,null,null,null,null,null,null,null,null,null,null,null,null,null,null,"SAN JUAN TAMAZOLA"]
[null,null,null,null,null,null,null,null,null,null,null,null,null,null,null,null,null,null,null,null,null,null,null,null,null,null,null,null,null,null,null,null,null,null,null,null,null,null,null,null,null,null,null,null,null,null,null,null,null,null,"SAN JUAN TEITA"]
[null,null,null,null,null,null,null,null,null,null,null,null,null,null,null,null,null,null,null,null,null,null,null,null,null,null,null,null,null,null,null,null,null,null,null,null,null,null,null,null,null,null,null,null,null,null,null,null,null,null,"SAN JUAN TEITIPAC"]
[null,null,null,null,null,null,null,null,null,null,null,null,null,null,null,null,null,null,null,null,null,null,null,null,null,null,null,null,null,null,null,null,null,null,null,null,null,null,null,null,null,null,null,null,null,null,null,null,null,null,"SAN JUAN TEPEUXILA"]
[null,null,null,null,null,null,null,null,null,null,null,null,null,null,null,null,null,null,null,null,null,null,null,null,null,null,null,null,null,null,null,null,null,null,null,null,null,null,null,null,null,null,null,null,null,null,null,null,null,null,"SAN JUAN TEPOSCOLULA"]
[null,null,null,null,null,null,null,null,null,null,null,null,null,null,null,null,null,null,null,null,null,null,null,null,null,null,null,null,null,null,null,null,null,null,null,null,null,null,null,null,null,null,null,null,null,null,null,null,null,null,"SAN JUAN YAEÉ"]
[null,null,null,null,null,null,null,null,null,null,null,null,null,null,null,null,null,null,null,null,null,null,null,null,null,null,null,null,null,null,null,null,null,null,null,null,null,null,null,null,null,null,null,null,null,null,null,null,null,null,"SAN JUAN YATZONA"]
[null,null,null,null,null,null,null,null,null,null,null,null,null,null,null,null,null,null,null,null,null,null,null,null,null,null,null,null,null,null,null,null,null,null,null,null,null,null,null,null,null,null,null,null,null,null,null,null,null,null,"SAN JUAN YUCUITA"]
[null,null,null,null,null,null,null,null,null,null,null,null,null,null,null,null,null,null,null,null,null,null,null,null,null,null,null,null,null,null,null,null,null,null,null,null,null,null,null,null,null,null,null,null,null,null,null,null,null,null,"SAN LORENZO"]
[null,null,null,null,null,null,null,null,null,null,null,null,null,null,null,null,null,null,null,null,null,null,null,null,null,null,null,null,null,null,null,null,null,null,null,null,null,null,null,null,null,null,null,null,null,null,null,null,null,null,"SAN LORENZO ALBARRADAS"]
[null,null,null,null,null,null,null,null,null,null,null,null,null,null,null,null,null,null,null,null,null,null,null,null,null,null,null,null,null,null,null,null,null,null,null,null,null,null,null,null,null,null,null,null,null,null,null,null,null,null,"SAN LORENZO CACAOTEPEC"]
[null,null,null,null,null,null,null,null,null,null,null,null,null,null,null,null,null,null,null,null,null,null,null,null,null,null,null,null,null,null,null,null,null,null,null,null,null,null,null,null,null,null,null,null,null,null,null,null,null,null,"SAN LORENZO CUAUNECUILTITLA"]
[null,null,null,null,null,null,null,null,null,null,null,null,null,null,null,null,null,null,null,null,null,null,null,null,null,null,null,null,null,null,null,null,null,null,null,null,null,null,null,null,null,null,null,null,null,null,null,null,null,null,"SAN LORENZO TEXMELÚCAN"]
[null,null,null,null,null,null,null,null,null,null,null,null,null,null,null,null,null,null,null,null,null,null,null,null,null,null,null,null,null,null,null,null,null,null,null,null,null,null,null,null,null,null,null,null,null,null,null,null,null,null,"SAN LORENZO VICTORIA"]
[null,null,null,null,null,null,null,null,null,null,null,null,null,null,null,null,null,null,null,null,null,null,null,null,null,null,null,null,null,null,null,null,null,null,null,null,null,null,null,null,null,null,null,null,null,null,null,null,null,null,"SAN LUCAS CAMOTLÁN"]
[null,null,null,null,null,null,null,null,null,null,null,null,null,null,null,null,null,null,null,null,null,null,null,null,null,null,null,null,null,null,null,null,null,null,null,null,null,null,null,null,null,null,null,null,null,null,null,null,null,null,"SAN LUCAS OJITLÁN"]
[null,null,null,null,null,null,null,null,null,null,null,null,null,null,null,null,null,null,null,null,null,null,null,null,null,null,null,null,null,null,null,null,null,null,null,null,null,null,null,null,null,null,null,null,null,null,null,null,null,null,"SAN LUCAS QUIAVINÍ"]
[null,null,null,null,null,null,null,null,null,null,null,null,null,null,null,null,null,null,null,null,null,null,null,null,null,null,null,null,null,null,null,null,null,null,null,null,null,null,null,null,null,null,null,null,null,null,null,null,null,null,"SAN LUCAS ZOQUIÁPAM"]
[null,null,null,null,null,null,null,null,null,null,null,null,null,null,null,null,null,null,null,null,null,null,null,null,null,null,null,null,null,null,null,null,null,null,null,null,null,null,null,null,null,null,null,null,null,null,null,null,null,null,"SAN LUIS AMATLÁN"]
[null,null,null,null,null,null,null,null,null,null,null,null,null,null,null,null,null,null,null,null,null,null,null,null,null,null,null,null,null,null,null,null,null,null,null,null,null,null,null,null,null,null,null,null,null,null,null,null,null,null,"SAN MARCIAL OZOLOTEPEC"]
[null,null,null,null,null,null,null,null,null,null,null,null,null,null,null,null,null,null,null,null,null,null,null,null,null,null,null,null,null,null,null,null,null,null,null,null,null,null,null,null,null,null,null,null,null,null,null,null,null,null,"SAN MARCOS ARTEAGA"]
[null,null,null,null,null,null,null,null,null,null,null,null,null,null,null,null,null,null,null,null,null,null,null,null,null,null,null,null,null,null,null,null,null,null,null,null,null,null,null,null,null,null,null,null,null,null,null,null,null,null,"SAN MARTÍN DE LOS CANSECOS"]
[null,null,null,null,null,null,null,null,null,null,null,null,null,null,null,null,null,null,null,null,null,null,null,null,null,null,null,null,null,null,null,null,null,null,null,null,null,null,null,null,null,null,null,null,null,null,null,null,null,null,"SAN MARTÍN HUAMELÚLPAM"]
[null,null,null,null,null,null,null,null,null,null,null,null,null,null,null,null,null,null,null,null,null,null,null,null,null,null,null,null,null,null,null,null,null,null,null,null,null,null,null,null,null,null,null,null,null,null,null,null,null,null,"SAN MARTÍN ITUNYOSO"]
[null,null,null,null,null,null,null,null,null,null,null,null,null,null,null,null,null,null,null,null,null,null,null,null,null,null,null,null,null,null,null,null,null,null,null,null,null,null,null,null,null,null,null,null,null,null,null,null,null,null,"SAN MARTÍN LACHILÁ"]
[null,null,null,null,null,null,null,null,null,null,null,null,null,null,null,null,null,null,null,null,null,null,null,null,null,null,null,null,null,null,null,null,null,null,null,null,null,null,null,null,null,null,null,null,null,null,null,null,null,null,"SAN MARTÍN PERAS"]
[null,null,null,null,null,null,null,null,null,null,null,null,null,null,null,null,null,null,null,null,null,null,null,null,null,null,null,null,null,null,null,null,null,null,null,null,null,null,null,null,null,null,null,null,null,null,null,null,null,null,"SAN MARTÍN TILCAJETE"]
[null,null,null,null,null,null,null,null,null,null,null,null,null,null,null,null,null,null,null,null,null,null,null,null,null,null,null,null,null,null,null,null,null,null,null,null,null,null,null,null,null,null,null,null,null,null,null,null,null,null,"SAN MARTÍN TOXPALAN"]
[null,null,null,null,null,null,null,null,null,null,null,null,null,null,null,null,null,null,null,null,null,null,null,null,null,null,null,null,null,null,null,null,null,null,null,null,null,null,null,null,null,null,null,null,null,null,null,null,null,null,"SAN MARTÍN ZACATEPEC"]
[null,null,null,null,null,null,null,null,null,null,null,null,null,null,null,null,null,null,null,null,null,null,null,null,null,null,null,null,null,null,null,null,null,null,null,null,null,null,null,null,null,null,null,null,null,null,null,null,null,null,"SAN MATEO CAJONOS"]
[null,null,null,null,null,null,null,null,null,null,null,null,null,null,null,null,null,null,null,null,null,null,null,null,null,null,null,null,null,null,null,null,null,null,null,null,null,null,null,null,null,null,null,null,null,null,null,null,null,null,"SAN MATEO DEL MAR"]
[null,null,null,null,null,null,null,null,null,null,null,null,null,null,null,null,null,null,null,null,null,null,null,null,null,null,null,null,null,null,null,null,null,null,null,null,null,null,null,null,null,null,null,null,null,null,null,null,null,null,"SAN MATEO ETLATONGO"]
[null,null,null,null,null,null,null,null,null,null,null,null,null,null,null,null,null,null,null,null,null,null,null,null,null,null,null,null,null,null,null,null,null,null,null,null,null,null,null,null,null,null,null,null,null,null,null,null,null,null,"SAN MATEO NEJÁPAM"]
[null,null,null,null,null,null,null,null,null,null,null,null,null,null,null,null,null,null,null,null,null,null,null,null,null,null,null,null,null,null,null,null,null,null,null,null,null,null,null,null,null,null,null,null,null,null,null,null,null,null,"SAN MATEO PEÑASCO"]
[null,null,null,null,null,null,null,null,null,null,null,null,null,null,null,null,null,null,null,null,null,null,null,null,null,null,null,null,null,null,null,null,null,null,null,null,null,null,null,null,null,null,null,null,null,null,null,null,null,null,"SAN MATEO PIÑAS"]
[null,null,null,null,null,null,null,null,null,null,null,null,null,null,null,null,null,null,null,null,null,null,null,null,null,null,null,null,null,null,null,null,null,null,null,null,null,null,null,null,null,null,null,null,null,null,null,null,null,null,"SAN MATEO RÍO HONDO"]
[null,null,null,null,null,null,null,null,null,null,null,null,null,null,null,null,null,null,null,null,null,null,null,null,null,null,null,null,null,null,null,null,null,null,null,null,null,null,null,null,null,null,null,null,null,null,null,null,null,null,"SAN MATEO SINDIHUI"]
[null,null,null,null,null,null,null,null,null,null,null,null,null,null,null,null,null,null,null,null,null,null,null,null,null,null,null,null,null,null,null,null,null,null,null,null,null,null,null,null,null,null,null,null,null,null,null,null,null,null,"SAN MATEO TLAPILTEPEC"]
[null,null,null,null,null,null,null,null,null,null,null,null,null,null,null,null,null,null,null,null,null,null,null,null,null,null,null,null,null,null,null,null,null,null,null,null,null,null,null,null,null,null,null,null,null,null,null,null,null,null,"SAN MATEO YOLOXOCHITLÁN"]
[null,null,null,null,null,null,null,null,null,null,null,null,null,null,null,null,null,null,null,null,null,null,null,null,null,null,null,null,null,null,null,null,null,null,null,null,null,null,null,null,null,null,null,null,null,null,null,null,null,null,"SAN MATEO YUCUTINDOO"]
[null,null,null,null,null,null,null,null,null,null,null,null,null,null,null,null,null,null,null,null,null,null,null,null,null,null,null,null,null,null,null,null,null,null,null,null,null,null,null,null,null,null,null,null,null,null,null,null,null,null,"SAN MELCHOR BETAZA"]
[null,null,null,null,null,null,null,null,null,null,null,null,null,null,null,null,null,null,null,null,null,null,null,null,null,null,null,null,null,null,null,null,null,null,null,null,null,null,null,null,null,null,null,null,null,null,null,null,null,null,"SAN MIGUEL ACHIUTLA"]
[null,null,null,null,null,null,null,null,null,null,null,null,null,null,null,null,null,null,null,null,null,null,null,null,null,null,null,null,null,null,null,null,null,null,null,null,null,null,null,null,null,null,null,null,null,null,null,null,null,null,"SAN MIGUEL AHUEHUETITLÁN"]
[null,null,null,null,null,null,null,null,null,null,null,null,null,null,null,null,null,null,null,null,null,null,null,null,null,null,null,null,null,null,null,null,null,null,null,null,null,null,null,null,null,null,null,null,null,null,null,null,null,null,"SAN MIGUEL ALOÁPAM"]
[null,null,null,null,null,null,null,null,null,null,null,null,null,null,null,null,null,null,null,null,null,null,null,null,null,null,null,null,null,null,null,null,null,null,null,null,null,null,null,null,null,null,null,null,null,null,null,null,null,null,"SAN MIGUEL AMATITLÁN"]
[null,null,null,null,null,null,null,null,null,null,null,null,null,null,null,null,null,null,null,null,null,null,null,null,null,null,null,null,null,null,null,null,null,null,null,null,null,null,null,null,null,null,null,null,null,null,null,null,null,null,"SAN MIGUEL AMATLÁN"]
[null,null,null,null,null,null,null,null,null,null,null,null,null,null,null,null,null,null,null,null,null,null,null,null,null,null,null,null,null,null,null,null,null,null,null,null,null,null,null,null,null,null,null,null,null,null,null,null,null,null,"SAN MIGUEL CHICAHUA"]
[null,null,null,null,null,null,null,null,null,null,null,null,null,null,null,null,null,null,null,null,null,null,null,null,null,null,null,null,null,null,null,null,null,null,null,null,null,null,null,null,null,null,null,null,null,null,null,null,null,null,"SAN MIGUEL CHIMALAPA"]
[null,null,null,null,null,null,null,null,null,null,null,null,null,null,null,null,null,null,null,null,null,null,null,null,null,null,null,null,null,null,null,null,null,null,null,null,null,null,null,null,null,null,null,null,null,null,null,null,null,null,"SAN MIGUEL COATLÁN"]
[null,null,null,null,null,null,null,null,null,null,null,null,null,null,null,null,null,null,null,null,null,null,null,null,null,null,null,null,null,null,null,null,null,null,null,null,null,null,null,null,null,null,null,null,null,null,null,null,null,null,"SAN MIGUEL DEL PUERTO"]
[null,null,null,null,null,null,null,null,null,null,null,null,null,null,null,null,null,null,null,null,null,null,null,null,null,null,null,null,null,null,null,null,null,null,null,null,null,null,null,null,null,null,null,null,null,null,null,null,null,null,"SAN MIGUEL DEL RÍO"]
[null,null,null,null,null,null,null,null,null,null,null,null,null,null,null,null,null,null,null,null,null,null,null,null,null,null,null,null,null,null,null,null,null,null,null,null,null,null,null,null,null,null,null,null,null,null,null,null,null,null,"SAN MIGUEL EJUTLA"]
[null,null,null,null,null,null,null,null,null,null,null,null,null,null,null,null,null,null,null,null,null,null,null,null,null,null,null,null,null,null,null,null,null,null,null,null,null,null,null,null,null,null,null,null,null,null,null,null,null,null,"SAN MIGUEL EL GRANDE"]
[null,null,null,null,null,null,null,null,null,null,null,null,null,null,null,null,null,null,null,null,null,null,null,null,null,null,null,null,null,null,null,null,null,null,null,null,null,null,null,null,null,null,null,null,null,null,null,null,null,null,"SAN MIGUEL HUAUTLA"]
[null,null,null,null,null,null,null,null,null,null,null,null,null,null,null,null,null,null,null,null,null,null,null,null,null,null,null,null,null,null,null,null,null,null,null,null,null,null,null,null,null,null,null,null,null,null,null,null,null,null,"SAN MIGUEL MIXTEPEC"]
[null,null,null,null,null,null,null,null,null,null,null,null,null,null,null,null,null,null,null,null,null,null,null,null,null,null,null,null,null,null,null,null,null,null,null,null,null,null,null,null,null,null,null,null,null,null,null,null,null,null,"SAN MIGUEL PANIXTLAHUACA"]
[null,null,null,null,null,null,null,null,null,null,null,null,null,null,null,null,null,null,null,null,null,null,null,null,null,null,null,null,null,null,null,null,null,null,null,null,null,null,null,null,null,null,null,null,null,null,null,null,null,null,"SAN MIGUEL PERAS"]
[null,null,null,null,null,null,null,null,null,null,null,null,null,null,null,null,null,null,null,null,null,null,null,null,null,null,null,null,null,null,null,null,null,null,null,null,null,null,null,null,null,null,null,null,null,null,null,null,null,null,"SAN MIGUEL PIEDRAS"]
[null,null,null,null,null,null,null,null,null,null,null,null,null,null,null,null,null,null,null,null,null,null,null,null,null,null,null,null,null,null,null,null,null,null,null,null,null,null,null,null,null,null,null,null,null,null,null,null,null,null,"SAN MIGUEL QUETZALTEPEC"]
[null,null,null,null,null,null,null,null,null,null,null,null,null,null,null,null,null,null,null,null,null,null,null,null,null,null,null,null,null,null,null,null,null,null,null,null,null,null,null,null,null,null,null,null,null,null,null,null,null,null,"SAN MIGUEL SANTA FLOR"]
[null,null,null,null,null,null,null,null,null,null,null,null,null,null,null,null,null,null,null,null,null,null,null,null,null,null,null,null,null,null,null,null,null,null,null,null,null,null,null,null,null,null,null,null,null,null,null,null,null,null,"SAN MIGUEL SOYALTEPEC"]
[null,null,null,null,null,null,null,null,null,null,null,null,null,null,null,null,null,null,null,null,null,null,null,null,null,null,null,null,null,null,null,null,null,null,null,null,null,null,null,null,null,null,null,null,null,null,null,null,null,null,"SAN MIGUEL SUCHIXTEPEC"]
[null,null,null,null,null,null,null,null,null,null,null,null,null,null,null,null,null,null,null,null,null,null,null,null,null,null,null,null,null,null,null,null,null,null,null,null,null,null,null,null,null,null,null,null,null,null,null,null,null,null,"SAN MIGUEL TECOMATLÁN"]
[null,null,null,null,null,null,null,null,null,null,null,null,null,null,null,null,null,null,null,null,null,null,null,null,null,null,null,null,null,null,null,null,null,null,null,null,null,null,null,null,null,null,null,null,null,null,null,null,null,null,"SAN MIGUEL TENANGO"]
[null,null,null,null,null,null,null,null,null,null,null,null,null,null,null,null,null,null,null,null,null,null,null,null,null,null,null,null,null,null,null,null,null,null,null,null,null,null,null,null,null,null,null,null,null,null,null,null,null,null,"SAN MIGUEL TEQUIXTEPEC"]
[null,null,null,null,null,null,null,null,null,null,null,null,null,null,null,null,null,null,null,null,null,null,null,null,null,null,null,null,null,null,null,null,null,null,null,null,null,null,null,null,null,null,null,null,null,null,null,null,null,null,"SAN MIGUEL TILQUIÁPAM"]
[null,null,null,null,null,null,null,null,null,null,null,null,null,null,null,null,null,null,null,null,null,null,null,null,null,null,null,null,null,null,null,null,null,null,null,null,null,null,null,null,null,null,null,null,null,null,null,null,null,null,"SAN MIGUEL TLACAMAMA"]
[null,null,null,null,null,null,null,null,null,null,null,null,null,null,null,null,null,null,null,null,null,null,null,null,null,null,null,null,null,null,null,null,null,null,null,null,null,null,null,null,null,null,null,null,null,null,null,null,null,null,"SAN MIGUEL TLACOTEPEC"]
[null,null,null,null,null,null,null,null,null,null,null,null,null,null,null,null,null,null,null,null,null,null,null,null,null,null,null,null,null,null,null,null,null,null,null,null,null,null,null,null,null,null,null,null,null,null,null,null,null,null,"SAN MIGUEL TULANCINGO"]
[null,null,null,null,null,null,null,null,null,null,null,null,null,null,null,null,null,null,null,null,null,null,null,null,null,null,null,null,null,null,null,null,null,null,null,null,null,null,null,null,null,null,null,null,null,null,null,null,null,null,"SAN MIGUEL YOTAO"]
[null,null,null,null,null,null,null,null,null,null,null,null,null,null,null,null,null,null,null,null,null,null,null,null,null,null,null,null,null,null,null,null,null,null,null,null,null,null,null,null,null,null,null,null,null,null,null,null,null,null,"SAN NICOLÁS"]
[null,null,null,null,null,null,null,null,null,null,null,null,null,null,null,null,null,null,null,null,null,null,null,null,null,null,null,null,null,null,null,null,null,null,null,null,null,null,null,null,null,null,null,null,null,null,null,null,null,null,"SAN NICOLÁS HIDALGO"]
[null,null,null,null,null,null,null,null,null,null,null,null,null,null,null,null,null,null,null,null,null,null,null,null,null,null,null,null,null,null,null,null,null,null,null,null,null,null,null,null,null,null,null,null,null,null,null,null,null,null,"SAN PABLO COATLÁN"]
[null,null,null,null,null,null,null,null,null,null,null,null,null,null,null,null,null,null,null,null,null,null,null,null,null,null,null,null,null,null,null,null,null,null,null,null,null,null,null,null,null,null,null,null,null,null,null,null,null,null,"SAN PABLO CUATRO VENADOS"]
[null,null,null,null,null,null,null,null,null,null,null,null,null,null,null,null,null,null,null,null,null,null,null,null,null,null,null,null,null,null,null,null,null,null,null,null,null,null,null,null,null,null,null,null,null,null,null,null,null,null,"SAN PABLO ETLA"]
[null,null,null,null,null,null,null,null,null,null,null,null,null,null,null,null,null,null,null,null,null,null,null,null,null,null,null,null,null,null,null,null,null,null,null,null,null,null,null,null,null,null,null,null,null,null,null,null,null,null,"SAN PABLO HUITZO"]
[null,null,null,null,null,null,null,null,null,null,null,null,null,null,null,null,null,null,null,null,null,null,null,null,null,null,null,null,null,null,null,null,null,null,null,null,null,null,null,null,null,null,null,null,null,null,null,null,null,null,"SAN PABLO HUIXTEPEC"]
[null,null,null,null,null,null,null,null,null,null,null,null,null,null,null,null,null,null,null,null,null,null,null,null,null,null,null,null,null,null,null,null,null,null,null,null,null,null,null,null,null,null,null,null,null,null,null,null,null,null,"SAN PABLO MACUILTIANGUIS"]
[null,null,null,null,null,null,null,null,null,null,null,null,null,null,null,null,null,null,null,null,null,null,null,null,null,null,null,null,null,null,null,null,null,null,null,null,null,null,null,null,null,null,null,null,null,null,null,null,null,null,"SAN PABLO TIJALTEPEC"]
[null,null,null,null,null,null,null,null,null,null,null,null,null,null,null,null,null,null,null,null,null,null,null,null,null,null,null,null,null,null,null,null,null,null,null,null,null,null,null,null,null,null,null,null,null,null,null,null,null,null,"SAN PABLO VILLA DE MITLA"]
[null,null,null,null,null,null,null,null,null,null,null,null,null,null,null,null,null,null,null,null,null,null,null,null,null,null,null,null,null,null,null,null,null,null,null,null,null,null,null,null,null,null,null,null,null,null,null,null,null,null,"SAN PABLO YAGANIZA"]
[null,null,null,null,null,null,null,null,null,null,null,null,null,null,null,null,null,null,null,null,null,null,null,null,null,null,null,null,null,null,null,null,null,null,null,null,null,null,null,null,null,null,null,null,null,null,null,null,null,null,"SAN PEDRO AMUZGOS"]
[null,null,null,null,null,null,null,null,null,null,null,null,null,null,null,null,null,null,null,null,null,null,null,null,null,null,null,null,null,null,null,null,null,null,null,null,null,null,null,null,null,null,null,null,null,null,null,null,null,null,"SAN PEDRO APÓSTOL"]
[null,null,null,null,null,null,null,null,null,null,null,null,null,null,null,null,null,null,null,null,null,null,null,null,null,null,null,null,null,null,null,null,null,null,null,null,null,null,null,null,null,null,null,null,null,null,null,null,null,null,"SAN PEDRO ATOYAC"]
[null,null,null,null,null,null,null,null,null,null,null,null,null,null,null,null,null,null,null,null,null,null,null,null,null,null,null,null,null,null,null,null,null,null,null,null,null,null,null,null,null,null,null,null,null,null,null,null,null,null,"SAN PEDRO CAJONOS"]
[null,null,null,null,null,null,null,null,null,null,null,null,null,null,null,null,null,null,null,null,null,null,null,null,null,null,null,null,null,null,null,null,null,null,null,null,null,null,null,null,null,null,null,null,null,null,null,null,null,null,"SAN PEDRO COMITANCILLO"]
[null,null,null,null,null,null,null,null,null,null,null,null,null,null,null,null,null,null,null,null,null,null,null,null,null,null,null,null,null,null,null,null,null,null,null,null,null,null,null,null,null,null,null,null,null,null,null,null,null,null,"SAN PEDRO COXCALTEPEC CÁNTAROS"]
[null,null,null,null,null,null,null,null,null,null,null,null,null,null,null,null,null,null,null,null,null,null,null,null,null,null,null,null,null,null,null,null,null,null,null,null,null,null,null,null,null,null,null,null,null,null,null,null,null,null,"SAN PEDRO EL ALTO"]
[null,null,null,null,null,null,null,null,null,null,null,null,null,null,null,null,null,null,null,null,null,null,null,null,null,null,null,null,null,null,null,null,null,null,null,null,null,null,null,null,null,null,null,null,null,null,null,null,null,null,"SAN PEDRO HUAMELULA"]
[null,null,null,null,null,null,null,null,null,null,null,null,null,null,null,null,null,null,null,null,null,null,null,null,null,null,null,null,null,null,null,null,null,null,null,null,null,null,null,null,null,null,null,null,null,null,null,null,null,null,"SAN PEDRO HUILOTEPEC"]
[null,null,null,null,null,null,null,null,null,null,null,null,null,null,null,null,null,null,null,null,null,null,null,null,null,null,null,null,null,null,null,null,null,null,null,null,null,null,null,null,null,null,null,null,null,null,null,null,null,null,"SAN PEDRO IXCATLÁN"]
[null,null,null,null,null,null,null,null,null,null,null,null,null,null,null,null,null,null,null,null,null,null,null,null,null,null,null,null,null,null,null,null,null,null,null,null,null,null,null,null,null,null,null,null,null,null,null,null,null,null,"SAN PEDRO IXTLAHUACA"]
[null,null,null,null,null,null,null,null,null,null,null,null,null,null,null,null,null,null,null,null,null,null,null,null,null,null,null,null,null,null,null,null,null,null,null,null,null,null,null,null,null,null,null,null,null,null,null,null,null,null,"SAN PEDRO JALTEPETONGO"]
[null,null,null,null,null,null,null,null,null,null,null,null,null,null,null,null,null,null,null,null,null,null,null,null,null,null,null,null,null,null,null,null,null,null,null,null,null,null,null,null,null,null,null,null,null,null,null,null,null,null,"SAN PEDRO JICAYÁN"]
[null,null,null,null,null,null,null,null,null,null,null,null,null,null,null,null,null,null,null,null,null,null,null,null,null,null,null,null,null,null,null,null,null,null,null,null,null,null,null,null,null,null,null,null,null,null,null,null,null,null,"SAN PEDRO JOCOTIPAC"]
[null,null,null,null,null,null,null,null,null,null,null,null,null,null,null,null,null,null,null,null,null,null,null,null,null,null,null,null,null,null,null,null,null,null,null,null,null,null,null,null,null,null,null,null,null,null,null,null,null,null,"SAN PEDRO JUCHATENGO"]
[null,null,null,null,null,null,null,null,null,null,null,null,null,null,null,null,null,null,null,null,null,null,null,null,null,null,null,null,null,null,null,null,null,null,null,null,null,null,null,null,null,null,null,null,null,null,null,null,null,null,"SAN PEDRO MÁRTIR"]
[null,null,null,null,null,null,null,null,null,null,null,null,null,null,null,null,null,null,null,null,null,null,null,null,null,null,null,null,null,null,null,null,null,null,null,null,null,null,null,null,null,null,null,null,null,null,null,null,null,null,"SAN PEDRO MÁRTIR QUIECHAPA"]
[null,null,null,null,null,null,null,null,null,null,null,null,null,null,null,null,null,null,null,null,null,null,null,null,null,null,null,null,null,null,null,null,null,null,null,null,null,null,null,null,null,null,null,null,null,null,null,null,null,null,"SAN PEDRO MÁRTIR YUCUXACO"]
[null,null,null,null,null,null,null,null,null,null,null,null,null,null,null,null,null,null,null,null,null,null,null,null,null,null,null,null,null,null,null,null,null,null,null,null,null,null,null,null,null,null,null,null,null,null,null,null,null,null,"SAN PEDRO MIXTEPEC -DTO. 22 -"]
[null,null,null,null,null,null,null,null,null,null,null,null,null,null,null,null,null,null,null,null,null,null,null,null,null,null,null,null,null,null,null,null,null,null,null,null,null,null,null,null,null,null,null,null,null,null,null,null,null,null,"SAN PEDRO MIXTEPEC -DTO. 26 -"]
[null,null,null,null,null,null,null,null,null,null,null,null,null,null,null,null,null,null,null,null,null,null,null,null,null,null,null,null,null,null,null,null,null,null,null,null,null,null,null,null,null,null,null,null,null,null,null,null,null,null,"SAN PEDRO MOLINOS"]
[null,null,null,null,null,null,null,null,null,null,null,null,null,null,null,null,null,null,null,null,null,null,null,null,null,null,null,null,null,null,null,null,null,null,null,null,null,null,null,null,null,null,null,null,null,null,null,null,null,null,"SAN PEDRO NOPALA"]
[null,null,null,null,null,null,null,null,null,null,null,null,null,null,null,null,null,null,null,null,null,null,null,null,null,null,null,null,null,null,null,null,null,null,null,null,null,null,null,null,null,null,null,null,null,null,null,null,null,null,"SAN PEDRO OCOPETATILLO"]
[null,null,null,null,null,null,null,null,null,null,null,null,null,null,null,null,null,null,null,null,null,null,null,null,null,null,null,null,null,null,null,null,null,null,null,null,null,null,null,null,null,null,null,null,null,null,null,null,null,null,"SAN PEDRO OCOTEPEC"]
[null,null,null,null,null,null,null,null,null,null,null,null,null,null,null,null,null,null,null,null,null,null,null,null,null,null,null,null,null,null,null,null,null,null,null,null,null,null,null,null,null,null,null,null,null,null,null,null,null,null,"SAN PEDRO POCHUTLA"]
[null,null,null,null,null,null,null,null,null,null,null,null,null,null,null,null,null,null,null,null,null,null,null,null,null,null,null,null,null,null,null,null,null,null,null,null,null,null,null,null,null,null,null,null,null,null,null,null,null,null,"SAN PEDRO QUIATONI"]
[null,null,null,null,null,null,null,null,null,null,null,null,null,null,null,null,null,null,null,null,null,null,null,null,null,null,null,null,null,null,null,null,null,null,null,null,null,null,null,null,null,null,null,null,null,null,null,null,null,null,"SAN PEDRO SOCHIÁPAM"]
[null,null,null,null,null,null,null,null,null,null,null,null,null,null,null,null,null,null,null,null,null,null,null,null,null,null,null,null,null,null,null,null,null,null,null,null,null,null,null,null,null,null,null,null,null,null,null,null,null,null,"SAN PEDRO TAPANATEPEC"]
[null,null,null,null,null,null,null,null,null,null,null,null,null,null,null,null,null,null,null,null,null,null,null,null,null,null,null,null,null,null,null,null,null,null,null,null,null,null,null,null,null,null,null,null,null,null,null,null,null,null,"SAN PEDRO TAVICHE"]
[null,null,null,null,null,null,null,null,null,null,null,null,null,null,null,null,null,null,null,null,null,null,null,null,null,null,null,null,null,null,null,null,null,null,null,null,null,null,null,null,null,null,null,null,null,null,null,null,null,null,"SAN PEDRO TEOZACOALCO"]
[null,null,null,null,null,null,null,null,null,null,null,null,null,null,null,null,null,null,null,null,null,null,null,null,null,null,null,null,null,null,null,null,null,null,null,null,null,null,null,null,null,null,null,null,null,null,null,null,null,null,"SAN PEDRO TEUTILA"]
[null,null,null,null,null,null,null,null,null,null,null,null,null,null,null,null,null,null,null,null,null,null,null,null,null,null,null,null,null,null,null,null,null,null,null,null,null,null,null,null,null,null,null,null,null,null,null,null,null,null,"SAN PEDRO TIDAÁ"]
[null,null,null,null,null,null,null,null,null,null,null,null,null,null,null,null,null,null,null,null,null,null,null,null,null,null,null,null,null,null,null,null,null,null,null,null,null,null,null,null,null,null,null,null,null,null,null,null,null,null,"SAN PEDRO TOPILTEPEC"]
[null,null,null,null,null,null,null,null,null,null,null,null,null,null,null,null,null,null,null,null,null,null,null,null,null,null,null,null,null,null,null,null,null,null,null,null,null,null,null,null,null,null,null,null,null,null,null,null,null,null,"SAN PEDRO TOTOLÁPAM"]
[null,null,null,null,null,null,null,null,null,null,null,null,null,null,null,null,null,null,null,null,null,null,null,null,null,null,null,null,null,null,null,null,null,null,null,null,null,null,null,null,null,null,null,null,null,null,null,null,null,null,"SAN PEDRO Y SAN PABLO AYUTLA"]
[null,null,null,null,null,null,null,null,null,null,null,null,null,null,null,null,null,null,null,null,null,null,null,null,null,null,null,null,null,null,null,null,null,null,null,null,null,null,null,null,null,null,null,null,null,null,null,null,null,null,"SAN PEDRO Y SAN PABLO TEPOSCOLULA"]
[null,null,null,null,null,null,null,null,null,null,null,null,null,null,null,null,null,null,null,null,null,null,null,null,null,null,null,null,null,null,null,null,null,null,null,null,null,null,null,null,null,null,null,null,null,null,null,null,null,null,"SAN PEDRO Y SAN PABLO TEQUIXTEPEC"]
[null,null,null,null,null,null,null,null,null,null,null,null,null,null,null,null,null,null,null,null,null,null,null,null,null,null,null,null,null,null,null,null,null,null,null,null,null,null,null,null,null,null,null,null,null,null,null,null,null,null,"SAN PEDRO YANERI"]
[null,null,null,null,null,null,null,null,null,null,null,null,null,null,null,null,null,null,null,null,null,null,null,null,null,null,null,null,null,null,null,null,null,null,null,null,null,null,null,null,null,null,null,null,null,null,null,null,null,null,"SAN PEDRO YÓLOX"]
[null,null,null,null,null,null,null,null,null,null,null,null,null,null,null,null,null,null,null,null,null,null,null,null,null,null,null,null,null,null,null,null,null,null,null,null,null,null,null,null,null,null,null,null,null,null,null,null,null,null,"SAN PEDRO YUCUNAMA"]
[null,null,null,null,null,null,null,null,null,null,null,null,null,null,null,null,null,null,null,null,null,null,null,null,null,null,null,null,null,null,null,null,null,null,null,null,null,null,null,null,null,null,null,null,null,null,null,null,null,null,"SAN RAYMUNDO JALPAN"]
[null,null,null,null,null,null,null,null,null,null,null,null,null,null,null,null,null,null,null,null,null,null,null,null,null,null,null,null,null,null,null,null,null,null,null,null,null,null,null,null,null,null,null,null,null,null,null,null,null,null,"SAN SEBASTIÁN ABASOLO"]
[null,null,null,null,null,null,null,null,null,null,null,null,null,null,null,null,null,null,null,null,null,null,null,null,null,null,null,null,null,null,null,null,null,null,null,null,null,null,null,null,null,null,null,null,null,null,null,null,null,null,"SAN SEBASTIÁN COATLÁN"]
[null,null,null,null,null,null,null,null,null,null,null,null,null,null,null,null,null,null,null,null,null,null,null,null,null,null,null,null,null,null,null,null,null,null,null,null,null,null,null,null,null,null,null,null,null,null,null,null,null,null,"SAN SEBASTIÁN IXCAPA"]
[null,null,null,null,null,null,null,null,null,null,null,null,null,null,null,null,null,null,null,null,null,null,null,null,null,null,null,null,null,null,null,null,null,null,null,null,null,null,null,null,null,null,null,null,null,null,null,null,null,null,"SAN SEBASTIÁN NICANANDUTA"]
[null,null,null,null,null,null,null,null,null,null,null,null,null,null,null,null,null,null,null,null,null,null,null,null,null,null,null,null,null,null,null,null,null,null,null,null,null,null,null,null,null,null,null,null,null,null,null,null,null,null,"SAN SEBASTIÁN RÍO HONDO"]
[null,null,null,null,null,null,null,null,null,null,null,null,null,null,null,null,null,null,null,null,null,null,null,null,null,null,null,null,null,null,null,null,null,null,null,null,null,null,null,null,null,null,null,null,null,null,null,null,null,null,"SAN SEBASTIÁN TECOMAXTLAHUACA"]
[null,null,null,null,null,null,null,null,null,null,null,null,null,null,null,null,null,null,null,null,null,null,null,null,null,null,null,null,null,null,null,null,null,null,null,null,null,null,null,null,null,null,null,null,null,null,null,null,null,null,"SAN SEBASTIÁN TEITIPAC"]
[null,null,null,null,null,null,null,null,null,null,null,null,null,null,null,null,null,null,null,null,null,null,null,null,null,null,null,null,null,null,null,null,null,null,null,null,null,null,null,null,null,null,null,null,null,null,null,null,null,null,"SAN SEBASTIÁN TUTLA"]
[null,null,null,null,null,null,null,null,null,null,null,null,null,null,null,null,null,null,null,null,null,null,null,null,null,null,null,null,null,null,null,null,null,null,null,null,null,null,null,null,null,null,null,null,null,null,null,null,null,null,"SAN SIMÓN ALMOLONGAS"]
[null,null,null,null,null,null,null,null,null,null,null,null,null,null,null,null,null,null,null,null,null,null,null,null,null,null,null,null,null,null,null,null,null,null,null,null,null,null,null,null,null,null,null,null,null,null,null,null,null,null,"SAN SIMÓN ZAHUATLÁN"]
[null,null,null,null,null,null,null,null,null,null,null,null,null,null,null,null,null,null,null,null,null,null,null,null,null,null,null,null,null,null,null,null,null,null,null,null,null,null,null,null,null,null,null,null,null,null,null,null,null,null,"SAN VICENTE COATLÁN"]
[null,null,null,null,null,null,null,null,null,null,null,null,null,null,null,null,null,null,null,null,null,null,null,null,null,null,null,null,null,null,null,null,null,null,null,null,null,null,null,null,null,null,null,null,null,null,null,null,null,null,"SAN VICENTE LACHIXÍO"]
[null,null,null,null,null,null,null,null,null,null,null,null,null,null,null,null,null,null,null,null,null,null,null,null,null,null,null,null,null,null,null,null,null,null,null,null,null,null,null,null,null,null,null,null,null,null,null,null,null,null,"SAN VICENTE NUÑÚ"]
[null,null,null,null,null,null,null,null,null,null,null,null,null,null,null,null,null,null,null,null,null,null,null,null,null,null,null,null,null,null,null,null,null,null,null,null,null,null,null,null,null,null,null,null,null,null,null,null,null,null,"SANTA ANA"]
[null,null,null,null,null,null,null,null,null,null,null,null,null,null,null,null,null,null,null,null,null,null,null,null,null,null,null,null,null,null,null,null,null,null,null,null,null,null,null,null,null,null,null,null,null,null,null,null,null,null,"SANTA ANA ATEIXTLAHUACA"]
[null,null,null,null,null,null,null,null,null,null,null,null,null,null,null,null,null,null,null,null,null,null,null,null,null,null,null,null,null,null,null,null,null,null,null,null,null,null,null,null,null,null,null,null,null,null,null,null,null,null,"SANTA ANA CUAUHTÉMOC"]
[null,null,null,null,null,null,null,null,null,null,null,null,null,null,null,null,null,null,null,null,null,null,null,null,null,null,null,null,null,null,null,null,null,null,null,null,null,null,null,null,null,null,null,null,null,null,null,null,null,null,"SANTA ANA DEL VALLE"]
[null,null,null,null,null,null,null,null,null,null,null,null,null,null,null,null,null,null,null,null,null,null,null,null,null,null,null,null,null,null,null,null,null,null,null,null,null,null,null,null,null,null,null,null,null,null,null,null,null,null,"SANTA ANA TAVELA"]
[null,null,null,null,null,null,null,null,null,null,null,null,null,null,null,null,null,null,null,null,null,null,null,null,null,null,null,null,null,null,null,null,null,null,null,null,null,null,null,null,null,null,null,null,null,null,null,null,null,null,"SANTA ANA TLAPACOYAN"]
[null,null,null,null,null,null,null,null,null,null,null,null,null,null,null,null,null,null,null,null,null,null,null,null,null,null,null,null,null,null,null,null,null,null,null,null,null,null,null,null,null,null,null,null,null,null,null,null,null,null,"SANTA ANA YARENI"]
[null,null,null,null,null,null,null,null,null,null,null,null,null,null,null,null,null,null,null,null,null,null,null,null,null,null,null,null,null,null,null,null,null,null,null,null,null,null,null,null,null,null,null,null,null,null,null,null,null,null,"SANTA ANA ZEGACHE"]
[null,null,null,null,null,null,null,null,null,null,null,null,null,null,null,null,null,null,null,null,null,null,null,null,null,null,null,null,null,null,null,null,null,null,null,null,null,null,null,null,null,null,null,null,null,null,null,null,null,null,"SANTA CATALINA QUIERÍ"]
[null,null,null,null,null,null,null,null,null,null,null,null,null,null,null,null,null,null,null,null,null,null,null,null,null,null,null,null,null,null,null,null,null,null,null,null,null,null,null,null,null,null,null,null,null,null,null,null,null,null,"SANTA CATARINA CUIXTLA"]
[null,null,null,null,null,null,null,null,null,null,null,null,null,null,null,null,null,null,null,null,null,null,null,null,null,null,null,null,null,null,null,null,null,null,null,null,null,null,null,null,null,null,null,null,null,null,null,null,null,null,"SANTA CATARINA IXTEPEJI"]
[null,null,null,null,null,null,null,null,null,null,null,null,null,null,null,null,null,null,null,null,null,null,null,null,null,null,null,null,null,null,null,null,null,null,null,null,null,null,null,null,null,null,null,null,null,null,null,null,null,null,"SANTA CATARINA JUQUILA"]
[null,null,null,null,null,null,null,null,null,null,null,null,null,null,null,null,null,null,null,null,null,null,null,null,null,null,null,null,null,null,null,null,null,null,null,null,null,null,null,null,null,null,null,null,null,null,null,null,null,null,"SANTA CATARINA LACHATAO"]
[null,null,null,null,null,null,null,null,null,null,null,null,null,null,null,null,null,null,null,null,null,null,null,null,null,null,null,null,null,null,null,null,null,null,null,null,null,null,null,null,null,null,null,null,null,null,null,null,null,null,"SANTA CATARINA LOXICHA"]
[null,null,null,null,null,null,null,null,null,null,null,null,null,null,null,null,null,null,null,null,null,null,null,null,null,null,null,null,null,null,null,null,null,null,null,null,null,null,null,null,null,null,null,null,null,null,null,null,null,null,"SANTA CATARINA MECHOACÁN"]
[null,null,null,null,null,null,null,null,null,null,null,null,null,null,null,null,null,null,null,null,null,null,null,null,null,null,null,null,null,null,null,null,null,null,null,null,null,null,null,null,null,null,null,null,null,null,null,null,null,null,"SANTA CATARINA MINAS"]
[null,null,null,null,null,null,null,null,null,null,null,null,null,null,null,null,null,null,null,null,null,null,null,null,null,null,null,null,null,null,null,null,null,null,null,null,null,null,null,null,null,null,null,null,null,null,null,null,null,null,"SANTA CATARINA QUIANÉ"]
[null,null,null,null,null,null,null,null,null,null,null,null,null,null,null,null,null,null,null,null,null,null,null,null,null,null,null,null,null,null,null,null,null,null,null,null,null,null,null,null,null,null,null,null,null,null,null,null,null,null,"SANTA CATARINA QUIOQUITANI"]
[null,null,null,null,null,null,null,null,null,null,null,null,null,null,null,null,null,null,null,null,null,null,null,null,null,null,null,null,null,null,null,null,null,null,null,null,null,null,null,null,null,null,null,null,null,null,null,null,null,null,"SANTA CATARINA TAYATA"]
[null,null,null,null,null,null,null,null,null,null,null,null,null,null,null,null,null,null,null,null,null,null,null,null,null,null,null,null,null,null,null,null,null,null,null,null,null,null,null,null,null,null,null,null,null,null,null,null,null,null,"SANTA CATARINA TICUÁ"]
[null,null,null,null,null,null,null,null,null,null,null,null,null,null,null,null,null,null,null,null,null,null,null,null,null,null,null,null,null,null,null,null,null,null,null,null,null,null,null,null,null,null,null,null,null,null,null,null,null,null,"SANTA CATARINA YOSONOTÚ"]
[null,null,null,null,null,null,null,null,null,null,null,null,null,null,null,null,null,null,null,null,null,null,null,null,null,null,null,null,null,null,null,null,null,null,null,null,null,null,null,null,null,null,null,null,null,null,null,null,null,null,"SANTA CATARINA ZAPOQUILA"]
[null,null,null,null,null,null,null,null,null,null,null,null,null,null,null,null,null,null,null,null,null,null,null,null,null,null,null,null,null,null,null,null,null,null,null,null,null,null,null,null,null,null,null,null,null,null,null,null,null,null,"SANTA CRUZ ACATEPEC"]
[null,null,null,null,null,null,null,null,null,null,null,null,null,null,null,null,null,null,null,null,null,null,null,null,null,null,null,null,null,null,null,null,null,null,null,null,null,null,null,null,null,null,null,null,null,null,null,null,null,null,"SANTA CRUZ AMILPAS"]
[null,null,null,null,null,null,null,null,null,null,null,null,null,null,null,null,null,null,null,null,null,null,null,null,null,null,null,null,null,null,null,null,null,null,null,null,null,null,null,null,null,null,null,null,null,null,null,null,null,null,"SANTA CRUZ DE BRAVO"]
[null,null,null,null,null,null,null,null,null,null,null,null,null,null,null,null,null,null,null,null,null,null,null,null,null,null,null,null,null,null,null,null,null,null,null,null,null,null,null,null,null,null,null,null,null,null,null,null,null,null,"SANTA CRUZ ITUNDUJIA"]
[null,null,null,null,null,null,null,null,null,null,null,null,null,null,null,null,null,null,null,null,null,null,null,null,null,null,null,null,null,null,null,null,null,null,null,null,null,null,null,null,null,null,null,null,null,null,null,null,null,null,"SANTA CRUZ MIXTEPEC"]
[null,null,null,null,null,null,null,null,null,null,null,null,null,null,null,null,null,null,null,null,null,null,null,null,null,null,null,null,null,null,null,null,null,null,null,null,null,null,null,null,null,null,null,null,null,null,null,null,null,null,"SANTA CRUZ NUNDACO"]
[null,null,null,null,null,null,null,null,null,null,null,null,null,null,null,null,null,null,null,null,null,null,null,null,null,null,null,null,null,null,null,null,null,null,null,null,null,null,null,null,null,null,null,null,null,null,null,null,null,null,"SANTA CRUZ PAPALUTLA"]
[null,null,null,null,null,null,null,null,null,null,null,null,null,null,null,null,null,null,null,null,null,null,null,null,null,null,null,null,null,null,null,null,null,null,null,null,null,null,null,null,null,null,null,null,null,null,null,null,null,null,"SANTA CRUZ TACACHE DE MINA"]
[null,null,null,null,null,null,null,null,null,null,null,null,null,null,null,null,null,null,null,null,null,null,null,null,null,null,null,null,null,null,null,null,null,null,null,null,null,null,null,null,null,null,null,null,null,null,null,null,null,null,"SANTA CRUZ TACAHUA"]
[null,null,null,null,null,null,null,null,null,null,null,null,null,null,null,null,null,null,null,null,null,null,null,null,null,null,null,null,null,null,null,null,null,null,null,null,null,null,null,null,null,null,null,null,null,null,null,null,null,null,"SANTA CRUZ TAYATA"]
[null,null,null,null,null,null,null,null,null,null,null,null,null,null,null,null,null,null,null,null,null,null,null,null,null,null,null,null,null,null,null,null,null,null,null,null,null,null,null,null,null,null,null,null,null,null,null,null,null,null,"SANTA CRUZ XITLA"]
[null,null,null,null,null,null,null,null,null,null,null,null,null,null,null,null,null,null,null,null,null,null,null,null,null,null,null,null,null,null,null,null,null,null,null,null,null,null,null,null,null,null,null,null,null,null,null,null,null,null,"SANTA CRUZ XOXOCOTLÁN"]
[null,null,null,null,null,null,null,null,null,null,null,null,null,null,null,null,null,null,null,null,null,null,null,null,null,null,null,null,null,null,null,null,null,null,null,null,null,null,null,null,null,null,null,null,null,null,null,null,null,null,"SANTA CRUZ ZENZONTEPEC"]
[null,null,null,null,null,null,null,null,null,null,null,null,null,null,null,null,null,null,null,null,null,null,null,null,null,null,null,null,null,null,null,null,null,null,null,null,null,null,null,null,null,null,null,null,null,null,null,null,null,null,"SANTA GERTRUDIS"]
[null,null,null,null,null,null,null,null,null,null,null,null,null,null,null,null,null,null,null,null,null,null,null,null,null,null,null,null,null,null,null,null,null,null,null,null,null,null,null,null,null,null,null,null,null,null,null,null,null,null,"SANTA INÉS DE ZARAGOZA"]
[null,null,null,null,null,null,null,null,null,null,null,null,null,null,null,null,null,null,null,null,null,null,null,null,null,null,null,null,null,null,null,null,null,null,null,null,null,null,null,null,null,null,null,null,null,null,null,null,null,null,"SANTA INÉS DEL MONTE"]
[null,null,null,null,null,null,null,null,null,null,null,null,null,null,null,null,null,null,null,null,null,null,null,null,null,null,null,null,null,null,null,null,null,null,null,null,null,null,null,null,null,null,null,null,null,null,null,null,null,null,"SANTA INÉS YATZECHE"]
[null,null,null,null,null,null,null,null,null,null,null,null,null,null,null,null,null,null,null,null,null,null,null,null,null,null,null,null,null,null,null,null,null,null,null,null,null,null,null,null,null,null,null,null,null,null,null,null,null,null,"SANTA LUCÍA DEL CAMINO"]
[null,null,null,null,null,null,null,null,null,null,null,null,null,null,null,null,null,null,null,null,null,null,null,null,null,null,null,null,null,null,null,null,null,null,null,null,null,null,null,null,null,null,null,null,null,null,null,null,null,null,"SANTA LUCÍA MIAHUATLÁN"]
[null,null,null,null,null,null,null,null,null,null,null,null,null,null,null,null,null,null,null,null,null,null,null,null,null,null,null,null,null,null,null,null,null,null,null,null,null,null,null,null,null,null,null,null,null,null,null,null,null,null,"SANTA LUCÍA MONTEVERDE"]
[null,null,null,null,null,null,null,null,null,null,null,null,null,null,null,null,null,null,null,null,null,null,null,null,null,null,null,null,null,null,null,null,null,null,null,null,null,null,null,null,null,null,null,null,null,null,null,null,null,null,"SANTA LUCÍA OCOTLÁN"]
[null,null,null,null,null,null,null,null,null,null,null,null,null,null,null,null,null,null,null,null,null,null,null,null,null,null,null,null,null,null,null,null,null,null,null,null,null,null,null,null,null,null,null,null,null,null,null,null,null,null,"SANTA MAGDALENA JICOTLÁN"]
[null,null,null,null,null,null,null,null,null,null,null,null,null,null,null,null,null,null,null,null,null,null,null,null,null,null,null,null,null,null,null,null,null,null,null,null,null,null,null,null,null,null,null,null,null,null,null,null,null,null,"SANTA MARÍA ALOTEPEC"]
[null,null,null,null,null,null,null,null,null,null,null,null,null,null,null,null,null,null,null,null,null,null,null,null,null,null,null,null,null,null,null,null,null,null,null,null,null,null,null,null,null,null,null,null,null,null,null,null,null,null,"SANTA MARÍA APAZCO"]
[null,null,null,null,null,null,null,null,null,null,null,null,null,null,null,null,null,null,null,null,null,null,null,null,null,null,null,null,null,null,null,null,null,null,null,null,null,null,null,null,null,null,null,null,null,null,null,null,null,null,"SANTA MARÍA ATZOMPA"]
[null,null,null,null,null,null,null,null,null,null,null,null,null,null,null,null,null,null,null,null,null,null,null,null,null,null,null,null,null,null,null,null,null,null,null,null,null,null,null,null,null,null,null,null,null,null,null,null,null,null,"SANTA MARÍA CAMOTLÁN"]
[null,null,null,null,null,null,null,null,null,null,null,null,null,null,null,null,null,null,null,null,null,null,null,null,null,null,null,null,null,null,null,null,null,null,null,null,null,null,null,null,null,null,null,null,null,null,null,null,null,null,"SANTA MARÍA CHACHOÁPAM"]
[null,null,null,null,null,null,null,null,null,null,null,null,null,null,null,null,null,null,null,null,null,null,null,null,null,null,null,null,null,null,null,null,null,null,null,null,null,null,null,null,null,null,null,null,null,null,null,null,null,null,"SANTA MARÍA CHILCHOTLA"]
[null,null,null,null,null,null,null,null,null,null,null,null,null,null,null,null,null,null,null,null,null,null,null,null,null,null,null,null,null,null,null,null,null,null,null,null,null,null,null,null,null,null,null,null,null,null,null,null,null,null,"SANTA MARÍA CHIMALAPA"]
[null,null,null,null,null,null,null,null,null,null,null,null,null,null,null,null,null,null,null,null,null,null,null,null,null,null,null,null,null,null,null,null,null,null,null,null,null,null,null,null,null,null,null,null,null,null,null,null,null,null,"SANTA MARÍA COLOTEPEC"]
[null,null,null,null,null,null,null,null,null,null,null,null,null,null,null,null,null,null,null,null,null,null,null,null,null,null,null,null,null,null,null,null,null,null,null,null,null,null,null,null,null,null,null,null,null,null,null,null,null,null,"SANTA MARÍA CORTIJO"]
[null,null,null,null,null,null,null,null,null,null,null,null,null,null,null,null,null,null,null,null,null,null,null,null,null,null,null,null,null,null,null,null,null,null,null,null,null,null,null,null,null,null,null,null,null,null,null,null,null,null,"SANTA MARÍA COYOTEPEC"]
[null,null,null,null,null,null,null,null,null,null,null,null,null,null,null,null,null,null,null,null,null,null,null,null,null,null,null,null,null,null,null,null,null,null,null,null,null,null,null,null,null,null,null,null,null,null,null,null,null,null,"SANTA MARÍA DEL ROSARIO"]
[null,null,null,null,null,null,null,null,null,null,null,null,null,null,null,null,null,null,null,null,null,null,null,null,null,null,null,null,null,null,null,null,null,null,null,null,null,null,null,null,null,null,null,null,null,null,null,null,null,null,"SANTA MARÍA DEL TULE"]
[null,null,null,null,null,null,null,null,null,null,null,null,null,null,null,null,null,null,null,null,null,null,null,null,null,null,null,null,null,null,null,null,null,null,null,null,null,null,null,null,null,null,null,null,null,null,null,null,null,null,"SANTA MARÍA ECATEPEC"]
[null,null,null,null,null,null,null,null,null,null,null,null,null,null,null,null,null,null,null,null,null,null,null,null,null,null,null,null,null,null,null,null,null,null,null,null,null,null,null,null,null,null,null,null,null,null,null,null,null,null,"SANTA MARÍA GUELACÉ"]
[null,null,null,null,null,null,null,null,null,null,null,null,null,null,null,null,null,null,null,null,null,null,null,null,null,null,null,null,null,null,null,null,null,null,null,null,null,null,null,null,null,null,null,null,null,null,null,null,null,null,"SANTA MARÍA GUIENAGATI"]
[null,null,null,null,null,null,null,null,null,null,null,null,null,null,null,null,null,null,null,null,null,null,null,null,null,null,null,null,null,null,null,null,null,null,null,null,null,null,null,null,null,null,null,null,null,null,null,null,null,null,"SANTA MARÍA HUATULCO"]
[null,null,null,null,null,null,null,null,null,null,null,null,null,null,null,null,null,null,null,null,null,null,null,null,null,null,null,null,null,null,null,null,null,null,null,null,null,null,null,null,null,null,null,null,null,null,null,null,null,null,"SANTA MARÍA HUAZOLOTITLÁN"]
[null,null,null,null,null,null,null,null,null,null,null,null,null,null,null,null,null,null,null,null,null,null,null,null,null,null,null,null,null,null,null,null,null,null,null,null,null,null,null,null,null,null,null,null,null,null,null,null,null,null,"SANTA MARÍA IPALAPA"]
[null,null,null,null,null,null,null,null,null,null,null,null,null,null,null,null,null,null,null,null,null,null,null,null,null,null,null,null,null,null,null,null,null,null,null,null,null,null,null,null,null,null,null,null,null,null,null,null,null,null,"SANTA MARÍA IXCATLÁN"]
[null,null,null,null,null,null,null,null,null,null,null,null,null,null,null,null,null,null,null,null,null,null,null,null,null,null,null,null,null,null,null,null,null,null,null,null,null,null,null,null,null,null,null,null,null,null,null,null,null,null,"SANTA MARÍA JACATEPEC"]
[null,null,null,null,null,null,null,null,null,null,null,null,null,null,null,null,null,null,null,null,null,null,null,null,null,null,null,null,null,null,null,null,null,null,null,null,null,null,null,null,null,null,null,null,null,null,null,null,null,null,"SANTA MARÍA JALAPA DEL MARQUÉS"]
[null,null,null,null,null,null,null,null,null,null,null,null,null,null,null,null,null,null,null,null,null,null,null,null,null,null,null,null,null,null,null,null,null,null,null,null,null,null,null,null,null,null,null,null,null,null,null,null,null,null,"SANTA MARÍA JALTIANGUIS"]
[null,null,null,null,null,null,null,null,null,null,null,null,null,null,null,null,null,null,null,null,null,null,null,null,null,null,null,null,null,null,null,null,null,null,null,null,null,null,null,null,null,null,null,null,null,null,null,null,null,null,"SANTA MARÍA LA ASUNCIÓN"]
[null,null,null,null,null,null,null,null,null,null,null,null,null,null,null,null,null,null,null,null,null,null,null,null,null,null,null,null,null,null,null,null,null,null,null,null,null,null,null,null,null,null,null,null,null,null,null,null,null,null,"SANTA MARÍA LACHIXÍO"]
[null,null,null,null,null,null,null,null,null,null,null,null,null,null,null,null,null,null,null,null,null,null,null,null,null,null,null,null,null,null,null,null,null,null,null,null,null,null,null,null,null,null,null,null,null,null,null,null,null,null,"SANTA MARÍA MIXTEQUILLA"]
[null,null,null,null,null,null,null,null,null,null,null,null,null,null,null,null,null,null,null,null,null,null,null,null,null,null,null,null,null,null,null,null,null,null,null,null,null,null,null,null,null,null,null,null,null,null,null,null,null,null,"SANTA MARÍA NATIVITAS"]
[null,null,null,null,null,null,null,null,null,null,null,null,null,null,null,null,null,null,null,null,null,null,null,null,null,null,null,null,null,null,null,null,null,null,null,null,null,null,null,null,null,null,null,null,null,null,null,null,null,null,"SANTA MARÍA NDUAYACO"]
[null,null,null,null,null,null,null,null,null,null,null,null,null,null,null,null,null,null,null,null,null,null,null,null,null,null,null,null,null,null,null,null,null,null,null,null,null,null,null,null,null,null,null,null,null,null,null,null,null,null,"SANTA MARÍA OZOLOTEPEC"]
[null,null,null,null,null,null,null,null,null,null,null,null,null,null,null,null,null,null,null,null,null,null,null,null,null,null,null,null,null,null,null,null,null,null,null,null,null,null,null,null,null,null,null,null,null,null,null,null,null,null,"SANTA MARÍA PÁPALO"]
[null,null,null,null,null,null,null,null,null,null,null,null,null,null,null,null,null,null,null,null,null,null,null,null,null,null,null,null,null,null,null,null,null,null,null,null,null,null,null,null,null,null,null,null,null,null,null,null,null,null,"SANTA MARÍA PEÑOLES"]
[null,null,null,null,null,null,null,null,null,null,null,null,null,null,null,null,null,null,null,null,null,null,null,null,null,null,null,null,null,null,null,null,null,null,null,null,null,null,null,null,null,null,null,null,null,null,null,null,null,null,"SANTA MARÍA PETAPA"]
[null,null,null,null,null,null,null,null,null,null,null,null,null,null,null,null,null,null,null,null,null,null,null,null,null,null,null,null,null,null,null,null,null,null,null,null,null,null,null,null,null,null,null,null,null,null,null,null,null,null,"SANTA MARÍA QUIEGOLANI"]
[null,null,null,null,null,null,null,null,null,null,null,null,null,null,null,null,null,null,null,null,null,null,null,null,null,null,null,null,null,null,null,null,null,null,null,null,null,null,null,null,null,null,null,null,null,null,null,null,null,null,"SANTA MARÍA SOLA"]
[null,null,null,null,null,null,null,null,null,null,null,null,null,null,null,null,null,null,null,null,null,null,null,null,null,null,null,null,null,null,null,null,null,null,null,null,null,null,null,null,null,null,null,null,null,null,null,null,null,null,"SANTA MARÍA TATALTEPEC"]
[null,null,null,null,null,null,null,null,null,null,null,null,null,null,null,null,null,null,null,null,null,null,null,null,null,null,null,null,null,null,null,null,null,null,null,null,null,null,null,null,null,null,null,null,null,null,null,null,null,null,"SANTA MARÍA TECOMAVACA"]
[null,null,null,null,null,null,null,null,null,null,null,null,null,null,null,null,null,null,null,null,null,null,null,null,null,null,null,null,null,null,null,null,null,null,null,null,null,null,null,null,null,null,null,null,null,null,null,null,null,null,"SANTA MARÍA TEMAXCALAPA"]
[null,null,null,null,null,null,null,null,null,null,null,null,null,null,null,null,null,null,null,null,null,null,null,null,null,null,null,null,null,null,null,null,null,null,null,null,null,null,null,null,null,null,null,null,null,null,null,null,null,null,"SANTA MARÍA TEMAXCALTEPEC"]
[null,null,null,null,null,null,null,null,null,null,null,null,null,null,null,null,null,null,null,null,null,null,null,null,null,null,null,null,null,null,null,null,null,null,null,null,null,null,null,null,null,null,null,null,null,null,null,null,null,null,"SANTA MARÍA TEOPOXCO"]
[null,null,null,null,null,null,null,null,null,null,null,null,null,null,null,null,null,null,null,null,null,null,null,null,null,null,null,null,null,null,null,null,null,null,null,null,null,null,null,null,null,null,null,null,null,null,null,null,null,null,"SANTA MARÍA TEPANTLALI"]
[null,null,null,null,null,null,null,null,null,null,null,null,null,null,null,null,null,null,null,null,null,null,null,null,null,null,null,null,null,null,null,null,null,null,null,null,null,null,null,null,null,null,null,null,null,null,null,null,null,null,"SANTA MARÍA TEXCATITLÁN"]
[null,null,null,null,null,null,null,null,null,null,null,null,null,null,null,null,null,null,null,null,null,null,null,null,null,null,null,null,null,null,null,null,null,null,null,null,null,null,null,null,null,null,null,null,null,null,null,null,null,null,"SANTA MARÍA TLAHUITOLTEPEC"]
[null,null,null,null,null,null,null,null,null,null,null,null,null,null,null,null,null,null,null,null,null,null,null,null,null,null,null,null,null,null,null,null,null,null,null,null,null,null,null,null,null,null,null,null,null,null,null,null,null,null,"SANTA MARÍA TLALIXTAC"]
[null,null,null,null,null,null,null,null,null,null,null,null,null,null,null,null,null,null,null,null,null,null,null,null,null,null,null,null,null,null,null,null,null,null,null,null,null,null,null,null,null,null,null,null,null,null,null,null,null,null,"SANTA MARÍA TONAMECA"]
[null,null,null,null,null,null,null,null,null,null,null,null,null,null,null,null,null,null,null,null,null,null,null,null,null,null,null,null,null,null,null,null,null,null,null,null,null,null,null,null,null,null,null,null,null,null,null,null,null,null,"SANTA MARÍA TOTOLAPILLA"]
[null,null,null,null,null,null,null,null,null,null,null,null,null,null,null,null,null,null,null,null,null,null,null,null,null,null,null,null,null,null,null,null,null,null,null,null,null,null,null,null,null,null,null,null,null,null,null,null,null,null,"SANTA MARÍA XADANI"]
[null,null,null,null,null,null,null,null,null,null,null,null,null,null,null,null,null,null,null,null,null,null,null,null,null,null,null,null,null,null,null,null,null,null,null,null,null,null,null,null,null,null,null,null,null,null,null,null,null,null,"SANTA MARÍA YALINA"]
[null,null,null,null,null,null,null,null,null,null,null,null,null,null,null,null,null,null,null,null,null,null,null,null,null,null,null,null,null,null,null,null,null,null,null,null,null,null,null,null,null,null,null,null,null,null,null,null,null,null,"SANTA MARÍA YAVESÍA"]
[null,null,null,null,null,null,null,null,null,null,null,null,null,null,null,null,null,null,null,null,null,null,null,null,null,null,null,null,null,null,null,null,null,null,null,null,null,null,null,null,null,null,null,null,null,null,null,null,null,null,"SANTA MARÍA YOLOTEPEC"]
[null,null,null,null,null,null,null,null,null,null,null,null,null,null,null,null,null,null,null,null,null,null,null,null,null,null,null,null,null,null,null,null,null,null,null,null,null,null,null,null,null,null,null,null,null,null,null,null,null,null,"SANTA MARÍA YOSOYÚA"]
[null,null,null,null,null,null,null,null,null,null,null,null,null,null,null,null,null,null,null,null,null,null,null,null,null,null,null,null,null,null,null,null,null,null,null,null,null,null,null,null,null,null,null,null,null,null,null,null,null,null,"SANTA MARÍA YUCUHITI"]
[null,null,null,null,null,null,null,null,null,null,null,null,null,null,null,null,null,null,null,null,null,null,null,null,null,null,null,null,null,null,null,null,null,null,null,null,null,null,null,null,null,null,null,null,null,null,null,null,null,null,"SANTA MARÍA ZACATEPEC"]
[null,null,null,null,null,null,null,null,null,null,null,null,null,null,null,null,null,null,null,null,null,null,null,null,null,null,null,null,null,null,null,null,null,null,null,null,null,null,null,null,null,null,null,null,null,null,null,null,null,null,"SANTA MARÍA ZANIZA"]
[null,null,null,null,null,null,null,null,null,null,null,null,null,null,null,null,null,null,null,null,null,null,null,null,null,null,null,null,null,null,null,null,null,null,null,null,null,null,null,null,null,null,null,null,null,null,null,null,null,null,"SANTA MARÍA ZOQUITLÁN"]
[null,null,null,null,null,null,null,null,null,null,null,null,null,null,null,null,null,null,null,null,null,null,null,null,null,null,null,null,null,null,null,null,null,null,null,null,null,null,null,null,null,null,null,null,null,null,null,null,null,null,"SANTIAGO AMOLTEPEC"]
[null,null,null,null,null,null,null,null,null,null,null,null,null,null,null,null,null,null,null,null,null,null,null,null,null,null,null,null,null,null,null,null,null,null,null,null,null,null,null,null,null,null,null,null,null,null,null,null,null,null,"SANTIAGO APOALA"]
[null,null,null,null,null,null,null,null,null,null,null,null,null,null,null,null,null,null,null,null,null,null,null,null,null,null,null,null,null,null,null,null,null,null,null,null,null,null,null,null,null,null,null,null,null,null,null,null,null,null,"SANTIAGO APÓSTOL"]
[null,null,null,null,null,null,null,null,null,null,null,null,null,null,null,null,null,null,null,null,null,null,null,null,null,null,null,null,null,null,null,null,null,null,null,null,null,null,null,null,null,null,null,null,null,null,null,null,null,null,"SANTIAGO ASTATA"]
[null,null,null,null,null,null,null,null,null,null,null,null,null,null,null,null,null,null,null,null,null,null,null,null,null,null,null,null,null,null,null,null,null,null,null,null,null,null,null,null,null,null,null,null,null,null,null,null,null,null,"SANTIAGO ATITLÁN"]
[null,null,null,null,null,null,null,null,null,null,null,null,null,null,null,null,null,null,null,null,null,null,null,null,null,null,null,null,null,null,null,null,null,null,null,null,null,null,null,null,null,null,null,null,null,null,null,null,null,null,"SANTIAGO AYUQUILILLA"]
[null,null,null,null,null,null,null,null,null,null,null,null,null,null,null,null,null,null,null,null,null,null,null,null,null,null,null,null,null,null,null,null,null,null,null,null,null,null,null,null,null,null,null,null,null,null,null,null,null,null,"SANTIAGO CACALOXTEPEC"]
[null,null,null,null,null,null,null,null,null,null,null,null,null,null,null,null,null,null,null,null,null,null,null,null,null,null,null,null,null,null,null,null,null,null,null,null,null,null,null,null,null,null,null,null,null,null,null,null,null,null,"SANTIAGO CAMOTLÁN"]
[null,null,null,null,null,null,null,null,null,null,null,null,null,null,null,null,null,null,null,null,null,null,null,null,null,null,null,null,null,null,null,null,null,null,null,null,null,null,null,null,null,null,null,null,null,null,null,null,null,null,"SANTIAGO CHOÁPAM"]
[null,null,null,null,null,null,null,null,null,null,null,null,null,null,null,null,null,null,null,null,null,null,null,null,null,null,null,null,null,null,null,null,null,null,null,null,null,null,null,null,null,null,null,null,null,null,null,null,null,null,"SANTIAGO COMALTEPEC"]
[null,null,null,null,null,null,null,null,null,null,null,null,null,null,null,null,null,null,null,null,null,null,null,null,null,null,null,null,null,null,null,null,null,null,null,null,null,null,null,null,null,null,null,null,null,null,null,null,null,null,"SANTIAGO DEL RÍO"]
[null,null,null,null,null,null,null,null,null,null,null,null,null,null,null,null,null,null,null,null,null,null,null,null,null,null,null,null,null,null,null,null,null,null,null,null,null,null,null,null,null,null,null,null,null,null,null,null,null,null,"SANTIAGO HUAJOLOTITLÁN"]
[null,null,null,null,null,null,null,null,null,null,null,null,null,null,null,null,null,null,null,null,null,null,null,null,null,null,null,null,null,null,null,null,null,null,null,null,null,null,null,null,null,null,null,null,null,null,null,null,null,null,"SANTIAGO HUAUCLILLA"]
[null,null,null,null,null,null,null,null,null,null,null,null,null,null,null,null,null,null,null,null,null,null,null,null,null,null,null,null,null,null,null,null,null,null,null,null,null,null,null,null,null,null,null,null,null,null,null,null,null,null,"SANTIAGO IHUITLÁN PLUMAS"]
[null,null,null,null,null,null,null,null,null,null,null,null,null,null,null,null,null,null,null,null,null,null,null,null,null,null,null,null,null,null,null,null,null,null,null,null,null,null,null,null,null,null,null,null,null,null,null,null,null,null,"SANTIAGO IXCUINTEPEC"]
[null,null,null,null,null,null,null,null,null,null,null,null,null,null,null,null,null,null,null,null,null,null,null,null,null,null,null,null,null,null,null,null,null,null,null,null,null,null,null,null,null,null,null,null,null,null,null,null,null,null,"SANTIAGO IXTAYUTLA"]
[null,null,null,null,null,null,null,null,null,null,null,null,null,null,null,null,null,null,null,null,null,null,null,null,null,null,null,null,null,null,null,null,null,null,null,null,null,null,null,null,null,null,null,null,null,null,null,null,null,null,"SANTIAGO JAMILTEPEC"]
[null,null,null,null,null,null,null,null,null,null,null,null,null,null,null,null,null,null,null,null,null,null,null,null,null,null,null,null,null,null,null,null,null,null,null,null,null,null,null,null,null,null,null,null,null,null,null,null,null,null,"SANTIAGO JOCOTEPEC"]
[null,null,null,null,null,null,null,null,null,null,null,null,null,null,null,null,null,null,null,null,null,null,null,null,null,null,null,null,null,null,null,null,null,null,null,null,null,null,null,null,null,null,null,null,null,null,null,null,null,null,"SANTIAGO JUXTLAHUACA"]
[null,null,null,null,null,null,null,null,null,null,null,null,null,null,null,null,null,null,null,null,null,null,null,null,null,null,null,null,null,null,null,null,null,null,null,null,null,null,null,null,null,null,null,null,null,null,null,null,null,null,"SANTIAGO LACHIGUIRI"]
[null,null,null,null,null,null,null,null,null,null,null,null,null,null,null,null,null,null,null,null,null,null,null,null,null,null,null,null,null,null,null,null,null,null,null,null,null,null,null,null,null,null,null,null,null,null,null,null,null,null,"SANTIAGO LALOPA"]
[null,null,null,null,null,null,null,null,null,null,null,null,null,null,null,null,null,null,null,null,null,null,null,null,null,null,null,null,null,null,null,null,null,null,null,null,null,null,null,null,null,null,null,null,null,null,null,null,null,null,"SANTIAGO LAOLLAGA"]
[null,null,null,null,null,null,null,null,null,null,null,null,null,null,null,null,null,null,null,null,null,null,null,null,null,null,null,null,null,null,null,null,null,null,null,null,null,null,null,null,null,null,null,null,null,null,null,null,null,null,"SANTIAGO LAXOPA"]
[null,null,null,null,null,null,null,null,null,null,null,null,null,null,null,null,null,null,null,null,null,null,null,null,null,null,null,null,null,null,null,null,null,null,null,null,null,null,null,null,null,null,null,null,null,null,null,null,null,null,"SANTIAGO LLANO GRANDE"]
[null,null,null,null,null,null,null,null,null,null,null,null,null,null,null,null,null,null,null,null,null,null,null,null,null,null,null,null,null,null,null,null,null,null,null,null,null,null,null,null,null,null,null,null,null,null,null,null,null,null,"SANTIAGO MATATLÁN"]
[null,null,null,null,null,null,null,null,null,null,null,null,null,null,null,null,null,null,null,null,null,null,null,null,null,null,null,null,null,null,null,null,null,null,null,null,null,null,null,null,null,null,null,null,null,null,null,null,null,null,"SANTIAGO MILTEPEC"]
[null,null,null,null,null,null,null,null,null,null,null,null,null,null,null,null,null,null,null,null,null,null,null,null,null,null,null,null,null,null,null,null,null,null,null,null,null,null,null,null,null,null,null,null,null,null,null,null,null,null,"SANTIAGO MINAS"]
[null,null,null,null,null,null,null,null,null,null,null,null,null,null,null,null,null,null,null,null,null,null,null,null,null,null,null,null,null,null,null,null,null,null,null,null,null,null,null,null,null,null,null,null,null,null,null,null,null,null,"SANTIAGO NACALTEPEC"]
[null,null,null,null,null,null,null,null,null,null,null,null,null,null,null,null,null,null,null,null,null,null,null,null,null,null,null,null,null,null,null,null,null,null,null,null,null,null,null,null,null,null,null,null,null,null,null,null,null,null,"SANTIAGO NEJAPILLA"]
[null,null,null,null,null,null,null,null,null,null,null,null,null,null,null,null,null,null,null,null,null,null,null,null,null,null,null,null,null,null,null,null,null,null,null,null,null,null,null,null,null,null,null,null,null,null,null,null,null,null,"SANTIAGO NILTEPEC"]
[null,null,null,null,null,null,null,null,null,null,null,null,null,null,null,null,null,null,null,null,null,null,null,null,null,null,null,null,null,null,null,null,null,null,null,null,null,null,null,null,null,null,null,null,null,null,null,null,null,null,"SANTIAGO NUNDICHE"]
[null,null,null,null,null,null,null,null,null,null,null,null,null,null,null,null,null,null,null,null,null,null,null,null,null,null,null,null,null,null,null,null,null,null,null,null,null,null,null,null,null,null,null,null,null,null,null,null,null,null,"SANTIAGO NUYOÓ"]
[null,null,null,null,null,null,null,null,null,null,null,null,null,null,null,null,null,null,null,null,null,null,null,null,null,null,null,null,null,null,null,null,null,null,null,null,null,null,null,null,null,null,null,null,null,null,null,null,null,null,"SANTIAGO PINOTEPA NACIONAL"]
[null,null,null,null,null,null,null,null,null,null,null,null,null,null,null,null,null,null,null,null,null,null,null,null,null,null,null,null,null,null,null,null,null,null,null,null,null,null,null,null,null,null,null,null,null,null,null,null,null,null,"SANTIAGO SUCHILQUITONGO"]
[null,null,null,null,null,null,null,null,null,null,null,null,null,null,null,null,null,null,null,null,null,null,null,null,null,null,null,null,null,null,null,null,null,null,null,null,null,null,null,null,null,null,null,null,null,null,null,null,null,null,"SANTIAGO TAMAZOLA"]
[null,null,null,null,null,null,null,null,null,null,null,null,null,null,null,null,null,null,null,null,null,null,null,null,null,null,null,null,null,null,null,null,null,null,null,null,null,null,null,null,null,null,null,null,null,null,null,null,null,null,"SANTIAGO TAPEXTLA"]
[null,null,null,null,null,null,null,null,null,null,null,null,null,null,null,null,null,null,null,null,null,null,null,null,null,null,null,null,null,null,null,null,null,null,null,null,null,null,null,null,null,null,null,null,null,null,null,null,null,null,"SANTIAGO TENANGO"]
[null,null,null,null,null,null,null,null,null,null,null,null,null,null,null,null,null,null,null,null,null,null,null,null,null,null,null,null,null,null,null,null,null,null,null,null,null,null,null,null,null,null,null,null,null,null,null,null,null,null,"SANTIAGO TEPETLAPA"]
[null,null,null,null,null,null,null,null,null,null,null,null,null,null,null,null,null,null,null,null,null,null,null,null,null,null,null,null,null,null,null,null,null,null,null,null,null,null,null,null,null,null,null,null,null,null,null,null,null,null,"SANTIAGO TETEPEC"]
[null,null,null,null,null,null,null,null,null,null,null,null,null,null,null,null,null,null,null,null,null,null,null,null,null,null,null,null,null,null,null,null,null,null,null,null,null,null,null,null,null,null,null,null,null,null,null,null,null,null,"SANTIAGO TEXCALCINGO"]
[null,null,null,null,null,null,null,null,null,null,null,null,null,null,null,null,null,null,null,null,null,null,null,null,null,null,null,null,null,null,null,null,null,null,null,null,null,null,null,null,null,null,null,null,null,null,null,null,null,null,"SANTIAGO TEXTITLÁN"]
[null,null,null,null,null,null,null,null,null,null,null,null,null,null,null,null,null,null,null,null,null,null,null,null,null,null,null,null,null,null,null,null,null,null,null,null,null,null,null,null,null,null,null,null,null,null,null,null,null,null,"SANTIAGO TILANTONGO"]
[null,null,null,null,null,null,null,null,null,null,null,null,null,null,null,null,null,null,null,null,null,null,null,null,null,null,null,null,null,null,null,null,null,null,null,null,null,null,null,null,null,null,null,null,null,null,null,null,null,null,"SANTIAGO TILLO"]
[null,null,null,null,null,null,null,null,null,null,null,null,null,null,null,null,null,null,null,null,null,null,null,null,null,null,null,null,null,null,null,null,null,null,null,null,null,null,null,null,null,null,null,null,null,null,null,null,null,null,"SANTIAGO TLAZOYALTEPEC"]
[null,null,null,null,null,null,null,null,null,null,null,null,null,null,null,null,null,null,null,null,null,null,null,null,null,null,null,null,null,null,null,null,null,null,null,null,null,null,null,null,null,null,null,null,null,null,null,null,null,null,"SANTIAGO XANICA"]
[null,null,null,null,null,null,null,null,null,null,null,null,null,null,null,null,null,null,null,null,null,null,null,null,null,null,null,null,null,null,null,null,null,null,null,null,null,null,null,null,null,null,null,null,null,null,null,null,null,null,"SANTIAGO XIACUÍ"]
[null,null,null,null,null,null,null,null,null,null,null,null,null,null,null,null,null,null,null,null,null,null,null,null,null,null,null,null,null,null,null,null,null,null,null,null,null,null,null,null,null,null,null,null,null,null,null,null,null,null,"SANTIAGO YAITEPEC"]
[null,null,null,null,null,null,null,null,null,null,null,null,null,null,null,null,null,null,null,null,null,null,null,null,null,null,null,null,null,null,null,null,null,null,null,null,null,null,null,null,null,null,null,null,null,null,null,null,null,null,"SANTIAGO YAVEO"]
[null,null,null,null,null,null,null,null,null,null,null,null,null,null,null,null,null,null,null,null,null,null,null,null,null,null,null,null,null,null,null,null,null,null,null,null,null,null,null,null,null,null,null,null,null,null,null,null,null,null,"SANTIAGO YOLOMÉCATL"]
[null,null,null,null,null,null,null,null,null,null,null,null,null,null,null,null,null,null,null,null,null,null,null,null,null,null,null,null,null,null,null,null,null,null,null,null,null,null,null,null,null,null,null,null,null,null,null,null,null,null,"SANTIAGO YOSONDÚA"]
[null,null,null,null,null,null,null,null,null,null,null,null,null,null,null,null,null,null,null,null,null,null,null,null,null,null,null,null,null,null,null,null,null,null,null,null,null,null,null,null,null,null,null,null,null,null,null,null,null,null,"SANTIAGO YUCUYACHI"]
[null,null,null,null,null,null,null,null,null,null,null,null,null,null,null,null,null,null,null,null,null,null,null,null,null,null,null,null,null,null,null,null,null,null,null,null,null,null,null,null,null,null,null,null,null,null,null,null,null,null,"SANTIAGO ZACATEPEC"]
[null,null,null,null,null,null,null,null,null,null,null,null,null,null,null,null,null,null,null,null,null,null,null,null,null,null,null,null,null,null,null,null,null,null,null,null,null,null,null,null,null,null,null,null,null,null,null,null,null,null,"SANTIAGO ZOOCHILA"]
[null,null,null,null,null,null,null,null,null,null,null,null,null,null,null,null,null,null,null,null,null,null,null,null,null,null,null,null,null,null,null,null,null,null,null,null,null,null,null,null,null,null,null,null,null,null,null,null,null,null,"SANTO DOMINGO ALBARRADAS"]
[null,null,null,null,null,null,null,null,null,null,null,null,null,null,null,null,null,null,null,null,null,null,null,null,null,null,null,null,null,null,null,null,null,null,null,null,null,null,null,null,null,null,null,null,null,null,null,null,null,null,"SANTO DOMINGO ARMENTA"]
[null,null,null,null,null,null,null,null,null,null,null,null,null,null,null,null,null,null,null,null,null,null,null,null,null,null,null,null,null,null,null,null,null,null,null,null,null,null,null,null,null,null,null,null,null,null,null,null,null,null,"SANTO DOMINGO CHIHUITÁN"]
[null,null,null,null,null,null,null,null,null,null,null,null,null,null,null,null,null,null,null,null,null,null,null,null,null,null,null,null,null,null,null,null,null,null,null,null,null,null,null,null,null,null,null,null,null,null,null,null,null,null,"SANTO DOMINGO DE MORELOS"]
[null,null,null,null,null,null,null,null,null,null,null,null,null,null,null,null,null,null,null,null,null,null,null,null,null,null,null,null,null,null,null,null,null,null,null,null,null,null,null,null,null,null,null,null,null,null,null,null,null,null,"SANTO DOMINGO INGENIO"]
[null,null,null,null,null,null,null,null,null,null,null,null,null,null,null,null,null,null,null,null,null,null,null,null,null,null,null,null,null,null,null,null,null,null,null,null,null,null,null,null,null,null,null,null,null,null,null,null,null,null,"SANTO DOMINGO IXCATLÁN"]
[null,null,null,null,null,null,null,null,null,null,null,null,null,null,null,null,null,null,null,null,null,null,null,null,null,null,null,null,null,null,null,null,null,null,null,null,null,null,null,null,null,null,null,null,null,null,null,null,null,null,"SANTO DOMINGO NUXAÁ"]
[null,null,null,null,null,null,null,null,null,null,null,null,null,null,null,null,null,null,null,null,null,null,null,null,null,null,null,null,null,null,null,null,null,null,null,null,null,null,null,null,null,null,null,null,null,null,null,null,null,null,"SANTO DOMINGO OZOLOTEPEC"]
[null,null,null,null,null,null,null,null,null,null,null,null,null,null,null,null,null,null,null,null,null,null,null,null,null,null,null,null,null,null,null,null,null,null,null,null,null,null,null,null,null,null,null,null,null,null,null,null,null,null,"SANTO DOMINGO PETAPA"]
[null,null,null,null,null,null,null,null,null,null,null,null,null,null,null,null,null,null,null,null,null,null,null,null,null,null,null,null,null,null,null,null,null,null,null,null,null,null,null,null,null,null,null,null,null,null,null,null,null,null,"SANTO DOMINGO ROAYAGA"]
[null,null,null,null,null,null,null,null,null,null,null,null,null,null,null,null,null,null,null,null,null,null,null,null,null,null,null,null,null,null,null,null,null,null,null,null,null,null,null,null,null,null,null,null,null,null,null,null,null,null,"SANTO DOMINGO TEHUANTEPEC"]
[null,null,null,null,null,null,null,null,null,null,null,null,null,null,null,null,null,null,null,null,null,null,null,null,null,null,null,null,null,null,null,null,null,null,null,null,null,null,null,null,null,null,null,null,null,null,null,null,null,null,"SANTO DOMINGO TEOJOMULCO"]
[null,null,null,null,null,null,null,null,null,null,null,null,null,null,null,null,null,null,null,null,null,null,null,null,null,null,null,null,null,null,null,null,null,null,null,null,null,null,null,null,null,null,null,null,null,null,null,null,null,null,"SANTO DOMINGO TEPUXTEPEC"]
[null,null,null,null,null,null,null,null,null,null,null,null,null,null,null,null,null,null,null,null,null,null,null,null,null,null,null,null,null,null,null,null,null,null,null,null,null,null,null,null,null,null,null,null,null,null,null,null,null,null,"SANTO DOMINGO TLATAYÁPAM"]
[null,null,null,null,null,null,null,null,null,null,null,null,null,null,null,null,null,null,null,null,null,null,null,null,null,null,null,null,null,null,null,null,null,null,null,null,null,null,null,null,null,null,null,null,null,null,null,null,null,null,"SANTO DOMINGO TOMALTEPEC"]
[null,null,null,null,null,null,null,null,null,null,null,null,null,null,null,null,null,null,null,null,null,null,null,null,null,null,null,null,null,null,null,null,null,null,null,null,null,null,null,null,null,null,null,null,null,null,null,null,null,null,"SANTO DOMINGO TONALÁ"]
[null,null,null,null,null,null,null,null,null,null,null,null,null,null,null,null,null,null,null,null,null,null,null,null,null,null,null,null,null,null,null,null,null,null,null,null,null,null,null,null,null,null,null,null,null,null,null,null,null,null,"SANTO DOMINGO TONALTEPEC"]
[null,null,null,null,null,null,null,null,null,null,null,null,null,null,null,null,null,null,null,null,null,null,null,null,null,null,null,null,null,null,null,null,null,null,null,null,null,null,null,null,null,null,null,null,null,null,null,null,null,null,"SANTO DOMINGO XAGACÍA"]
[null,null,null,null,null,null,null,null,null,null,null,null,null,null,null,null,null,null,null,null,null,null,null,null,null,null,null,null,null,null,null,null,null,null,null,null,null,null,null,null,null,null,null,null,null,null,null,null,null,null,"SANTO DOMINGO YANHUITLÁN"]
[null,null,null,null,null,null,null,null,null,null,null,null,null,null,null,null,null,null,null,null,null,null,null,null,null,null,null,null,null,null,null,null,null,null,null,null,null,null,null,null,null,null,null,null,null,null,null,null,null,null,"SANTO DOMINGO YODOHINO"]
[null,null,null,null,null,null,null,null,null,null,null,null,null,null,null,null,null,null,null,null,null,null,null,null,null,null,null,null,null,null,null,null,null,null,null,null,null,null,null,null,null,null,null,null,null,null,null,null,null,null,"SANTO DOMINGO ZANATEPEC"]
[null,null,null,null,null,null,null,null,null,null,null,null,null,null,null,null,null,null,null,null,null,null,null,null,null,null,null,null,null,null,null,null,null,null,null,null,null,null,null,null,null,null,null,null,null,null,null,null,null,null,"SANTO TOMÁS JALIEZA"]
[null,null,null,null,null,null,null,null,null,null,null,null,null,null,null,null,null,null,null,null,null,null,null,null,null,null,null,null,null,null,null,null,null,null,null,null,null,null,null,null,null,null,null,null,null,null,null,null,null,null,"SANTO TOMÁS MAZALTEPEC"]
[null,null,null,null,null,null,null,null,null,null,null,null,null,null,null,null,null,null,null,null,null,null,null,null,null,null,null,null,null,null,null,null,null,null,null,null,null,null,null,null,null,null,null,null,null,null,null,null,null,null,"SANTO TOMÁS OCOTEPEC"]
[null,null,null,null,null,null,null,null,null,null,null,null,null,null,null,null,null,null,null,null,null,null,null,null,null,null,null,null,null,null,null,null,null,null,null,null,null,null,null,null,null,null,null,null,null,null,null,null,null,null,"SANTO TOMÁS TAMAZULAPAN"]
[null,null,null,null,null,null,null,null,null,null,null,null,null,null,null,null,null,null,null,null,null,null,null,null,null,null,null,null,null,null,null,null,null,null,null,null,null,null,null,null,null,null,null,null,null,null,null,null,null,null,"SANTOS REYES NOPALA"]
[null,null,null,null,null,null,null,null,null,null,null,null,null,null,null,null,null,null,null,null,null,null,null,null,null,null,null,null,null,null,null,null,null,null,null,null,null,null,null,null,null,null,null,null,null,null,null,null,null,null,"SANTOS REYES PÁPALO"]
[null,null,null,null,null,null,null,null,null,null,null,null,null,null,null,null,null,null,null,null,null,null,null,null,null,null,null,null,null,null,null,null,null,null,null,null,null,null,null,null,null,null,null,null,null,null,null,null,null,null,"SANTOS REYES TEPEJILLO"]
[null,null,null,null,null,null,null,null,null,null,null,null,null,null,null,null,null,null,null,null,null,null,null,null,null,null,null,null,null,null,null,null,null,null,null,null,null,null,null,null,null,null,null,null,null,null,null,null,null,null,"SANTOS REYES YUCUNÁ"]
[null,null,null,null,null,null,null,null,null,null,null,null,null,null,null,null,null,null,null,null,null,null,null,null,null,null,null,null,null,null,null,null,null,null,null,null,null,null,null,null,null,null,null,null,null,null,null,null,null,null,"SILACAYOÁPAM"]
[null,null,null,null,null,null,null,null,null,null,null,null,null,null,null,null,null,null,null,null,null,null,null,null,null,null,null,null,null,null,null,null,null,null,null,null,null,null,null,null,null,null,null,null,null,null,null,null,null,null,"SITIO DE XITLAPEHUA"]
[null,null,null,null,null,null,null,null,null,null,null,null,null,null,null,null,null,null,null,null,null,null,null,null,null,null,null,null,null,null,null,null,null,null,null,null,null,null,null,null,null,null,null,null,null,null,null,null,null,null,"SOLEDAD ETLA"]
[null,null,null,null,null,null,null,null,null,null,null,null,null,null,null,null,null,null,null,null,null,null,null,null,null,null,null,null,null,null,null,null,null,null,null,null,null,null,null,null,null,null,null,null,null,null,null,null,null,null,"TAMAZULÁPAM DEL ESPÍRITU SANTO"]
[null,null,null,null,null,null,null,null,null,null,null,null,null,null,null,null,null,null,null,null,null,null,null,null,null,null,null,null,null,null,null,null,null,null,null,null,null,null,null,null,null,null,null,null,null,null,null,null,null,null,"TANETZE DE ZARAGOZA"]
[null,null,null,null,null,null,null,null,null,null,null,null,null,null,null,null,null,null,null,null,null,null,null,null,null,null,null,null,null,null,null,null,null,null,null,null,null,null,null,null,null,null,null,null,null,null,null,null,null,null,"TANICHE"]
[null,null,null,null,null,null,null,null,null,null,null,null,null,null,null,null,null,null,null,null,null,null,null,null,null,null,null,null,null,null,null,null,null,null,null,null,null,null,null,null,null,null,null,null,null,null,null,null,null,null,"TATALTEPEC DE VALDÉS"]
[null,null,null,null,null,null,null,null,null,null,null,null,null,null,null,null,null,null,null,null,null,null,null,null,null,null,null,null,null,null,null,null,null,null,null,null,null,null,null,null,null,null,null,null,null,null,null,null,null,null,"TEOCOCUILCO DE MARCOS PÉREZ"]
[null,null,null,null,null,null,null,null,null,null,null,null,null,null,null,null,null,null,null,null,null,null,null,null,null,null,null,null,null,null,null,null,null,null,null,null,null,null,null,null,null,null,null,null,null,null,null,null,null,null,"TEOTITLÁN DE FLORES MAGÓN"]
[null,null,null,null,null,null,null,null,null,null,null,null,null,null,null,null,null,null,null,null,null,null,null,null,null,null,null,null,null,null,null,null,null,null,null,null,null,null,null,null,null,null,null,null,null,null,null,null,null,null,"TEOTITLÁN DEL VALLE"]
[null,null,null,null,null,null,null,null,null,null,null,null,null,null,null,null,null,null,null,null,null,null,null,null,null,null,null,null,null,null,null,null,null,null,null,null,null,null,null,null,null,null,null,null,null,null,null,null,null,null,"TEOTONGO"]
[null,null,null,null,null,null,null,null,null,null,null,null,null,null,null,null,null,null,null,null,null,null,null,null,null,null,null,null,null,null,null,null,null,null,null,null,null,null,null,null,null,null,null,null,null,null,null,null,null,null,"TEPELMEME VILLA DE MORELOS"]
[null,null,null,null,null,null,null,null,null,null,null,null,null,null,null,null,null,null,null,null,null,null,null,null,null,null,null,null,null,null,null,null,null,null,null,null,null,null,null,null,null,null,null,null,null,null,null,null,null,null,"TEZOATLÁN DE SEGURA Y LUNA"]
[null,null,null,null,null,null,null,null,null,null,null,null,null,null,null,null,null,null,null,null,null,null,null,null,null,null,null,null,null,null,null,null,null,null,null,null,null,null,null,null,null,null,null,null,null,null,null,null,null,null,"TLACOLULA DE MATAMOROS"]
[null,null,null,null,null,null,null,null,null,null,null,null,null,null,null,null,null,null,null,null,null,null,null,null,null,null,null,null,null,null,null,null,null,null,null,null,null,null,null,null,null,null,null,null,null,null,null,null,null,null,"TLACOTEPEC PLUMAS"]
[null,null,null,null,null,null,null,null,null,null,null,null,null,null,null,null,null,null,null,null,null,null,null,null,null,null,null,null,null,null,null,null,null,null,null,null,null,null,null,null,null,null,null,null,null,null,null,null,null,null,"TLALIXTAC DE CABRERA"]
[null,null,null,null,null,null,null,null,null,null,null,null,null,null,null,null,null,null,null,null,null,null,null,null,null,null,null,null,null,null,null,null,null,null,null,null,null,null,null,null,null,null,null,null,null,null,null,null,null,null,"TOTONTEPEC VILLA DE MORELOS"]
[null,null,null,null,null,null,null,null,null,null,null,null,null,null,null,null,null,null,null,null,null,null,null,null,null,null,null,null,null,null,null,null,null,null,null,null,null,null,null,null,null,null,null,null,null,null,null,null,null,null,"TRINIDAD ZAACHILA"]
[null,null,null,null,null,null,null,null,null,null,null,null,null,null,null,null,null,null,null,null,null,null,null,null,null,null,null,null,null,null,null,null,null,null,null,null,null,null,null,null,null,null,null,null,null,null,null,null,null,null,"UNIÓN HIDALGO"]
[null,null,null,null,null,null,null,null,null,null,null,null,null,null,null,null,null,null,null,null,null,null,null,null,null,null,null,null,null,null,null,null,null,null,null,null,null,null,null,null,null,null,null,null,null,null,null,null,null,null,"VALERIO TRUJANO"]
[null,null,null,null,null,null,null,null,null,null,null,null,null,null,null,null,null,null,null,null,null,null,null,null,null,null,null,null,null,null,null,null,null,null,null,null,null,null,null,null,null,null,null,null,null,null,null,null,null,null,"VILLA DE CHILAPA DE DÍAZ"]
[null,null,null,null,null,null,null,null,null,null,null,null,null,null,null,null,null,null,null,null,null,null,null,null,null,null,null,null,null,null,null,null,null,null,null,null,null,null,null,null,null,null,null,null,null,null,null,null,null,null,"VILLA DE ETLA"]
[null,null,null,null,null,null,null,null,null,null,null,null,null,null,null,null,null,null,null,null,null,null,null,null,null,null,null,null,null,null,null,null,null,null,null,null,null,null,null,null,null,null,null,null,null,null,null,null,null,null,"VILLA DE SANTIAGO CHAZUMBA"]
[null,null,null,null,null,null,null,null,null,null,null,null,null,null,null,null,null,null,null,null,null,null,null,null,null,null,null,null,null,null,null,null,null,null,null,null,null,null,null,null,null,null,null,null,null,null,null,null,null,null,"VILLA DE TAMAZULÁPAM DEL PROGRESO"]
[null,null,null,null,null,null,null,null,null,null,null,null,null,null,null,null,null,null,null,null,null,null,null,null,null,null,null,null,null,null,null,null,null,null,null,null,null,null,null,null,null,null,null,null,null,null,null,null,null,null,"VILLA DE TUTUTEPEC"]
[null,null,null,null,null,null,null,null,null,null,null,null,null,null,null,null,null,null,null,null,null,null,null,null,null,null,null,null,null,null,null,null,null,null,null,null,null,null,null,null,null,null,null,null,null,null,null,null,null,null,"VILLA DE ZAACHILA"]
[null,null,null,null,null,null,null,null,null,null,null,null,null,null,null,null,null,null,null,null,null,null,null,null,null,null,null,null,null,null,null,null,null,null,null,null,null,null,null,null,null,null,null,null,null,null,null,null,null,null,"VILLA DÍAZ ORDAZ"]
[null,null,null,null,null,null,null,null,null,null,null,null,null,null,null,null,null,null,null,null,null,null,null,null,null,null,null,null,null,null,null,null,null,null,null,null,null,null,null,null,null,null,null,null,null,null,null,null,null,null,"VILLA HIDALGO YALÁLAG"]
[null,null,null,null,null,null,null,null,null,null,null,null,null,null,null,null,null,null,null,null,null,null,null,null,null,null,null,null,null,null,null,null,null,null,null,null,null,null,null,null,null,null,null,null,null,null,null,null,null,null,"VILLA SOLA DE VEGA"]
[null,null,null,null,null,null,null,null,null,null,null,null,null,null,null,null,null,null,null,null,null,null,null,null,null,null,null,null,null,null,null,null,null,null,null,null,null,null,null,null,null,null,null,null,null,null,null,null,null,null,"VILLA TALEA DE CASTRO"]
[null,null,null,null,null,null,null,null,null,null,null,null,null,null,null,null,null,null,null,null,null,null,null,null,null,null,null,null,null,null,null,null,null,null,null,null,null,null,null,null,null,null,null,null,null,null,null,null,null,null,"VILLA TEJÚPAM DE LA UNIÓN"]
[null,null,null,null,null,null,null,null,null,null,null,null,null,null,null,null,null,null,null,null,null,null,null,null,null,null,null,null,null,null,null,null,null,null,null,null,null,null,null,null,null,null,null,null,null,null,null,null,null,null,"YAXE"]
[null,null,null,null,null,null,null,null,null,null,null,null,null,null,null,null,null,null,null,null,null,null,null,null,null,null,null,null,null,null,null,null,null,null,null,null,null,null,null,null,null,null,null,null,null,null,null,null,null,null,"YOGANA"]
[null,null,null,null,null,null,null,null,null,null,null,null,null,null,null,null,null,null,null,null,null,null,null,null,null,null,null,null,null,null,null,null,null,null,null,null,null,null,null,null,null,null,null,null,null,null,null,null,null,null,"YUTANDUCHI DE GUERRERO"]
[null,null,null,null,null,null,null,null,null,null,null,null,null,null,null,null,null,null,null,null,null,null,null,null,null,null,null,null,null,null,null,null,null,null,null,null,null,null,null,null,null,null,null,null,null,null,null,null,null,null,"ZAPOTITLÁN LAGUNAS"]
[null,null,null,null,null,null,null,null,null,null,null,null,null,null,null,null,null,null,null,null,null,null,null,null,null,null,null,null,null,null,null,null,null,null,null,null,null,null,null,null,null,null,null,null,null,null,null,null,null,null,"ZAPOTITLÁN PALMAS"]
[null,null,null,null,null,null,null,null,null,null,null,null,null,null,null,null,null,null,null,null,null,null,null,null,null,null,null,null,null,null,null,null,null,null,null,null,null,null,null,null,null,null,null,null,null,null,null,null,null,null,"ZIMATLÁN DE ÁLVAREZ"]

{"sheet":"Control de Cambios","index":3,"n_rows":3,"n_cols":4,"rows_kept":3,"cut":false,"hidden":true,"merged":[]}
["Versión","Fecha","Modificación","Responsable de la Modificación"]
["V1","2024-04-07","Se crea el Formado de Excepciones\n\nSe restringen las Solicitudes de Excepción para los siguientes Estados:\n\n- Las excepciones de los estado de Chiapas, Quintana Roo, Veracruz, Tabasco y Tamaulipas deben ser gestionadas por el Comite.\n\n- No es posible generar excepciones Sheets(\"UserForm\").Range(\"E23\").Selectara e Estado de Nayarit.\n\nLa excepción por DB431 SCORE RECHAZADO se restringe para que sea solicitado por el comité.\n\nLa combinación de excepción por DS001 SCORE RECHAZADO y INCREMENTO AL LTV DE FINANCIAMIENTO se restringe para que sea solicitado por el comité.","Nelson Silva Gallegos"]
["V2","2024-06-17"," - Se elimina el borrado de información al abrir el Formato.\n  - Se elimina los botones ActiveX por Formatos de forma para que sea compatible con equipos MAC\n  - Se elimina el guardado automático del Formato PDF en la carpeta \"C\" / \"Formatos de Excepción para que\n    se realice el guardado de forma manual en la carpeta que el usuario elija.","Nelson Silva Gallegos"]